{"text_format":"1","workbook":"xlsx","n_sheets":62,"sheets":["modList00","Инструкция","Лог обновления","Титульный","Территории","Перечень тарифов","Форма 1.0.1 | Т-ВО","Форма 3.2 | Т-ВО","Форма 1.0.1 | Т-транс","Форма 3.2 | Т-транс","Форма 1.0.1 | Т-подкл(инд)","Форма 3.4 | Т-подкл(инд)","Форма 1.0.1 | Т-подкл","Форма 3.4 | Т-подкл","Форма 1.0.1 | Форма 3.9","Форма 3.9","Форма 1.0.1 | Форма 3.10","Форма 3.10","Форма 1.0.2","Сведения об изменении","Комментарии","Проверка","modListTempFilter","modCheckCyan","REESTR_LINK","REESTR_DS","modHTTP","modfrmRezimChoose","modSheetMain","REESTR_VT","REESTR_VED","modfrmReestrObj","AllSheetsInThisWorkbook","et_union_vert","modInstruction","modRegion","modReestr","modfrmReestr","modUpdTemplMain","REESTR_ORG","modClassifierValidate","modProv","modHyp","modServiceModule","modList01","modList02","modList03","et_union_hor","REESTR_MO_FILTER","REESTR_MO","TEHSHEET","modInfo","modList05","modList06","modList07","modList11","modList12","modfrmDateChoose","modComm","modThisWorkbook","modfrmReestrMR","modfrmCheckUpdates"],"not_rendered":{"charts":0,"images":20,"macros":1,"external_links":0,"defined_names":562,"comments":0,"pivot_tables":0},"unopened":[],"bounds":{"document_bytes":16777216,"sheet_cells":100000,"rows_first":2000,"rows_last":500,"rows_between":2000,"halvings":0,"cell_chars":16384,"cell_head_chars":4096},"cells_cut":0,"cells_raw":0,"read":"whole","date_system":"1900"}

{"sheet":"modList00","index":0,"n_rows":0,"n_cols":0,"rows_kept":0,"cut":false,"hidden":true,"merged":[]}

{"sheet":"Инструкция","index":1,"n_rows":102,"n_cols":27,"rows_kept":102,"cut":false,"hidden":false,"merged":[[59,7,59,23],[81,7,81,23],[45,4,56,23],[69,4,69,19],[59,4,59,6],[58,7,58,23],[58,4,58,6],[70,4,70,19],[60,7,60,23],[101,5,101,23],[99,5,99,18],[81,4,81,6],[97,4,97,23],[80,4,80,20],[83,7,83,23],[1,1,1,6],[2,1,2,2],[6,4,18,23],[22,15,22,22],[57,4,57,20],[4,1,4,24],[40,4,44,23],[20,5,20,12],[20,15,20,23],[21,15,21,23],[34,4,38,23],[21,5,21,12],[39,4,39,23]]}
[null,null,null,null,null,null,null,null,null,null,null,null,null,null,null,null,null,null,null,null,null,null,null,null,null,null," (требуется обновление)"]
[null,{"$f":"\"Код отчёта: \" & GetCode()","v":{"$error":"#NAME?"}}]
[null,{"$f":"\"Версия \" & GetVersion()","v":{"$error":"#NAME?"}}]
[]
[null,"Показатели, подлежащие раскрытию в сфере водоотведения (цены и тарифы)"]
[]
[null,null,null,null,"• На рабочем месте должен быть установлен MS Office 2007 SP3, 2010, 2013, 2016 с полной версией MS Excel\n\n• Макросы во время работы должны быть включены (!)\n\n• Для корректной работы отчёта требуется выбрать низкий уровень безопасности\n(В меню MS Excel 2007/2010/2013/2016: Параметры Excel | Центр управления безопасностью | Параметры центра управления безопасностью | Параметры макросов | Включить все макросы | ОК)\n\n• Если Вы работаете в табличном процессоре MS Excel 2007 и выше, то можете использовать для работы формат XLSB (Двоичная книга Excel). При работе в формате XLSB заметно быстрее происходит сохранение файла, а также уменьшается размер по сравнению с форматами XLS и XLSM\n\n• Не рекомендуется снимать защиту с листов и каким-либо образом модифицировать защищаемые формулы и расчётные поля, в противном случае, отчёт будет отклонён системой\n\n• При сохранении не следует выбирать формат XLSX (Книга Excel), так как в указанном формате макросы, необходимые для работы отчёта, безвозвратно удаляются"]
[]
[]
[]
[]
[]
[]
[]
[]
[]
[]
[]
[]
[]
[null,null,null,null,"A"," - необязательные для заполнения",null,null,null,null,null,null,null,null,"A"," - с формулами и константами"]
[null,null,null,null,"A"," - обязательные для заполнения",null,null,null,null,null,null,null,null,"A"," - с выбором значений по двойному клику"]
[]
[]
[]
[]
[]
[]
[]
[]
[]
[]
[]
[]
[null,null,null,null,"Если в предложенном Вам списке необходимая организация, МР/МО отсутствуют, обновите реестры с помощью кнопок\n\nВ результате синхронизации с базой данных список организаций (МР/МО) будет заменён актуальным (механизм синхронизации требует подключения к сети Интернет и основан на использовании протокола HTTPS (TCP порт 443))\n\nЕсли после обновления Вам не удалось найти необходимую организацию в списке, обратитесь к ответственному за поддержание реестра Вашего региона."]
[]
[]
[]
[]
[]
[]
[]
[]
[]
[]
[null,null,null,null,"• При сохранении шаблона осуществляется проверка корректности данных, в том числе на наличие значений в ячейках, обязательных для заполнения\n\n• Если какая-то ячейка не удовлетворяет условию проверки, на лист «Проверка» добавляется гиперссылка на данную ячейку и указывается причина ошибки\n\n• В колонке «Статус» для каждого сообщения возможны 2 значения: ошибка и предупреждение\n\n• При наличии сообщений со статусом «Ошибка» шаблон будет отклонён системой и не будет загружен в хранилище данных, сообщения со статусом «Предупреждение» носят информационный характер, и такой шаблон будет принят системой"]
[]
[]
[]
[]
[]
[]
[]
[]
[]
[]
[]
[null,null,null,null,"Обратиться за помощью в службу технической поддержки"]
[]
[]
[]
[]
[]
[]
[]
[]
[]
[]
[]
[null,null,null,null,"Инструкция по загрузке сопроводительных материалов"]
[null,null,null,null,"Инструкция по работе с отчетной формой"]
[]
[]
[]
[]
[]
[]
[]
[]
[]
[null,null,null,null,"Обратиться за помощью в службу технической поддержки"]
[]
[]
[]
[]
[]
[]
[]
[]
[]
[]
[]
[]
[]
[]
[]
[]
[null,null,null,null,"При наличии подключения к Интернет, можно автоматически проверять наличие доступных обновлений. Выберите способ оповещения о наличии обновлений для отчёта:"]
[]
[null,null,null,null,null,"проверять доступные обновления (рекомендуется)",null,null,null,null,null,null,null,null,null,null,null,null,null,null,null,null,null,null,null,null,"y"]
[]
[null,null,null,null,null,"никогда не проверять наличие обновлений (не рекомендуется)"]

{"sheet":"Лог обновления","index":2,"n_rows":9,"n_cols":3,"rows_kept":9,"cut":false,"hidden":true,"merged":[]}
["Дата/Время","Сообщение","Статус"]
["2022-12-09T11:23:22","Проверка доступных обновлений...","Информация"]
["2022-12-09T11:23:23","Нет доступных обновлений для отчёта с кодом FAS.JKH.OPEN.INFO.PRICE.VO!","Информация"]
["2022-12-09T11:23:37","Проверка доступных обновлений...","Информация"]
["2022-12-09T11:23:38","Нет доступных обновлений для отчёта с кодом FAS.JKH.OPEN.INFO.PRICE.VO!","Информация"]
["2022-12-09T11:29:17","Проверка доступных обновлений...","Информация"]
["2022-12-09T11:29:18","Нет доступных обновлений для отчёта с кодом FAS.JKH.OPEN.INFO.PRICE.VO!","Информация"]
["2022-12-09T11:45:20","Проверка доступных обновлений...","Информация"]
["2022-12-09T11:45:24","Нет доступных обновлений для отчёта с кодом FAS.JKH.OPEN.INFO.PRICE.VO!","Информация"]

{"sheet":"Титульный","index":3,"n_rows":44,"n_cols":6,"rows_kept":44,"cut":false,"hidden":false,"merged":[[4,4,4,5],[51,4,51,8]]}
[null,null,null,null,null,30925002]
[null,null,null,null,{"$f":"\"Код шаблона: \" & GetCode()","v":{"$error":"#NAME?"}}]
[null,null,null,null,{"$f":"\"Версия \" & GetVersion()","v":{"$error":"#NAME?"}}]
[]
[null,null,null,null,"Показатели, подлежащие раскрытию в сфере водоотведения (цены и тарифы)"]
[]
[null,null,null,null,"Субъект РФ","Новосибирская область"]
[]
[null,null,null,null,"Отсутствует Интернет в границах территории МО, где организация осуществляет регулируемые виды деятельности","нет"]
[]
[null,null,null,null,"Начало периода регулирования","01.12.2022"]
[null,null,null,null,"Окончание периода регулирования","31.12.2023"]
[]
[null,null,null,null,"Тип отчета","первичное раскрытие информации"]
[null,null,null,null,"Дата внесения изменений в информацию, подлежащую раскрытию","09.12.2022"]
[null,null,null,null,"Дата периода регулирования, с которой вводятся изменения в тарифы"]
[null,null,null,null,null,"Первичное установление тарифов"]
[null,null,null,null,"Наименование органа регулирования, принявшего решение об утверждении тарифов","Департамент по тарифам Новосибирской области"]
[null,null,null,null,"Дата документа об утверждении тарифов","18.11.2022"]
[null,null,null,null,"Номер документа об утверждении тарифов","463-В"]
[null,null,null,null,"Источник официального опубликования решения","сайт Департамента по тарифам Новосибирской области"]
[null,null,null,null,null,"Изменение тарифов"]
[null,null,null,null,"Наименование органа регулирования, принявшего решение об изменении тарифов"]
[null,null,null,null,"Дата принятия решения об изменении тарифов"]
[null,null,null,null,"Номер принятия решения об изменении тарифов"]
[null,null,null,null,"Источник официального опубликования решения"]
[]
[null,null,null,null,"Является ли данное юридическое лицо подразделением (филиалом) другой организации","да"]
[null,null,null,null,"Наименование организации","МУП \"Криводановское\""]
[null,null,null,null,"Наименование филиала","нет"]
[null,null,null,null,"ИНН","5433957889"]
[null,null,null,null,"КПП","543301001"]
[]
[null,null,null,null,"Режим налогообложения","специальный (упрощенная система налогообложения, система налогообложения для сельскохозяйственных производителей)"]
[]
[null,null,null,null,"Организация осуществляет подключение к централизованной системе водоотведения","да"]
[]
[null,null,null,null,"Почтовый адрес регулируемой организации","630511, РФ, Новосибирская область, Ноосибирский район, с. Криводановка, ул. Садовая, д 20а"]
[null,null,null,null,"Фамилия, имя, отчество руководителя","Автушко Максим Викторович"]
[null,null,null,null,null,"Ответственный за заполнение формы"]
[null,null,null,null,"Фамилия, имя, отчество","Панин Алексей Николаевич"]
[null,null,null,null,"Должность","главный инженер"]
[null,null,null,null,"Контактный телефон","8 (383) 297-10-20"]
[null,null,null,null,"E-mail","mup-kriv@mail.ru"]

{"sheet":"Территории","index":4,"n_rows":15,"n_cols":18,"rows_kept":15,"cut":false,"hidden":false,"merged":[[12,7,13,7],[11,2,13,2],[11,3,13,3],[11,4,13,4],[12,5,13,5],[12,6,13,6],[8,5,8,6],[8,8,8,9],[9,5,9,6],[9,8,9,9],[3,3,3,7],[5,3,5,4],[5,5,5,6],[7,3,7,4],[7,8,7,11],[7,5,7,7]]}
[null,null,null,null,null,null,null,null,null,null,"МО","ОКТМО","МР"]
[]
[]
[null,null,null,"Перечень муниципальных районов и муниципальных образований (территорий действия тарифа)"]
[]
[null,null,null,null,null,"да"]
[]
[null,null,null,"Территория действия тарифа",null,"Муниципальный район",null,null,"Муниципальное образование"]
[null,null,null,"№ п/п","Наименование","№ п/п",null,"Наименование","№ п/п",null,"Наименование","ОКТМО"]
[null,null,null,"1","2","3",null,"4","5",null,"6","7"]
[null,null,null,0,null,null,null,null,null,null,null,null,"размерженный МР",null,null,"флаг используемости территории на листе Перечень тарифов","копия территорий","МР (ОКТМО)"]
[null,"auto",null,1,"Новосибирский муниципальный район, Криводановское (50640419);",null,0,null,null,"0",null,null,{"$f":"mergeValue(H12)","v":{"$error":"#NAME?"}},null,null,{"$f":"IF(ISERROR(MATCH(Q12,MODesc,0)),\"n\",\"y\")","v":"n"},"Новосибирский муниципальный район, Криводановское (50640419);",{"$f":"K12&\"(\"&L12&\")\"","v":"()"}]
[null,"auto",null,null,null,null,1,"Новосибирский муниципальный район",null,"0",null,null,{"$f":"mergeValue(H13)","v":{"$error":"#NAME?"}},null,null,null,null,{"$f":"K13&\"(\"&L13&\")\"","v":"()"}]
[null,"auto",null,null,null,null,null,null,null,1,"Криводановское","50640419",{"$f":"mergeValue(H14)","v":{"$error":"#NAME?"}},null,null,null,null,{"$f":"K14&\" (\"&L14&\")\"","v":"Криводановское (50640419)"}]
[null,"man",null,null,null,null,null,null,null,null,null,null,null,null,null,null,"Добавить территорию действия тарифа"]

{"sheet":"Перечень тарифов","index":5,"n_rows":21,"n_cols":19,"rows_kept":21,"cut":false,"hidden":false,"merged":[[20,13,21,13],[20,14,21,14],[20,8,22,8],[20,9,22,9],[20,10,22,10],[20,11,21,11],[20,12,21,12],[20,3,23,3],[20,4,23,4],[20,5,23,5],[20,6,23,6],[20,7,22,7],[18,7,18,8],[17,11,17,12],[17,15,17,16],[18,11,18,12],[18,15,18,16],[16,18,17,18],[16,14,16,17],[16,10,16,13],[16,6,17,6],[6,6,6,9],[7,6,7,9],[16,9,17,9],[9,6,9,9],[16,7,17,8],[4,3,4,9],[10,4,10,5],[16,3,17,3],[16,4,17,4],[12,4,12,5],[8,6,8,9],[5,3,5,9],[7,4,7,5],[8,4,8,5],[9,4,9,5],[6,4,6,5],[16,5,17,5],[11,4,11,5]]}
[]
[]
[]
[]
[null,null,null,"Перечень тарифов и технологически не связанных между собой централизованных систем водоотведения, в отношении которых предлагаются различные тарифы в сфере водоотведения"]
[]
[]
[]
[]
[]
[]
[]
[]
[]
[]
[]
[null,null,null,"№ п/п","Вид тарифа","Вид деятельности","Наличие двухставочного тарифа","№ п/п",null,"Наименование тарифа","Дифференциация по\n МО (территориям)",null,null,null,"Дифференциация по \nцентрализованным системам водоотведения",null,null,null,"Примечание"]
[null,null,null,null,null,null,null,null,null,null,"да/нет","№ п/п",null,"Описание","да/нет","№ п/п",null,"Описание"]
[null,null,null,"1","2","3","4","5",null,"6","7","8",null,"9","10","11",null,"12","13"]
[null,null,null,0]
[1,null,null,1,"Тариф на водоотведение","Водоотведение","нет",null,1,"тариф на водоотведение","нет",null,"1",null,"нет",null,"1"]

{"sheet":"Форма 1.0.1 | Т-ВО","index":6,"n_rows":15,"n_cols":10,"rows_kept":15,"cut":false,"hidden":false,"merged":[[14,6,14,7],[1,5,1,7],[3,5,3,7],[3,8,4,8],[7,0,12,0],[11,2,12,2],[10,1,12,1]]}
["1"]
[null,null,null,null,null,"Форма 1.0.1 Основные параметры раскрываемой информации 1"]
[]
[null,null,null,null,null,"Параметры формы",null,null,"Описание параметров формы"]
[null,null,null,null,null,"№ п/п","Наименование параметра","Информация"]
[null,null,null,null,null,"1",2,3,4,4]
[null,null,null,null,null,1,"Дата заполнения/внесения изменений",{"$f":"IF(dateCh=\"\",\"\",dateCh)","v":"09.12.2022"},"Указывается календарная дата первичного заполнения или внесения изменений в форму в виде «ДД.ММ.ГГГГ»."]
[1,null,null,null,null,{"$f":"\"2.\" &mergeValue(A8)","v":{"$error":"#NAME?"}},"Наименование централизованной системы коммунальной инфраструктуры",{"$f":"IF('Перечень тарифов'!R21=\"\",\"наименование отсутствует\",\"\" & 'Перечень тарифов'!R21 & \"\")","v":"наименование отсутствует"},"Указывается наименование централизованной системы холодного водоснабжения/горячего водоснабжения/водоотведения/теплоснабжения, к которой относится размещаемая информация.\nВ случае наличия нескольких централизованных систем коммунальной инфраструктуры, информация по каждой из них указывается в отдельной строке."]
[null,null,null,null,null,{"$f":"\"3.\" &mergeValue(A9)","v":{"$error":"#NAME?"}},"Наименование регулируемого вида деятельности",{"$f":"IF('Перечень тарифов'!F21=\"\",\"наименование отсутствует\",\"\" & 'Перечень тарифов'!F21 & \"\")","v":"Водоотведение"},"Указывается наименование вида регулируемой деятельности."]
[null,null,null,null,null,{"$f":"\"4.\"&mergeValue(A10)","v":{"$error":"#NAME?"}},"Территория оказания услуги по регулируемому виду деятельности","x"]
[null,1,null,null,null,{"$f":"\"4.\"&mergeValue(A11) &\".\"&mergeValue(B11)","v":{"$error":"#NAME?"}},"Субъект Российской Федерации",{"$f":"IF(region_name=\"\",\"\",region_name)","v":"Новосибирская область"},"Указывается наименование субъекта Российской Федерации"]
[null,null,1,null,null,{"$f":"\"4.\"&mergeValue(A12) &\".\"&mergeValue(B12)&\".\"&mergeValue(C12)","v":{"$error":"#NAME?"}},"муниципальный район",{"$f":"IF(Территории!H13=\"\",\"\",\"\" & Территории!H13 & \"\")","v":"Новосибирский муниципальный район"},"Указывается наименование муниципального района, на территории которого организация оказывает услуги по регулируемому виду деятельности."]
[null,null,null,1,null,{"$f":"\"4.\"&mergeValue(A13) &\".\"&mergeValue(B13)&\".\"&mergeValue(C13)&\".\"&mergeValue(D13)","v":{"$error":"#NAME?"}},"муниципальное образование",{"$f":"IF(Территории!R14=\"\",\"\",\"\" & Территории!R14 & \"\")","v":"Криводановское (50640419)"},"Указывается наименование и код муниципального района, муниципального образования в соответствии с Общероссийским классификатором территорий муниципальных образований (далее - ОКТМО), входящего в муниципальный район, на территории которого организация оказывает услуги по регулируемому виду деятельности.\nВ случае оказания услуг по регулируемому виду деятельности на территории нескольких муниципальных районов (муниципальных образований) данные по каждому их них указываются в отдельной строке."]
[]
[null,null,null,null,null,null,"  1 Информация размещается при раскрытии информации по каждой из форм."]

{"sheet":"Форма 3.2 | Т-ВО","index":7,"n_rows":29,"n_cols":26,"rows_kept":29,"cut":false,"hidden":false,"merged":[[21,9,24,9],[14,15,14,16],[19,14,19,21],[28,12,28,21],[22,18,23,18],[22,20,23,20],[22,13,23,13],[22,19,23,19],[17,0,26,0],[18,1,26,1],[19,2,26,2],[20,3,25,3],[20,8,25,8],[21,4,24,4],[11,14,11,20],[15,18,15,19],[18,14,18,21],[17,14,17,21],[16,18,16,19],[13,20,15,20],[7,14,7,21],[8,14,8,21],[4,11,4,20],[10,11,10,12],[9,14,9,21],[6,14,6,21],[22,22,24,22],[13,21,15,21],[12,11,12,21],[13,13,15,13],[22,17,23,17],[14,17,14,19],[13,14,13,19],[12,22,15,22],[21,14,21,21],[20,14,20,21],[13,11,15,11],[13,12,15,12]]}
[]
[]
[]
[]
[null,null,null,null,null,null,null,null,null,null,null,"Форма 3.2 Информация о величинах тарифов на водоотведение, транспортировку воды1"]
[]
[null,null,null,null,null,null,null,null,null,null,null,null,{"$f":"\"Наименование органа регулирования, принявшего решение об \"&IF(NameOrPr_ch=\"\",\"утверждении\",\"изменении\") & \" тарифов\"","v":"Наименование органа регулирования, принявшего решение об утверждении тарифов"},null,{"$f":"IF(NameOrPr_ch=\"\",IF(NameOrPr=\"\",\"\",NameOrPr),NameOrPr_ch)","v":"Департамент по тарифам Новосибирской области"}]
[null,null,null,null,null,null,null,null,null,null,null,null,{"$f":"IF(datePr_ch=\"\",\"Дата документа об утверждении тарифов\",\"Дата принятия решения об изменении тарифов\")","v":"Дата документа об утверждении тарифов"},null,{"$f":"IF(datePr_ch=\"\",IF(datePr=\"\",\"\",datePr),datePr_ch)","v":"18.11.2022"}]
[null,null,null,null,null,null,null,null,null,null,null,null,{"$f":"IF(numberPr_ch=\"\",\"Номер документа об утверждении тарифов\",\"Номер принятия решения об изменении тарифов\")","v":"Номер документа об утверждении тарифов"},null,{"$f":"IF(numberPr_ch=\"\",IF(numberPr=\"\",\"\",numberPr),numberPr_ch)","v":"463-В"}]
[null,null,null,null,null,null,null,null,null,null,null,null,"Источник официального опубликования решения",null,{"$f":"IF(IstPub_ch=\"\",IF(IstPub=\"\",\"\",IstPub),IstPub_ch)","v":"сайт Департамента по тарифам Новосибирской области"}]
[null,null,null,null,null,null,null,null,null,null,null,null,null,null,null,null,null,null,null,null,"dp"]
[]
[null,null,null,null,null,null,null,null,null,null,null,"Параметры формы",null,null,null,null,null,null,null,null,null,null,"Описание параметров формы"]
[null,null,null,null,null,null,null,null,null,null,null,"№ п/п","Параметры дифференциации",null,"Период действия тарифа",null,null,null,null,null,"Наличие других периодов действия тарифа","Добавить период"]
[null,null,null,null,null,null,null,null,null,null,null,null,null,null,"Одноставочный тариф","Двухставочный тариф",null,"Период действия"]
[null,null,null,null,null,null,null,null,null,null,null,null,null,null,"Одноставочный тариф, руб./куб. м","ставка платы за объем принятых сточных вод, руб./куб. м","ставка платы за содержание мощности, руб./куб. м в час","дата начала","дата окончания"]
[null,null,null,null,null,null,null,null,null,null,1,"1","2",{"$f":"OFFSET(N17,0,-1)","v":"2"},{"$f":"OFFSET(O17,0,-1)+1","v":3},{"$f":"OFFSET(P17,0,-1)+1","v":4},{"$f":"OFFSET(Q17,0,-1)+1","v":5},{"$f":"OFFSET(R17,0,-1)+1","v":6},{"$f":"OFFSET(S17,0,-1)+1","v":7},null,{"$f":"OFFSET(U17,0,-2)+1","v":8},{"$f":"OFFSET(V17,0,-1)","v":8},{"$f":"OFFSET(W17,0,-1)+1","v":9}]
[1,null,null,null,null,null,null,null,null,null,null,{"$f":"mergeValue(A18)","v":{"$error":"#NAME?"}},"Наименование тарифа",null,{"$f":"IF('Перечень тарифов'!J21=\"\",\"\",\"\" & 'Перечень тарифов'!J21 & \"\")","v":"тариф на водоотведение"},null,null,null,null,null,null,null,"Указывается наименование тарифа в случае утверждения нескольких тарифов.\nВ случае наличия нескольких тарифов информация по ним указывается в отдельных строках."]
[null,1,null,null,null,null,null,null,null,null,null,{"$f":"mergeValue(A19) &\".\"& mergeValue(B19)","v":{"$error":"#NAME?"}}]
[null,null,1,null,null,null,null,null,null,null,null,{"$f":"mergeValue(A20) &\".\"& mergeValue(B20)&\".\"& mergeValue(C20)","v":{"$error":"#NAME?"}}]
[null,null,null,1,null,null,null,null,null,null,null,{"$f":"mergeValue(A21) &\".\"& mergeValue(B21)&\".\"& mergeValue(C21)&\".\"& mergeValue(D21)","v":{"$error":"#NAME?"}},"Наименование признака дифференциации",null,null,null,null,null,null,null,null,null,"Указывается наименование дополнительного признака дифференциации (при наличии).\nДифференциация тарифа осуществляется в соответствии с законодательством в сфере водоснабжении и водоотведении.\nВ случае дифференциации тарифов по дополнительным признакам информация по ним указывается в отдельных строках."]
[null,null,null,null,1,null,null,null,null,null,null,{"$f":"mergeValue(A22) &\".\"& mergeValue(B22)&\".\"& mergeValue(C22)&\".\"& mergeValue(D22)&\".\"& mergeValue(E22)","v":{"$error":"#NAME?"}},"Группа потребителей",null,"без дифференциации",null,null,null,null,null,null,null,"Указывается группа потребителей при наличии дифференциации тарифа по группам потребителей.\nЗначение выбирается из перечня: Организации-перепродавцы; Бюджетные организации; Население; Прочие; Без дифференциации.\nВ случае дифференциации тарифов группам потребителей информация по ним указывается в отдельных строках.",null,{"$f":"strCheckUnique(Z22:Z25)","v":{"$error":"#NAME?"}}]
[null,null,null,null,null,1,null,null,null,null,null,{"$f":"mergeValue(A23) &\".\"& mergeValue(B23)&\".\"& mergeValue(C23)&\".\"& mergeValue(D23)&\".\"& mergeValue(E23)&\".\"& mergeValue(F23)","v":{"$error":"#NAME?"}},null,null,39.229999999999997,null,null,"01.12.2022","да","31.12.2023","нет",null,"В колонке «Параметр дифференциации тарифов» указывается значение дополнительного признака дифференциации.\nПри утверждении двухставочного тарифа колонка «Одноставочный тариф» не заполняется.\nПри утверждении одноставочного тарифа колонки в блоке «Двухставочный тариф» не заполняются.\nДаты начала и окончания действия тарифов указываются в виде «ДД.ММ.ГГГГ».\nВ случае отсутствия даты окончания действия тарифа в колонке «Дата окончания» указывается «Нет».\nВ случае наличия нескольких значений признака дифференциации тарифов информация по ним указывается в отдельных строках.\nВ случае дифференциации тарифов по периодам действия тарифа информация по ним указывается в отдельных колонках.",{"$f":"strCheckDate(O24:V24)","v":{"$error":"#NAME?"}},null,{"$f":"IF(M23=\"\",\"\",M23 )","v":""}]
[null,null,null,null,null,null,null,null,null,null,null,null,null,null,null,null,{"$f":"R23 & \"-\" & T23","v":"01.12.2022-31.12.2023"}]
[null,null,null,null,null,null,null,null,null,null,null,null,"Добавить значение признака дифференциации"]
[null,null,null,null,null,null,null,null,null,null,null,null,"Добавить группу потребителей"]
[null,null,null,null,null,null,null,null,null,null,null,null,"Добавить наименование признака дифференциации"]
[]
[null,null,null,null,null,null,null,null,null,null,null,null,"1 Для каждого вида тарифа в сфере водоотведения форма заполняется отдельно. При размещении информации по данной форме дополнительно указываются: наименование органа регулирования тарифов, принявшего решение об утверждении(изменении) тарифа, дата и номер документа об утверждении(изменении) тарифа, источник официального опубликования решения."]

{"sheet":"Форма 1.0.1 | Т-транс","index":8,"n_rows":19,"n_cols":10,"rows_kept":19,"cut":false,"hidden":true,"merged":[[18,6,18,7],[1,5,1,7],[3,5,3,7],[3,8,4,8],[7,0,15,0],[11,2,13,2],[12,8,13,8],[10,1,14,1]]}
["2"]
[null,null,null,null,null,"Форма 1.0.1 Основные параметры раскрываемой информации 1"]
[]
[null,null,null,null,null,"Параметры формы",null,null,"Описание параметров формы"]
[null,null,null,null,null,"№ п/п","Наименование параметра","Информация"]
[null,null,null,null,null,"1",2,3,4,4]
[null,null,null,null,null,1,"Дата заполнения/внесения изменений",{"$f":"IF(dateCh=\"\",\"\",dateCh)","v":"09.12.2022"},"Указывается календарная дата первичного заполнения или внесения изменений в форму в виде «ДД.ММ.ГГГГ»."]
[1,null,null,null,null,{"$f":"\"2.\" &mergeValue(A8)","v":{"$error":"#NAME?"}},"Наименование централизованной системы коммунальной инфраструктуры",null,"Указывается наименование централизованной системы холодного водоснабжения/горячего водоснабжения/водоотведения/теплоснабжения, к которой относится размещаемая информация.\nВ случае наличия нескольких централизованных систем коммунальной инфраструктуры, информация по каждой из них указывается в отдельной строке."]
[null,null,null,null,null,{"$f":"\"3.\" &mergeValue(A9)","v":{"$error":"#NAME?"}},"Наименование регулируемого вида деятельности",null,"Указывается наименование вида регулируемой деятельности."]
[null,null,null,null,null,{"$f":"\"4.\"&mergeValue(A10)","v":{"$error":"#NAME?"}},"Территория оказания услуги по регулируемому виду деятельности","x"]
[null,1,null,null,null,{"$f":"\"4.\"&mergeValue(A11) &\".\"&mergeValue(B11)","v":{"$error":"#NAME?"}},"Субъект Российской Федерации",{"$f":"IF(region_name=\"\",\"\",region_name)","v":"Новосибирская область"},"Указывается наименование субъекта Российской Федерации"]
[null,null,1,null,null,{"$f":"\"4.\"&mergeValue(A12) &\".\"&mergeValue(B12)&\".\"&mergeValue(C12)","v":{"$error":"#NAME?"}},"муниципальный район",null,"Указывается наименование муниципального района, на территории которого организация оказывает услуги по регулируемому виду деятельности."]
[null,null,null,1,null,{"$f":"\"4.\"&mergeValue(A13) &\".\"&mergeValue(B13)&\".\"&mergeValue(C13)&\".\"&mergeValue(D13)","v":{"$error":"#NAME?"}},"муниципальное образование",null,"Указывается наименование и код муниципального района, муниципального образования в соответствии с Общероссийским классификатором территорий муниципальных образований (далее - ОКТМО), входящего в муниципальный район, на территории которого организация оказывает услуги по регулируемому виду деятельности.\nВ случае оказания услуг по регулируемому виду деятельности на территории нескольких муниципальных районов (муниципальных образований) данные по каждому их них указываются в отдельной строке."]
[null,null,null,null,null,null,"Добавить МО"]
[null,null,null,null,null,null,"Добавить МР"]
[null,null,null,null,null,null,"Добавить территорию"]
[null,null,null,null,null,null,"Добавить ЦС"]
[]
[null,null,null,null,null,null,"  1 Информация размещается при раскрытии информации по каждой из форм."]

{"sheet":"Форма 3.2 | Т-транс","index":9,"n_rows":32,"n_cols":26,"rows_kept":32,"cut":false,"hidden":true,"merged":[[13,11,15,11],[13,12,15,12],[18,14,18,21],[17,0,28,0],[18,1,27,1],[19,2,26,2],[20,3,25,3],[20,8,25,8],[22,13,23,13],[21,4,24,4],[17,14,17,21],[13,14,13,19],[14,17,14,19],[13,13,15,13],[13,20,15,20],[31,12,31,21],[21,9,24,9],[20,14,20,21],[19,14,19,21],[22,19,23,19],[21,14,21,21],[22,18,23,18],[22,22,24,22],[4,11,4,20],[14,15,14,16],[15,18,15,19],[22,17,23,17],[22,20,23,20],[10,11,10,12],[6,14,6,21],[13,21,15,21],[12,22,15,22],[7,14,7,21],[8,14,8,21],[9,14,9,21],[16,18,16,19],[12,11,12,21],[11,14,11,20]]}
[]
[]
[]
[]
[null,null,null,null,null,null,null,null,null,null,null,"Форма 3.2 Информация о величинах тарифов на водоотведение, транспортировку воды1"]
[]
[null,null,null,null,null,null,null,null,null,null,null,null,{"$f":"\"Наименование органа регулирования, принявшего решение об \"&IF(NameOrPr_ch=\"\",\"утверждении\",\"изменении\") & \" тарифов\"","v":"Наименование органа регулирования, принявшего решение об утверждении тарифов"},null,{"$f":"IF(NameOrPr_ch=\"\",IF(NameOrPr=\"\",\"\",NameOrPr),NameOrPr_ch)","v":"Департамент по тарифам Новосибирской области"}]
[null,null,null,null,null,null,null,null,null,null,null,null,{"$f":"IF(datePr_ch=\"\",\"Дата документа об утверждении тарифов\",\"Дата принятия решения об изменении тарифов\")","v":"Дата документа об утверждении тарифов"},null,{"$f":"IF(datePr_ch=\"\",IF(datePr=\"\",\"\",datePr),datePr_ch)","v":"18.11.2022"}]
[null,null,null,null,null,null,null,null,null,null,null,null,{"$f":"IF(numberPr_ch=\"\",\"Номер документа об утверждении тарифов\",\"Номер принятия решения об изменении тарифов\")","v":"Номер документа об утверждении тарифов"},null,{"$f":"IF(numberPr_ch=\"\",IF(numberPr=\"\",\"\",numberPr),numberPr_ch)","v":"463-В"}]
[null,null,null,null,null,null,null,null,null,null,null,null,"Источник официального опубликования решения",null,{"$f":"IF(IstPub_ch=\"\",IF(IstPub=\"\",\"\",IstPub),IstPub_ch)","v":"сайт Департамента по тарифам Новосибирской области"}]
[null,null,null,null,null,null,null,null,null,null,null,null,null,null,null,null,null,null,null,null,"dp"]
[]
[null,null,null,null,null,null,null,null,null,null,null,"Параметры формы",null,null,null,null,null,null,null,null,null,null,"Описание параметров формы"]
[null,null,null,null,null,null,null,null,null,null,null,"№ п/п","Параметры дифференциации",null,"Период действия тарифа",null,null,null,null,null,"Наличие других периодов действия тарифа","Добавить период"]
[null,null,null,null,null,null,null,null,null,null,null,null,null,null,"Одноставочный тариф","Двухставочный тариф",null,"Период действия"]
[null,null,null,null,null,null,null,null,null,null,null,null,null,null,"Одноставочный тариф, руб./куб. м","ставка платы за объем принятых сточных вод, руб./куб. м","ставка платы за содержание мощности, руб./куб. м в час","дата начала","дата окончания"]
[null,null,null,null,null,null,null,null,null,null,1,"1","2",{"$f":"OFFSET(N17,0,-1)","v":"2"},{"$f":"OFFSET(O17,0,-1)+1","v":3},{"$f":"OFFSET(P17,0,-1)+1","v":4},{"$f":"OFFSET(Q17,0,-1)+1","v":5},{"$f":"OFFSET(R17,0,-1)+1","v":6},{"$f":"OFFSET(S17,0,-1)+1","v":7},null,{"$f":"OFFSET(U17,0,-2)+1","v":8},{"$f":"OFFSET(V17,0,-1)","v":8},{"$f":"OFFSET(W17,0,-1)+1","v":9}]
[1,null,null,null,null,null,null,null,null,null,null,{"$f":"mergeValue(A18)","v":{"$error":"#NAME?"}},"Наименование тарифа",null,null,null,null,null,null,null,null,null,"Указывается наименование тарифа в случае утверждения нескольких тарифов.\nВ случае наличия нескольких тарифов информация по ним указывается в отдельных строках."]
[null,1,null,null,null,null,null,null,null,null,null,{"$f":"mergeValue(A19) &\".\"& mergeValue(B19)","v":{"$error":"#NAME?"}},"Территория действия тарифа",null,null,null,null,null,null,null,null,null,"Указывается наименование территории действия тарифа при наличии дифференциации тарифа по территориальному признаку.\nВ случае дифференциации тарифов по территориальному признаку информация по ним указывается в отдельных строках."]
[null,null,1,null,null,null,null,null,null,null,null,{"$f":"mergeValue(A20) &\".\"& mergeValue(B20)&\".\"& mergeValue(C20)","v":{"$error":"#NAME?"}},"Наименование централизованной системы водоотведения",null,null,null,null,null,null,null,null,null,"Указывается наименование централизованной системы водоотведения при наличии дифференциации тарифа по централизованным системам водоотведения.\nВ случае дифференциации тарифов по централизованным системам водоотведения информация по ним указывается в отдельных строках."]
[null,null,null,1,null,null,null,null,null,null,null,{"$f":"mergeValue(A21) &\".\"& mergeValue(B21)&\".\"& mergeValue(C21)&\".\"& mergeValue(D21)","v":{"$error":"#NAME?"}},"Наименование признака дифференциации",null,null,null,null,null,null,null,null,null,"Указывается наименование дополнительного признака дифференциации (при наличии).\nДифференциация тарифа осуществляется в соответствии с законодательством в сфере водоснабжении и водоотведении.\nВ случае дифференциации тарифов по дополнительным признакам информация по ним указывается в отдельных строках."]
[null,null,null,null,1,null,null,null,null,null,null,{"$f":"mergeValue(A22) &\".\"& mergeValue(B22)&\".\"& mergeValue(C22)&\".\"& mergeValue(D22)&\".\"& mergeValue(E22)","v":{"$error":"#NAME?"}},"Группа потребителей",null,null,null,null,null,null,null,null,null,"Указывается группа потребителей при наличии дифференциации тарифа по группам потребителей.\nЗначение выбирается из перечня: Организации-перепродавцы; Бюджетные организации; Население; Прочие; Без дифференциации.\nВ случае дифференциации тарифов группам потребителей информация по ним указывается в отдельных строках.",null,{"$f":"strCheckUnique(Z22:Z25)","v":{"$error":"#NAME?"}}]
[null,null,null,null,null,1,null,null,null,null,null,{"$f":"mergeValue(A23) &\".\"& mergeValue(B23)&\".\"& mergeValue(C23)&\".\"& mergeValue(D23)&\".\"& mergeValue(E23)&\".\"& mergeValue(F23)","v":{"$error":"#NAME?"}},null,null,null,null,null,null,"да",null,"нет",null,"В колонке «Параметр дифференциации тарифов» указывается значение дополнительного признака дифференциации.\nПри утверждении двухставочного тарифа колонка «Одноставочный тариф» не заполняется.\nПри утверждении одноставочного тарифа колонки в блоке «Двухставочный тариф» не заполняются.\nДаты начала и окончания действия тарифов указываются в виде «ДД.ММ.ГГГГ».\nВ случае отсутствия даты окончания действия тарифа в колонке «Дата окончания» указывается «Нет».\nВ случае наличия нескольких значений признака дифференциации тарифов информация по ним указывается в отдельных строках.\nВ случае дифференциации тарифов по периодам действия тарифа информация по ним указывается в отдельных колонках.",{"$f":"strCheckDate(O24:V24)","v":{"$error":"#NAME?"}},null,{"$f":"IF(M23=\"\",\"\",M23 )","v":""}]
[null,null,null,null,null,null,null,null,null,null,null,null,null,null,null,null,{"$f":"R23 & \"-\" & T23","v":"-"}]
[null,null,null,null,null,null,null,null,null,null,null,null,"Добавить значение признака дифференциации"]
[null,null,null,null,null,null,null,null,null,null,null,null,"Добавить группу потребителей"]
[null,null,null,null,null,null,null,null,null,null,null,null,"Добавить наименование признака дифференциации"]
[null,null,null,null,null,null,null,null,null,null,null,null,"Добавить наименование системы водоотведения"]
[null,null,null,null,null,null,null,null,null,null,null,null,"Добавить территорию действия тарифа"]
[null,null,null,null,null,null,null,null,null,null,null,null,"Добавить наименование тарифа"]
[]
[null,null,null,null,null,null,null,null,null,null,null,null,"1 Для каждого вида тарифа в сфере водоотведения форма заполняется отдельно. При размещении информации по данной форме дополнительно указываются: наименование органа регулирования тарифов, принявшего решение об утверждении(изменении) тарифа, дата и номер документа об утверждении(изменении) тарифа, источник официального опубликования решения."]

{"sheet":"Форма 1.0.1 | Т-подкл(инд)","index":10,"n_rows":19,"n_cols":10,"rows_kept":19,"cut":false,"hidden":true,"merged":[[18,6,18,7],[1,5,1,7],[3,5,3,7],[3,8,4,8],[7,0,15,0],[11,2,13,2],[12,8,13,8],[10,1,14,1]]}
["9"]
[null,null,null,null,null,"Форма 1.0.1 Основные параметры раскрываемой информации 1"]
[]
[null,null,null,null,null,"Параметры формы",null,null,"Описание параметров формы"]
[null,null,null,null,null,"№ п/п","Наименование параметра","Информация"]
[null,null,null,null,null,"1",2,3,4,4]
[null,null,null,null,null,1,"Дата заполнения/внесения изменений",{"$f":"IF(dateCh=\"\",\"\",dateCh)","v":"09.12.2022"},"Указывается календарная дата первичного заполнения или внесения изменений в форму в виде «ДД.ММ.ГГГГ»."]
[1,null,null,null,null,{"$f":"\"2.\" &mergeValue(A8)","v":{"$error":"#NAME?"}},"Наименование централизованной системы коммунальной инфраструктуры",null,"Указывается наименование централизованной системы холодного водоснабжения/горячего водоснабжения/водоотведения/теплоснабжения, к которой относится размещаемая информация.\nВ случае наличия нескольких централизованных систем коммунальной инфраструктуры, информация по каждой из них указывается в отдельной строке."]
[null,null,null,null,null,{"$f":"\"3.\" &mergeValue(A9)","v":{"$error":"#NAME?"}},"Наименование регулируемого вида деятельности",null,"Указывается наименование вида регулируемой деятельности."]
[null,null,null,null,null,{"$f":"\"4.\"&mergeValue(A10)","v":{"$error":"#NAME?"}},"Территория оказания услуги по регулируемому виду деятельности","x"]
[null,1,null,null,null,{"$f":"\"4.\"&mergeValue(A11) &\".\"&mergeValue(B11)","v":{"$error":"#NAME?"}},"Субъект Российской Федерации",{"$f":"IF(region_name=\"\",\"\",region_name)","v":"Новосибирская область"},"Указывается наименование субъекта Российской Федерации"]
[null,null,1,null,null,{"$f":"\"4.\"&mergeValue(A12) &\".\"&mergeValue(B12)&\".\"&mergeValue(C12)","v":{"$error":"#NAME?"}},"муниципальный район",null,"Указывается наименование муниципального района, на территории которого организация оказывает услуги по регулируемому виду деятельности."]
[null,null,null,1,null,{"$f":"\"4.\"&mergeValue(A13) &\".\"&mergeValue(B13)&\".\"&mergeValue(C13)&\".\"&mergeValue(D13)","v":{"$error":"#NAME?"}},"муниципальное образование",null,"Указывается наименование и код муниципального района, муниципального образования в соответствии с Общероссийским классификатором территорий муниципальных образований (далее - ОКТМО), входящего в муниципальный район, на территории которого организация оказывает услуги по регулируемому виду деятельности.\nВ случае оказания услуг по регулируемому виду деятельности на территории нескольких муниципальных районов (муниципальных образований) данные по каждому их них указываются в отдельной строке."]
[null,null,null,null,null,null,"Добавить МО"]
[null,null,null,null,null,null,"Добавить МР"]
[null,null,null,null,null,null,"Добавить территорию"]
[null,null,null,null,null,null,"Добавить ЦС"]
[]
[null,null,null,null,null,null,"  1 Информация размещается при раскрытии информации по каждой из форм."]

{"sheet":"Форма 3.4 | Т-подкл(инд)","index":11,"n_rows":32,"n_cols":41,"rows_kept":32,"cut":false,"hidden":true,"merged":[[4,11,4,20],[6,13,6,20],[7,13,7,20],[8,13,8,20],[9,13,9,20],[21,38,26,38],[13,11,13,37],[17,13,17,16],[17,17,17,20],[17,21,17,24],[14,37,16,37],[13,38,16,38],[21,22,22,22],[21,23,22,23],[21,24,22,24],[21,15,24,15],[21,16,24,16],[21,17,24,17],[21,18,23,18],[21,19,23,19],[21,20,23,20],[20,2,26,2],[21,3,25,3],[18,0,28,0],[19,1,27,1],[21,14,24,14],[20,13,20,37],[19,13,19,37],[18,13,18,37],[21,8,25,8],[21,25,22,25],[21,9,25,9],[21,11,25,11],[21,12,25,12],[21,13,25,13],[21,10,25,10],[21,21,23,21],[10,11,10,12],[10,18,10,23],[11,11,11,12],[11,18,11,23],[12,18,12,23],[12,29,12,36],[14,11,16,11],[14,12,16,12],[14,13,16,16],[14,17,16,20],[14,21,16,24],[14,25,16,28],[14,36,16,36],[16,34,16,35],[15,31,15,32],[15,33,15,35],[14,29,14,35],[15,29,15,30]]}
[]
[]
[]
[]
[null,null,null,null,null,null,null,null,null,null,null,"Форма 3.4 Информация о величинах тарифов на подключение к централизованной системе водоотведения1"]
[]
[null,null,null,null,null,null,null,null,null,null,null,null,{"$f":"\"Наименование органа регулирования, принявшего решение об \"&IF(NameOrPr_ch=\"\",\"утверждении\",\"изменении\") & \" тарифов\"","v":"Наименование органа регулирования, принявшего решение об утверждении тарифов"},{"$f":"IF(NameOrPr_ch=\"\",IF(NameOrPr=\"\",\"\",NameOrPr),NameOrPr_ch)","v":"Департамент по тарифам Новосибирской области"}]
[null,null,null,null,null,null,null,null,null,null,null,null,{"$f":"IF(datePr_ch=\"\",\"Дата документа об утверждении тарифов\",\"Дата принятия решения об изменении тарифов\")","v":"Дата документа об утверждении тарифов"},{"$f":"IF(datePr_ch=\"\",IF(datePr=\"\",\"\",datePr),datePr_ch)","v":"18.11.2022"}]
[null,null,null,null,null,null,null,null,null,null,null,null,{"$f":"IF(numberPr_ch=\"\",\"Номер документа об утверждении тарифов\",\"Номер принятия решения об изменении тарифов\")","v":"Номер документа об утверждении тарифов"},{"$f":"IF(numberPr_ch=\"\",IF(numberPr=\"\",\"\",numberPr),numberPr_ch)","v":"463-В"}]
[null,null,null,null,null,null,null,null,null,null,null,null,"Источник официального опубликования решения",{"$f":"IF(IstPub_ch=\"\",IF(IstPub=\"\",\"\",IstPub),IstPub_ch)","v":"сайт Департамента по тарифам Новосибирской области"}]
[null,null,null,null,null,null,null,null,null,null,null,null,null,null,null,null,null,null,null,null,null,null,null,null,null,null,null,null,null,"NDS","woNDS","NDS","woNDS"]
[null,null,null,null,null,null,null,null,null,null,null,null,null,null,null,null,null,null,null,null,null,null,null,null,null,null,null,null,null,null,null,null,null,null,null,null,"dp"]
[]
[null,null,null,null,null,null,null,null,null,null,null,"Параметры формы",null,null,null,null,null,null,null,null,null,null,null,null,null,null,null,null,null,null,null,null,null,null,null,null,null,null,"Описание параметров формы"]
[null,null,null,null,null,null,null,null,null,null,null,"№ п/п","Параметр дифференциации тарифа/Заявитель","Подключаемая нагрузка канализационной сети, куб. м/сут",null,null,null,"Диапазон диаметров канализационной сети, мм",null,null,null,"Протяженность канализационной сети, км",null,null,null,"Условия прокладки сетей",null,null,null,"Период действия тарифа",null,null,null,null,null,null,"Наличие других периодов действия тарифа","Добавить период"]
[null,null,null,null,null,null,null,null,null,null,null,null,null,null,null,null,null,null,null,null,null,null,null,null,null,null,null,null,null,"Ставка тарифа за подключаемую нагрузку канализационной сети, тыс. руб./куб. м в сут",null,"Ставка тарифа за протяженность канализационной сети диаметром d, тыс. руб./км",null,"Период действия"]
[null,null,null,null,null,null,null,null,null,null,null,null,null,null,null,null,null,null,null,null,null,null,null,null,null,null,null,null,null,"С НДС","Без НДС","С НДС","Без НДС","Дата начала","Дата окончания"]
[null,null,null,null,null,null,null,null,null,null,1,"1","2",{"$f":"OFFSET(N18,0,-1)+1","v":3},null,null,null,{"$f":"OFFSET(R18,0,-4)+1","v":4},null,null,null,{"$f":"OFFSET(V18,0,-4)+1","v":5},null,null,null,null,null,{"$f":"OFFSET(V18,0,0)+1","v":6},{"$f":"AB18","v":6},{"$f":"OFFSET(AD18,0,-1)+1","v":7},{"$f":"OFFSET(AE18,0,-1)+1","v":8},9,10,11,12,13,{"$f":"OFFSET(AK18,0,-1)+1","v":14},null,15]
[1,null,null,null,null,null,null,null,null,null,null,{"$f":"mergeValue(A19)","v":{"$error":"#NAME?"}},"Наименование тарифа",null,null,null,null,null,null,null,null,null,null,null,null,null,null,null,null,null,null,null,null,null,null,null,null,null,"Указывается наименование тарифа в случае утверждения нескольких тарифов.\nВ случае наличия нескольких тарифов информация по ним указывается в отдельных строках."]
[null,1,null,null,null,null,null,null,null,null,null,{"$f":"mergeValue(A20) &\".\"& mergeValue(B20)","v":{"$error":"#NAME?"}},"Территория действия тарифа",null,null,null,null,null,null,null,null,null,null,null,null,null,null,null,null,null,null,null,null,null,null,null,null,null,"Указывается наименование территории действия тарифа при наличии дифференциации тарифа по территориальному признаку.\nВ случае дифференциации тарифов по территориальному признаку информация по ним указывается в отдельных строках."]
[null,null,1,null,null,null,null,null,null,null,null,{"$f":"mergeValue(A21) &\".\"& mergeValue(B21)&\".\"& mergeValue(C21)","v":{"$error":"#NAME?"}},"Наименование централизованной системы водоотведения",null,null,null,null,null,null,null,null,null,null,null,null,null,null,null,null,null,null,null,null,null,null,null,null,null,"Указывается наименование централизованной системы водоотведения при наличии дифференциации тарифа по централизованным системам водоотведения.\nВ случае дифференциации тарифов по централизованным системам водоотведения информация по ним указывается в отдельных строках."]
[null,null,null,1,null,null,null,null,null,null,null,{"$f":"mergeValue(A22) &\".\"& mergeValue(B22)&\".\"& mergeValue(C22)&\".\"& mergeValue(D22)","v":{"$error":"#NAME?"}},null,"да",null,"1",null,"нет",null,1,null,"нет",null,1,null,"нет",null,1,null,null,null,null,null,null,"да",null,"нет",null,"В колодке «Параметр дифференциации тарифа/Заявитель» указывается наименование категории потребителей, к которой относится тариф.\nДаты начала и окончания указываются в виде «ДД.ММ.ГГГГ».\nВ случае отсутствия даты окончания тарифа в колонке «Дата окончания» указывается «Нет».\nВ случае наличия дифференциации по подключаемой нагрузке, диапазону диаметров, протяженности, условиям прокладки канализационной сети информация по ним указывается в отдельных строках.\nВ случае дифференциации тарифов по периодам действия тарифа информация по ним указывается в отдельных колонках.",{"$f":"strCheckDateOnDP(V22:AL22,List06_9_DP)","v":{"$error":"#NAME?"}},{"$f":"IF(AND(COUNTIF(AP18:AP26,AP22)>1,AP22<>\"\"),\"ErrUnique:HasDoubleConn\",\"\")","v":""}]
[null,null,null,null,null,null,null,null,null,null,null,null,null,null,null,null,null,null,null,null,null,null,null,null,null,null,null,null,null,null,null,null,{"$f":"AH22 & \"-\" & AJ22","v":"-"},null,null,null,"нет"]
[]
[]
[null,null,null,null,null,null,null,null,null,null,null,null,null,null,null,null,"Добавить подключаемую нагрузку"]
[null,null,null,null,null,null,null,null,null,null,null,null,"Добавить строку"]
[null,null,null,null,null,null,null,null,null,null,null,null,"Добавить наименование системы водоотведения"]
[null,null,null,null,null,null,null,null,null,null,null,null,"Добавить территорию действия тарифа"]
[null,null,null,null,null,null,null,null,null,null,null,null,"Добавить наименование тарифа"]
[]
[null,null,null,null,null,null,null,null,null,null,null,null,"1 При размещении информации дополнительно указываются: наименование органа регулирования тарифов, принявшего решение об утверждении(изменении) тарифа, дата и номер документа об утверждении(изменении) тарифа, источник официального опубликования решения."]

{"sheet":"Форма 1.0.1 | Т-подкл","index":12,"n_rows":19,"n_cols":10,"rows_kept":19,"cut":false,"hidden":true,"merged":[[18,6,18,7],[1,5,1,7],[3,5,3,7],[3,8,4,8],[7,0,15,0],[11,2,13,2],[12,8,13,8],[10,1,14,1]]}
["10"]
[null,null,null,null,null,"Форма 1.0.1 Основные параметры раскрываемой информации 1"]
[]
[null,null,null,null,null,"Параметры формы",null,null,"Описание параметров формы"]
[null,null,null,null,null,"№ п/п","Наименование параметра","Информация"]
[null,null,null,null,null,"1",2,3,4,4]
[null,null,null,null,null,1,"Дата заполнения/внесения изменений",{"$f":"IF(dateCh=\"\",\"\",dateCh)","v":"09.12.2022"},"Указывается календарная дата первичного заполнения или внесения изменений в форму в виде «ДД.ММ.ГГГГ»."]
[1,null,null,null,null,{"$f":"\"2.\" &mergeValue(A8)","v":{"$error":"#NAME?"}},"Наименование централизованной системы коммунальной инфраструктуры",null,"Указывается наименование централизованной системы холодного водоснабжения/горячего водоснабжения/водоотведения/теплоснабжения, к которой относится размещаемая информация.\nВ случае наличия нескольких централизованных систем коммунальной инфраструктуры, информация по каждой из них указывается в отдельной строке."]
[null,null,null,null,null,{"$f":"\"3.\" &mergeValue(A9)","v":{"$error":"#NAME?"}},"Наименование регулируемого вида деятельности",null,"Указывается наименование вида регулируемой деятельности."]
[null,null,null,null,null,{"$f":"\"4.\"&mergeValue(A10)","v":{"$error":"#NAME?"}},"Территория оказания услуги по регулируемому виду деятельности","x"]
[null,1,null,null,null,{"$f":"\"4.\"&mergeValue(A11) &\".\"&mergeValue(B11)","v":{"$error":"#NAME?"}},"Субъект Российской Федерации",{"$f":"IF(region_name=\"\",\"\",region_name)","v":"Новосибирская область"},"Указывается наименование субъекта Российской Федерации"]
[null,null,1,null,null,{"$f":"\"4.\"&mergeValue(A12) &\".\"&mergeValue(B12)&\".\"&mergeValue(C12)","v":{"$error":"#NAME?"}},"муниципальный район",null,"Указывается наименование муниципального района, на территории которого организация оказывает услуги по регулируемому виду деятельности."]
[null,null,null,1,null,{"$f":"\"4.\"&mergeValue(A13) &\".\"&mergeValue(B13)&\".\"&mergeValue(C13)&\".\"&mergeValue(D13)","v":{"$error":"#NAME?"}},"муниципальное образование",null,"Указывается наименование и код муниципального района, муниципального образования в соответствии с Общероссийским классификатором территорий муниципальных образований (далее - ОКТМО), входящего в муниципальный район, на территории которого организация оказывает услуги по регулируемому виду деятельности.\nВ случае оказания услуг по регулируемому виду деятельности на территории нескольких муниципальных районов (муниципальных образований) данные по каждому их них указываются в отдельной строке."]
[null,null,null,null,null,null,"Добавить МО"]
[null,null,null,null,null,null,"Добавить МР"]
[null,null,null,null,null,null,"Добавить территорию"]
[null,null,null,null,null,null,"Добавить ЦС"]
[]
[null,null,null,null,null,null,"  1 Информация размещается при раскрытии информации по каждой из форм."]

{"sheet":"Форма 3.4 | Т-подкл","index":13,"n_rows":32,"n_cols":40,"rows_kept":32,"cut":false,"hidden":true,"merged":[[12,28,12,35],[14,12,16,12],[14,11,16,11],[6,13,6,19],[7,13,7,19],[8,13,8,19],[9,13,9,19],[12,17,12,22],[11,17,11,22],[10,17,10,22],[10,11,10,12],[11,11,11,12],[14,24,16,27],[13,11,13,36],[14,13,16,15],[15,30,15,31],[18,0,28,0],[19,1,27,1],[20,2,26,2],[21,3,25,3],[21,10,25,10],[21,8,25,8],[21,9,25,9],[21,11,25,11],[21,17,23,17],[21,20,23,20],[19,13,19,36],[21,24,22,24],[17,20,17,23],[17,16,17,19],[17,13,17,15],[21,12,25,12],[21,15,24,15],[21,13,24,13],[21,19,23,19],[20,13,20,36],[21,21,22,21],[21,14,24,14],[4,11,4,20],[13,37,16,37],[21,37,26,37],[14,36,16,36],[14,16,16,19],[14,20,16,23],[21,18,23,18],[21,22,22,22],[21,16,24,16],[14,28,14,34],[14,35,16,35],[21,23,22,23],[15,28,15,29],[15,32,15,34],[18,13,18,36],[16,33,16,34]]}
[]
[]
[]
[]
[null,null,null,null,null,null,null,null,null,null,null,"Форма 3.4 Информация о величинах тарифов на подключение к централизованной системе водоотведения1"]
[]
[null,null,null,null,null,null,null,null,null,null,null,null,{"$f":"\"Наименование органа регулирования, принявшего решение об \"&IF(NameOrPr_ch=\"\",\"утверждении\",\"изменении\") & \" тарифов\"","v":"Наименование органа регулирования, принявшего решение об утверждении тарифов"},{"$f":"IF(NameOrPr_ch=\"\",IF(NameOrPr=\"\",\"\",NameOrPr),NameOrPr_ch)","v":"Департамент по тарифам Новосибирской области"}]
[null,null,null,null,null,null,null,null,null,null,null,null,{"$f":"IF(datePr_ch=\"\",\"Дата документа об утверждении тарифов\",\"Дата принятия решения об изменении тарифов\")","v":"Дата документа об утверждении тарифов"},{"$f":"IF(datePr_ch=\"\",IF(datePr=\"\",\"\",datePr),datePr_ch)","v":"18.11.2022"}]
[null,null,null,null,null,null,null,null,null,null,null,null,{"$f":"IF(numberPr_ch=\"\",\"Номер документа об утверждении тарифов\",\"Номер принятия решения об изменении тарифов\")","v":"Номер документа об утверждении тарифов"},{"$f":"IF(numberPr_ch=\"\",IF(numberPr=\"\",\"\",numberPr),numberPr_ch)","v":"463-В"}]
[null,null,null,null,null,null,null,null,null,null,null,null,"Источник официального опубликования решения",{"$f":"IF(IstPub_ch=\"\",IF(IstPub=\"\",\"\",IstPub),IstPub_ch)","v":"сайт Департамента по тарифам Новосибирской области"}]
[null,null,null,null,null,null,null,null,null,null,null,null,null,null,null,null,null,null,null,null,null,null,null,null,null,null,null,null,"NDS","woNDS","NDS","woNDS"]
[null,null,null,null,null,null,null,null,null,null,null,null,null,null,null,null,null,null,null,null,null,null,null,null,null,null,null,null,null,null,null,null,null,null,null,"dp"]
[]
[null,null,null,null,null,null,null,null,null,null,null,"Параметры формы",null,null,null,null,null,null,null,null,null,null,null,null,null,null,null,null,null,null,null,null,null,null,null,null,null,"Описание параметров формы"]
[null,null,null,null,null,null,null,null,null,null,null,"№ п/п","Параметр дифференциации тарифа/Заявитель","Подключаемая нагрузка канализационной сети, куб. м/сут",null,null,"Диапазон диаметров канализационной сети, мм",null,null,null,"Протяженность канализационной сети, км",null,null,null,"Условия прокладки сетей",null,null,null,"Период действия тарифа",null,null,null,null,null,null,"Наличие других периодов действия тарифа","Добавить период"]
[null,null,null,null,null,null,null,null,null,null,null,null,null,null,null,null,null,null,null,null,null,null,null,null,null,null,null,null,"Ставка тарифа за подключаемую нагрузку канализационной сети, тыс. руб./куб. м в сут",null,"Ставка тарифа за протяженность канализационной сети диаметром d, тыс. руб./км",null,"Период действия"]
[null,null,null,null,null,null,null,null,null,null,null,null,null,null,null,null,null,null,null,null,null,null,null,null,null,null,null,null,"С НДС","Без НДС","С НДС","Без НДС","Дата начала","Дата окончания"]
[null,null,null,null,null,null,null,null,null,null,1,"1","2",{"$f":"OFFSET(N18,0,-1)+1","v":3},null,null,{"$f":"OFFSET(Q18,0,-3)+1","v":4},null,null,null,{"$f":"OFFSET(U18,0,-4)+1","v":5},null,null,null,null,null,{"$f":"OFFSET(U18,0,0)+1","v":6},{"$f":"AA18","v":6},{"$f":"OFFSET(AC18,0,-1)+1","v":7},8,9,10,11,12,13,14,null,15]
[1,null,null,null,null,null,null,null,null,null,null,{"$f":"mergeValue(A19)","v":{"$error":"#NAME?"}},"Наименование тарифа",null,null,null,null,null,null,null,null,null,null,null,null,null,null,null,null,null,null,null,null,null,null,null,null,"Указывается наименование тарифа в случае утверждения нескольких тарифов.\nВ случае наличия нескольких тарифов информация по ним указывается в отдельных строках."]
[null,1,null,null,null,null,null,null,null,null,null,{"$f":"mergeValue(A20) &\".\"& mergeValue(B20)","v":{"$error":"#NAME?"}},"Территория действия тарифа",null,null,null,null,null,null,null,null,null,null,null,null,null,null,null,null,null,null,null,null,null,null,null,null,"Указывается наименование территории действия тарифа при наличии дифференциации тарифа по территориальному признаку.\nВ случае дифференциации тарифов по территориальному признаку информация по ним указывается в отдельных строках."]
[null,null,1,null,null,null,null,null,null,null,null,{"$f":"mergeValue(A21) &\".\"& mergeValue(B21)&\".\"& mergeValue(C21)","v":{"$error":"#NAME?"}},"Наименование централизованной системы водоотведения",null,null,null,null,null,null,null,null,null,null,null,null,null,null,null,null,null,null,null,null,null,null,null,null,"Указывается наименование централизованной системы водоотведения при наличии дифференциации тарифа по централизованным системам водоотведения.\nВ случае дифференциации тарифов по централизованным системам водоотведения информация по ним указывается в отдельных строках."]
[null,null,null,1,null,null,null,null,null,null,null,{"$f":"mergeValue(A22) &\".\"& mergeValue(B22)&\".\"& mergeValue(C22)&\".\"& mergeValue(D22)","v":{"$error":"#NAME?"}},null,null,"1",null,"нет",null,1,null,"нет",null,"1",null,"нет",null,1,null,null,null,null,null,null,"да",null,"нет",null,"В колодке «Параметр дифференциации тарифа/Заявитель» указывается наименование категории потребителей, к которой относится тариф.\nДаты начала и окончания указываются в виде «ДД.ММ.ГГГГ».\nВ случае отсутствия даты окончания тарифа в колонке «Дата окончания» указывается «Нет».\nВ случае наличия дифференциации по подключаемой нагрузке, диапазону диаметров, протяженности, условиям прокладки канализационной сети информация по ним указывается в отдельных строках.\nВ случае дифференциации тарифов по периодам действия тарифа информация по ним указывается в отдельных колонках.",{"$f":"strCheckDateOnDP(AC22:AK22,List06_10_DP)","v":{"$error":"#NAME?"}},{"$f":"IF(AND(COUNTIF(AO18:AO26,AO22)>1,AO22<>\"\"),\"ErrUnique:HasDoubleConn\",\"\")","v":""}]
[null,null,null,null,null,null,null,null,null,null,null,null,null,null,null,null,null,null,null,null,null,null,null,null,null,null,null,null,null,null,null,{"$f":"AG22 & \"-\" & AI22","v":"-"},null,null,null,"нет"]
[]
[]
[null,null,null,null,null,null,null,null,null,null,null,null,null,null,null,"Добавить подключаемую нагрузку"]
[null,null,null,null,null,null,null,null,null,null,null,null,"Добавить строку"]
[null,null,null,null,null,null,null,null,null,null,null,null,"Добавить наименование системы водоотведения"]
[null,null,null,null,null,null,null,null,null,null,null,null,"Добавить территорию действия тарифа"]
[null,null,null,null,null,null,null,null,null,null,null,null,"Добавить наименование тарифа"]
[]
[null,null,null,null,null,null,null,null,null,null,null,null,"1 При размещении информации дополнительно указываются: наименование органа регулирования тарифов, принявшего решение об утверждении(изменении) тарифа, дата и номер документа об утверждении(изменении) тарифа, источник официального опубликования решения."]

{"sheet":"Форма 1.0.1 | Форма 3.9","index":14,"n_rows":15,"n_cols":10,"rows_kept":15,"cut":false,"hidden":false,"merged":[[14,6,14,7],[1,5,1,7],[3,5,3,7],[3,8,4,8],[7,0,12,0],[10,1,12,1],[11,2,12,2]]}
["11"]
[null,null,null,null,null,"Форма 1.0.1 Основные параметры раскрываемой информации 1"]
[]
[null,null,null,null,null,"Параметры формы",null,null,"Описание параметров формы"]
[null,null,null,null,null,"№ п/п","Наименование параметра","Информация"]
[null,null,null,null,null,"1",2,3,4,4]
[null,null,null,null,null,1,"Дата заполнения/внесения изменений",{"$f":"IF(dateCh=\"\",\"\",dateCh)","v":"09.12.2022"},"Указывается календарная дата первичного заполнения или внесения изменений в форму в виде «ДД.ММ.ГГГГ»."]
[1,null,null,null,null,{"$f":"\"2.\" &mergeValue(A8)","v":{"$error":"#NAME?"}},"Наименование централизованной системы коммунальной инфраструктуры",{"$f":"IF('Перечень тарифов'!R21=\"\",\"наименование отсутствует\",\"\" & 'Перечень тарифов'!R21 & \"\")","v":"наименование отсутствует"},"Указывается наименование централизованной системы холодного водоснабжения/горячего водоснабжения/водоотведения/теплоснабжения, к которой относится размещаемая информация.\nВ случае наличия нескольких централизованных систем коммунальной инфраструктуры, информация по каждой из них указывается в отдельной строке."]
[null,null,null,null,null,{"$f":"\"3.\" &mergeValue(A9)","v":{"$error":"#NAME?"}},"Наименование регулируемого вида деятельности",{"$f":"IF('Перечень тарифов'!F21=\"\",\"наименование отсутствует\",\"\" & 'Перечень тарифов'!F21 & \"\")","v":"Водоотведение"},"Указывается наименование вида регулируемой деятельности."]
[null,null,null,null,null,{"$f":"\"4.\"&mergeValue(A10)","v":{"$error":"#NAME?"}},"Территория оказания услуги по регулируемому виду деятельности","x"]
[null,1,null,null,null,{"$f":"\"4.\"&mergeValue(A11) &\".\"&mergeValue(B11)","v":{"$error":"#NAME?"}},"Субъект Российской Федерации",{"$f":"IF(region_name=\"\",\"\",region_name)","v":"Новосибирская область"},"Указывается наименование субъекта Российской Федерации"]
[null,null,1,null,null,{"$f":"\"4.\"&mergeValue(A12) &\".\"&mergeValue(B12)&\".\"&mergeValue(C12)","v":{"$error":"#NAME?"}},"муниципальный район",{"$f":"IF(Территории!H13=\"\",\"\",\"\" & Территории!H13 & \"\")","v":"Новосибирский муниципальный район"},"Указывается наименование муниципального района, на территории которого организация оказывает услуги по регулируемому виду деятельности."]
[null,null,null,1,null,{"$f":"\"4.\"&mergeValue(A13) &\".\"&mergeValue(B13)&\".\"&mergeValue(C13)&\".\"&mergeValue(D13)","v":{"$error":"#NAME?"}},"муниципальное образование",{"$f":"IF(Территории!R14=\"\",\"\",\"\" & Территории!R14 & \"\")","v":"Криводановское (50640419)"},"Указывается наименование и код муниципального района, муниципального образования в соответствии с Общероссийским классификатором территорий муниципальных образований (далее - ОКТМО), входящего в муниципальный район, на территории которого организация оказывает услуги по регулируемому виду деятельности.\nВ случае оказания услуг по регулируемому виду деятельности на территории нескольких муниципальных районов (муниципальных образований) данные по каждому их них указываются в отдельной строке."]
[]
[null,null,null,null,null,null,"  1 Информация размещается при раскрытии информации по каждой из форм."]

{"sheet":"Форма 3.9","index":15,"n_rows":16,"n_cols":7,"rows_kept":16,"cut":false,"hidden":false,"merged":[[6,3,6,5],[6,6,7,6],[11,6,12,6],[14,6,15,6],[4,3,4,5]]}
[]
[]
[]
[]
[null,null,null,"Форма 3.9 Информация об условиях, на которых осуществляется поставка регулируемых товаров и (или) оказание регулируемых услуг"]
[]
[null,null,null,"Параметры формы",null,null,"Описание параметров формы"]
[null,null,null,"№ п/п","Наименование параметра","Ссылка на документ"]
[null,null,null,"1","2","3","4"]
[null,null,null,1,"Сведения об условиях публичных договоров поставок регулируемых товаров, оказания регулируемых услуг, в том числе договоров о подключении к централизованной системе водоотведения","x"]
[null,null,null,"1.1","форма публичного договора поставки регулируемых товаров, оказания регулируемых услуг","x"]
[null,null,null,"1.1.1","форма договора","https://portal.eias.ru/Portal/DownloadPage.aspx?type=12&guid=b73ee606-c343-4345-b4d1-93f6f667d76d","Указывается форма договора, используемая регулируемой организацией, в виде ссылки на документ, предварительно загруженный в хранилище файлов ФГИС ЕИАС.\nВ случае наличия нескольких форм таких договоров информация по каждой из них указывается в отдельной строке."]
[null,null,null,null,"Добавить сведения"]
[null,null,null,"1.2","договор о подключении к централизованной системе водоотведения","x"]
[null,null,null,"1.2.1","форма договора","https://portal.eias.ru/Portal/DownloadPage.aspx?type=12&guid=b73ee606-c343-4345-b4d1-93f6f667d76d","Информация размещается в случае, если регулируемая организация осуществляет услуги по подключению (технологическому присоединению) к централизованной системе водоотведения.\nУказывается ссылка на документ, предварительно загруженный в хранилище файлов ФГИС ЕИАС.\nВ случае наличия нескольких договоров о подключении к централизованной системе водоотведения информация по каждому из них указывается в отдельной строке."]
[null,null,null,null,"Добавить сведения"]

{"sheet":"Форма 1.0.1 | Форма 3.10","index":16,"n_rows":15,"n_cols":10,"rows_kept":15,"cut":false,"hidden":false,"merged":[[14,6,14,7],[1,5,1,7],[3,5,3,7],[3,8,4,8],[7,0,12,0],[10,1,12,1],[11,2,12,2]]}
["11"]
[null,null,null,null,null,"Форма 1.0.1 Основные параметры раскрываемой информации 1"]
[]
[null,null,null,null,null,"Параметры формы",null,null,"Описание параметров формы"]
[null,null,null,null,null,"№ п/п","Наименование параметра","Информация"]
[null,null,null,null,null,"1",2,3,4,4]
[null,null,null,null,null,1,"Дата заполнения/внесения изменений",{"$f":"IF(dateCh=\"\",\"\",dateCh)","v":"09.12.2022"},"Указывается календарная дата первичного заполнения или внесения изменений в форму в виде «ДД.ММ.ГГГГ»."]
[1,null,null,null,null,{"$f":"\"2.\" &mergeValue(A8)","v":{"$error":"#NAME?"}},"Наименование централизованной системы коммунальной инфраструктуры",{"$f":"IF('Перечень тарифов'!R21=\"\",\"наименование отсутствует\",\"\" & 'Перечень тарифов'!R21 & \"\")","v":"наименование отсутствует"},"Указывается наименование централизованной системы холодного водоснабжения/горячего водоснабжения/водоотведения/теплоснабжения, к которой относится размещаемая информация.\nВ случае наличия нескольких централизованных систем коммунальной инфраструктуры, информация по каждой из них указывается в отдельной строке."]
[null,null,null,null,null,{"$f":"\"3.\" &mergeValue(A9)","v":{"$error":"#NAME?"}},"Наименование регулируемого вида деятельности",{"$f":"IF('Перечень тарифов'!F21=\"\",\"наименование отсутствует\",\"\" & 'Перечень тарифов'!F21 & \"\")","v":"Водоотведение"},"Указывается наименование вида регулируемой деятельности."]
[null,null,null,null,null,{"$f":"\"4.\"&mergeValue(A10)","v":{"$error":"#NAME?"}},"Территория оказания услуги по регулируемому виду деятельности","x"]
[null,1,null,null,null,{"$f":"\"4.\"&mergeValue(A11) &\".\"&mergeValue(B11)","v":{"$error":"#NAME?"}},"Субъект Российской Федерации",{"$f":"IF(region_name=\"\",\"\",region_name)","v":"Новосибирская область"},"Указывается наименование субъекта Российской Федерации"]
[null,null,1,null,null,{"$f":"\"4.\"&mergeValue(A12) &\".\"&mergeValue(B12)&\".\"&mergeValue(C12)","v":{"$error":"#NAME?"}},"муниципальный район",{"$f":"IF(Территории!H13=\"\",\"\",\"\" & Территории!H13 & \"\")","v":"Новосибирский муниципальный район"},"Указывается наименование муниципального района, на территории которого организация оказывает услуги по регулируемому виду деятельности."]
[null,null,null,1,null,{"$f":"\"4.\"&mergeValue(A13) &\".\"&mergeValue(B13)&\".\"&mergeValue(C13)&\".\"&mergeValue(D13)","v":{"$error":"#NAME?"}},"муниципальное образование",{"$f":"IF(Территории!R14=\"\",\"\",\"\" & Территории!R14 & \"\")","v":"Криводановское (50640419)"},"Указывается наименование и код муниципального района, муниципального образования в соответствии с Общероссийским классификатором территорий муниципальных образований (далее - ОКТМО), входящего в муниципальный район, на территории которого организация оказывает услуги по регулируемому виду деятельности.\nВ случае оказания услуг по регулируемому виду деятельности на территории нескольких муниципальных районов (муниципальных образований) данные по каждому их них указываются в отдельной строке."]
[]
[null,null,null,null,null,null,"  1 Информация размещается при раскрытии информации по каждой из форм."]

{"sheet":"Форма 3.10","index":17,"n_rows":34,"n_cols":12,"rows_kept":34,"cut":false,"hidden":false,"merged":[[33,4,33,8],[29,4,29,7],[20,4,20,7],[23,4,23,7],[26,4,26,7],[21,8,22,8],[24,8,25,8],[27,8,28,8],[30,8,31,8],[17,8,18,8],[19,4,19,7],[4,3,4,7],[6,3,6,7],[6,8,7,8],[9,4,9,7],[13,4,13,7],[14,8,15,8],[16,4,16,7]]}
[]
[]
[]
[]
[null,null,null,"Форма 3.10 Информация о порядке выполнения технологических, технических и других мероприятий, связанных с подключением к централизованной системе водоотведения1"]
[]
[null,null,null,"Параметры формы",null,null,null,null,"Описание параметров формы"]
[null,null,null,"№ п/п","Наименование параметра",null,"Информация","Ссылка на документ"]
[null,null,null,"1","2",null,"3","4","5"]
[null,null,null,1,"Информация о размещении данных на сайте регулируемой организации"]
[null,null,null,"1.1","дата размещения информации",null,"01.12.2022","x","Дата размещения информации указывается в виде «ДД.ММ.ГГГГ»."]
[null,null,null,"1.2","адрес страницы сайта в сети «Интернет» и ссылка на документ",null,"https://mup-kriv.wixsite.com/krivodanovskoe","https://portal.eias.ru/Portal/DownloadPage.aspx?type=12&guid=88577893-f0cc-493d-8d6f-aabc3a05e23e","В колонке «Информация» указывается адрес страницы сайта в сети «Интернет», на которой размещена информация.\nВ колонке «Ссылка на документ» указывается ссылка на скриншот страницы сайта в сети «Интернет», предварительно загруженный в хранилище файлов ФГИС ЕИАС, на которой размещена информация."]
[null,3,null,2,"Форма заявки о подключении к централизованной системе водоотведения",null,"x","https://portal.eias.ru/Portal/DownloadPage.aspx?type=12&guid=e6489433-f451-4b6c-948f-84bc3a0db2b9","Указывается ссылка на документ, предварительно загруженный в хранилище файлов ФГИС ЕИАС."]
[null,null,null,3,"Перечень документов и сведений, представляемых одновременно с заявкой о подключении к централизованной системе водоотведения, и указание на запрет требовать представления документов и сведений или осуществления действий, представление или осуществление которых не предусмотрено законодательством Российской Федерации о градостроительной деятельности и законодательством в сфере водоснабжения и водоотведения"]
[null,null,null,"3.1","Памятка для потребителей услуг",null,"x","https://portal.eias.ru/Portal/DownloadPage.aspx?type=12&guid=ebf830b6-bb7e-4faa-8e97-2cd1b2d9e8c5","Указывается ссылка на документ, предварительно загруженный в хранилище файлов ФГИС ЕИАС.\nВ случае наличия дополнительных сведений информация по ним указывается в отдельных строках."]
[null,null,null,null,"Добавить сведения"]
[null,3,null,4,"Реквизиты НПА, регламентирующих порядок действий заявителя и регулируемой организации при подаче, приеме, обработке заявки о подключении к централизованной системе водоотведения (в том числе в форме электронного документа), принятии решения и информировании о принятом по результатам рассмотрения указанной заявки решении (возврат документов, прилагаемых к заявке о подключении к централизованной системе водоотведения, либо направление подписанного проекта договора о подключении к централизованной системе водоотведения), основания для отказа в принятии к рассмотрению документов, прилагаемых к заявлению о подключении к централизованной системе водоотведения, в подписании договора о подключении к централизованной системе водоотведения"]
[null,null,null,"4.1","наименование НПА",null,"постановлением Правительства Российской Федерации от 13 февраля 2006 г. N 83 \"Об утверждении Правил определения и предоставления технических условий подключения объекта капитального строительства к сетям инженерно-технического ","x","В колонке «Информация» указывается полное наименование и реквизиты НПА.\nВ случае наличия нескольких НПА каждое из них указывается в отдельной строке."]
[null,null,null,null,"Добавить сведения"]
[null,3,null,5,"Телефоны, адреса и график работы службы, ответственной за прием и обработку заявок о подключении к централизованной системе водоотведения"]
[null,null,null,"5.1","телефоны службы, ответственной за прием и обработку заявок о подключении к централизованной системе водоотведения"]
[null,null,null,"5.1.1","контактный телефон службы",null,"8 (383) 297-47-72","x","Указывается номер контактного телефона службы, ответственной за прием и обработку заявок о подключении к централизованной системе водоотведения. \nВ случае наличия нескольких служб и (или) номеров телефонов, информация по каждому из них указывается в отдельной строке."]
[null,null,null,null,"Добавить сведения"]
[null,null,null,"5.2","адреса службы, ответственной за прием и обработку заявок о подключении к централизованной системе водоотведения"]
[null,null,null,"5.2.1","адрес службы",null,"РФ, Новосибирская область, Новосибирский район, с. Криводановка, ул. Садовая, д. 20а","x","Указывается наименование субъекта Российской Федерации, муниципального района, города, иного населенного пункта, улицы, номер дома, при необходимости указывается корпус, строение, литера или дополнительная территория. Данные указываются согласно наименованиям адресных объектов в ФИАС.\nВ случае наличия нескольких служб и (или) адресов, информация по каждому из них указывается в отдельной строке."]
[null,null,null,null,"Добавить сведения"]
[null,null,null,"5.3","график работы службы, ответственной за прием и обработку заявок о подключении к централизованной системе водоотведения"]
[null,null,null,"5.3.1","график работы службы",null,"c 08:30 до 16:42","x","Указывается график работы службы, ответственной за прием и обработку заявок о подключении к централизованной системе водоотведения. \nВ случае наличия нескольких служб и (или) графиков работы, информация по каждому из них указывается в отдельной строке.",null,null,"c 08:30 до 16:42"]
[null,null,null,null,"Добавить сведения"]
[null,3,null,"6","Регламент подключения к централизованной системе водоотведения, утверждаемый регулируемой организацией, включающий сроки, состав и последовательность действий при осуществлении подключения к централизованной системе водоотведения, сведения о размере платы за услуги по подключению к централизованной системе водоотведения, информацию о месте нахождения и графике работы, справочных телефонах, адресе официального сайта регулируемой организации в сети «Интернет» и блок-схему, отражающую графическое изображение последовательности действий, осуществляемых при подключении к централизованной системе водоотведения"]
[null,null,null,"6.1","Приказ департамента по тарифам Новосибирской области №463-В от 18.11.2022г.",null,"x","https://portal.eias.ru/Portal/DownloadPage.aspx?type=12&guid=f5abce25-48ee-4c3b-9621-2a2dc928b091","Указывается ссылка на документ, предварительно загруженный в хранилище файлов ФГИС ЕИАС.\nВ случае наличия дополнительных сведений информация по ним указывается в отдельных строках."]
[null,null,null,null,"Добавить сведения"]
[]
[null,null,null,1,"Информация раскрывается в случае, если регулируемая организация осуществляет услуги по подключению (технологическому присоединению) к централизованной системе водоотведения."]

{"sheet":"Форма 1.0.2","index":18,"n_rows":15,"n_cols":13,"rows_kept":15,"cut":false,"hidden":true,"merged":[[4,3,4,9],[14,4,14,9],[11,10,12,10],[7,3,7,9],[8,4,8,5],[7,10,9,10],[8,6,8,9],[8,3,9,3]]}
[]
[]
[]
[]
[null,null,null,"Форма 1.0.2 Информация о публикации в печатных изданиях 2"]
[]
[]
[null,null,null,"Параметры формы",null,null,null,null,null,null,"Описание параметров формы"]
[null,null,null,"№ п/п","Форма публикации",null,"Официальное печатное издание"]
[null,null,null,null,"Номер","Наименование","Наименование","Номер","Дата выпуска","Ссылка на документ"]
[null,null,null,"1","2","3","4","5","6","7","8"]
["3","",null,"1",null,null,null,null,null,null,"В колонке «Дата выпуска» дата выпуска печатного издания указывается в виде «ДД.ММ.ГГГГ».\nВ колонке «Ссылка на документ» указывается ссылка на отсканированную копию печатного издания, предварительно загруженную в хранилище федеральной государственной информационной системы «Единая информационно-аналитическая система «Федеральный орган регулирования - региональные органы регулирования - субъекты регулирования» (далее – ФГИС ЕИАС), с опубликованной информацией.\nВ случае публикации информации в нескольких печатных изданиях информация по каждому из них указывается в отдельной строке.",null,{"$f":"IF(ISERROR(INDEX(kind_of_nameforms,MATCH(E12,kind_of_forms,0),1)),\"\",INDEX(kind_of_nameforms,MATCH(E12,kind_of_forms,0),1))","v":""}]
[null,null,null,null,"Добавить строку"]
[]
[null,null,null,null,"2 Размещается информация по каждой из форм раскрытия, данные в которой относятся к муниципальному образованию, в котором отсутствует доступ в сеть «Интернет»."]

{"sheet":"Сведения об изменении","index":19,"n_rows":15,"n_cols":5,"rows_kept":15,"cut":false,"hidden":true,"merged":[[6,3,6,4],[14,3,14,4]]}
[]
[]
[]
[]
[]
[]
[null,null,null,"Сведения об изменениях в первоначально опубликованной информации*"]
[]
[null,null,null,"№ п/п","Сведения"]
[null,null,null,"1","2"]
[null,null,null,0]
[null,null,null,1]
[null,null,null,null,"Добавить"]
[]
[null,null,null,"* Лист заполняется в случае, если на Титульном листе в поле \"Тип отчета\" выбрано значение «Изменения в раскрытой ранее информации»."]

{"sheet":"Комментарии","index":20,"n_rows":12,"n_cols":5,"rows_kept":12,"cut":false,"hidden":false,"merged":[[6,3,6,4]]}
[]
[]
[]
[]
[]
[]
[null,null,null,"Комментарии"]
[]
[null,null,null,"№ п/п","Комментарий"]
[null,null,null,"1","2"]
[null,null,null,0]
[null,null,null,null,"Добавить"]

{"sheet":"Проверка","index":21,"n_rows":4,"n_cols":4,"rows_kept":4,"cut":false,"hidden":false,"merged":[[1,1,1,3]]}
[]
[null,"Результат проверки"]
[]
[null,"Ссылка","Причина","Статус"]

{"sheet":"modListTempFilter","index":22,"n_rows":0,"n_cols":0,"rows_kept":0,"cut":false,"hidden":true,"merged":[]}

{"sheet":"modCheckCyan","index":23,"n_rows":66,"n_cols":1,"rows_kept":66,"cut":false,"hidden":true,"merged":[]}
[{"$f":"IF('Форма 3.2 | Т-ВО'!$O$22=\"\",1,0)","v":0}]
[{"$f":"IF('Форма 3.2 | Т-ВО'!$R$23=\"\",1,0)","v":0}]
[{"$f":"IF('Форма 3.2 | Т-ВО'!$T$23=\"\",1,0)","v":0}]
[{"$f":"IF('Форма 3.2 | Т-ВО'!$S$23=\"\",1,0)","v":0}]
[{"$f":"IF('Форма 3.2 | Т-ВО'!$U$23=\"\",1,0)","v":0}]
[{"$f":"IF('Форма 3.2 | Т-транс'!$O$22=\"\",1,0)","v":1}]
[{"$f":"IF('Форма 3.2 | Т-транс'!$R$23=\"\",1,0)","v":1}]
[{"$f":"IF('Форма 3.2 | Т-транс'!$T$23=\"\",1,0)","v":1}]
[{"$f":"IF('Форма 3.2 | Т-транс'!$S$23=\"\",1,0)","v":0}]
[{"$f":"IF('Форма 3.2 | Т-транс'!$U$23=\"\",1,0)","v":0}]
[{"$f":"IF('Форма 3.4 | Т-подкл(инд)'!$M$22=\"\",1,0)","v":1}]
[{"$f":"IF('Форма 3.4 | Т-подкл(инд)'!$Q$22=\"\",1,0)","v":1}]
[{"$f":"IF('Форма 3.4 | Т-подкл(инд)'!$AD$22=\"\",1,0)","v":1}]
[{"$f":"IF('Форма 3.4 | Т-подкл(инд)'!$AE$22=\"\",1,0)","v":1}]
[{"$f":"IF('Форма 3.4 | Т-подкл(инд)'!$AF$22=\"\",1,0)","v":1}]
[{"$f":"IF('Форма 3.4 | Т-подкл(инд)'!$AG$22=\"\",1,0)","v":1}]
[{"$f":"IF('Форма 3.4 | Т-подкл(инд)'!$AH$22=\"\",1,0)","v":1}]
[{"$f":"IF('Форма 3.4 | Т-подкл(инд)'!$AJ$22=\"\",1,0)","v":1}]
[{"$f":"IF('Форма 3.4 | Т-подкл(инд)'!$N$22=\"\",1,0)","v":0}]
[{"$f":"IF('Форма 3.4 | Т-подкл(инд)'!$R$22=\"\",1,0)","v":0}]
[{"$f":"IF('Форма 3.4 | Т-подкл(инд)'!$V$22=\"\",1,0)","v":0}]
[{"$f":"IF('Форма 3.4 | Т-подкл(инд)'!$Z$22=\"\",1,0)","v":0}]
[{"$f":"IF('Форма 3.4 | Т-подкл(инд)'!$AI$22=\"\",1,0)","v":0}]
[{"$f":"IF('Форма 3.4 | Т-подкл(инд)'!$AK$22=\"\",1,0)","v":0}]
[{"$f":"IF('Форма 3.4 | Т-подкл'!$P$22=\"\",1,0)","v":1}]
[{"$f":"IF('Форма 3.4 | Т-подкл'!$AC$22=\"\",1,0)","v":1}]
[{"$f":"IF('Форма 3.4 | Т-подкл'!$AD$22=\"\",1,0)","v":1}]
[{"$f":"IF('Форма 3.4 | Т-подкл'!$AE$22=\"\",1,0)","v":1}]
[{"$f":"IF('Форма 3.4 | Т-подкл'!$AF$22=\"\",1,0)","v":1}]
[{"$f":"IF('Форма 3.4 | Т-подкл'!$AG$22=\"\",1,0)","v":1}]
[{"$f":"IF('Форма 3.4 | Т-подкл'!$AI$22=\"\",1,0)","v":1}]
[{"$f":"IF('Форма 3.4 | Т-подкл'!$Q$22=\"\",1,0)","v":0}]
[{"$f":"IF('Форма 3.4 | Т-подкл'!$U$22=\"\",1,0)","v":0}]
[{"$f":"IF('Форма 3.4 | Т-подкл'!$Y$22=\"\",1,0)","v":0}]
[{"$f":"IF('Форма 3.4 | Т-подкл'!$AH$22=\"\",1,0)","v":0}]
[{"$f":"IF('Форма 3.4 | Т-подкл'!$AJ$22=\"\",1,0)","v":0}]
[{"$f":"IF('Форма 3.9'!$E$12=\"\",1,0)","v":0}]
[{"$f":"IF('Форма 3.9'!$F$12=\"\",1,0)","v":0}]
[{"$f":"IF('Форма 3.10'!$G$11=\"\",1,0)","v":0}]
[{"$f":"IF('Форма 3.10'!$G$12=\"\",1,0)","v":0}]
[{"$f":"IF('Форма 3.10'!$H$12=\"\",1,0)","v":0}]
[{"$f":"IF('Форма 3.10'!$H$13=\"\",1,0)","v":0}]
[{"$f":"IF('Форма 3.10'!$E$15=\"\",1,0)","v":0}]
[{"$f":"IF('Форма 3.10'!$H$15=\"\",1,0)","v":0}]
[{"$f":"IF('Форма 3.10'!$G$18=\"\",1,0)","v":0}]
[{"$f":"IF('Форма 3.10'!$G$22=\"\",1,0)","v":0}]
[{"$f":"IF('Форма 3.10'!$G$25=\"\",1,0)","v":0}]
[{"$f":"IF('Форма 3.10'!$E$31=\"\",1,0)","v":0}]
[{"$f":"IF('Форма 3.10'!$H$31=\"\",1,0)","v":0}]
[{"$f":"IF('Форма 3.10'!$G$28=\"\",1,0)","v":0}]
[{"$f":"IF('Форма 1.0.2'!$E$12=\"\",1,0)","v":1}]
[{"$f":"IF('Форма 1.0.2'!$F$12=\"\",1,0)","v":1}]
[{"$f":"IF('Форма 1.0.2'!$G$12=\"\",1,0)","v":1}]
[{"$f":"IF('Форма 1.0.2'!$H$12=\"\",1,0)","v":1}]
[{"$f":"IF('Форма 1.0.2'!$I$12=\"\",1,0)","v":1}]
[{"$f":"IF('Форма 1.0.2'!$J$12=\"\",1,0)","v":1}]
[{"$f":"IF('Сведения об изменении'!$E$12=\"\",1,0)","v":1}]
[{"$f":"IF('Форма 3.9'!$F$15=\"\",1,0)","v":0}]
[{"$f":"IF('Форма 3.9'!$E$15=\"\",1,0)","v":0}]
[{"$f":"IF(Территории!$E$12=\"\",1,0)","v":0}]
[{"$f":"IF('Перечень тарифов'!$E$21=\"\",1,0)","v":0}]
[{"$f":"IF('Перечень тарифов'!$F$21=\"\",1,0)","v":0}]
[{"$f":"IF('Перечень тарифов'!$G$21=\"\",1,0)","v":0}]
[{"$f":"IF('Перечень тарифов'!$K$21=\"\",1,0)","v":0}]
[{"$f":"IF('Перечень тарифов'!$O$21=\"\",1,0)","v":0}]
[{"$f":"IF('Форма 3.2 | Т-ВО'!$O$23=\"\",1,0)","v":0}]

{"sheet":"REESTR_LINK","index":24,"n_rows":3,"n_cols":3,"rows_kept":3,"cut":false,"hidden":true,"merged":[]}
["ID","LINK_NAME","REGION"]
[4189678,"https://portal.eias.ru/Portal/DownloadPage.aspx?type=12&guid=????????-????-????-????-????????????","ALL"]
[4190415,"https://eias.fstrf.ru/disclo/get_file?p_guid=????????-????-????-????-????????????","ALL"]

{"sheet":"REESTR_DS","index":25,"n_rows":6,"n_cols":2,"rows_kept":6,"cut":false,"hidden":true,"merged":[]}
[]
[]
[null,"Новосибирский муниципальный район, Криводановское (50640419);"]
[null,"территория 2"]
[null,"территория 3"]
[null,"территория 4"]

{"sheet":"modHTTP","index":26,"n_rows":0,"n_cols":0,"rows_kept":0,"cut":false,"hidden":true,"merged":[]}

{"sheet":"modfrmRezimChoose","index":27,"n_rows":0,"n_cols":0,"rows_kept":0,"cut":false,"hidden":true,"merged":[]}

{"sheet":"modSheetMain","index":28,"n_rows":1,"n_cols":2,"rows_kept":1,"cut":false,"hidden":true,"merged":[]}
["Форма","Листы"]

{"sheet":"REESTR_VT","index":29,"n_rows":5,"n_cols":2,"rows_kept":5,"cut":false,"hidden":true,"merged":[]}
["ID_TARIFF_NAME","TARIFF_NAME"]
[4213771,"Тариф на подключение (технологическое присоединение) к централизованной системе водоотведения в индивидуальном порядке"]
[4213772,"Тариф на подключение (технологическое присоединение) к централизованной системе водоотведения"]
[4213773,"Тариф на транспортировку сточных вод"]
[4213774,"Тариф на водоотведение"]

{"sheet":"REESTR_VED","index":30,"n_rows":4,"n_cols":2,"rows_kept":4,"cut":false,"hidden":true,"merged":[]}
["ID_TARIFF_NAME","VED_NAME"]
[4189714,"Водоотведение"]
[4189713,"Транспортировка"]
[4189712,"Подключение (технологическое присоединение) к централизованной системе водоотведения"]

{"sheet":"modfrmReestrObj","index":31,"n_rows":0,"n_cols":0,"rows_kept":0,"cut":false,"hidden":true,"merged":[]}

{"sheet":"AllSheetsInThisWorkbook","index":32,"n_rows":42,"n_cols":2,"rows_kept":42,"cut":false,"hidden":true,"merged":[]}
["Расчетные листы","Скрытые листы"]
["Instruction","modList00"]
["modUpdTemplLogger","modListTempFilter"]
["List00","modCheckCyan"]
["List01","REESTR_LINK"]
["List02","REESTR_DS"]
["List05_1","modHTTP"]
["List06_1","modfrmRezimChoose"]
["List05_2","modSheetMain"]
["List06_2","REESTR_VT"]
["List05_9","REESTR_VED"]
["List06_9","modfrmReestrObj"]
["List05_10","AllSheetsInThisWorkbook"]
["List06_10","TSH_et_union_vert"]
["List05_11","modInstruction"]
["List11","modRegion"]
["List12","modReestr"]
["List03","modfrmReestr"]
["List07","modUpdTemplMain"]
["ListComm","TSH_REESTR_ORG"]
["ListCheck","modClassifierValidate"]
[null,"modProv"]
[null,"modHyp"]
[null,"modServiceModule"]
[null,"modList01"]
[null,"modList02"]
[null,"modList03"]
[null,"TSH_et_union_hor"]
[null,"TSH_REESTR_MO_FILTER"]
[null,"TSH_REESTR_MO"]
[null,"TEHSHEET"]
[null,"modInfo"]
[null,"modList05"]
[null,"modList06"]
[null,"modList07"]
[null,"modList11"]
[null,"modList12"]
[null,"modfrmDateChoose"]
[null,"modComm"]
[null,"modThisWorkbook"]
[null,"modfrmReestrMR"]
[null,"modfrmCheckUpdates"]

{"sheet":"et_union_vert","index":33,"n_rows":0,"n_cols":0,"rows_kept":0,"cut":false,"hidden":true,"merged":[]}

{"sheet":"modInstruction","index":34,"n_rows":0,"n_cols":0,"rows_kept":0,"cut":false,"hidden":true,"merged":[]}

{"sheet":"modRegion","index":35,"n_rows":0,"n_cols":0,"rows_kept":0,"cut":false,"hidden":true,"merged":[]}

{"sheet":"modReestr","index":36,"n_rows":0,"n_cols":0,"rows_kept":0,"cut":false,"hidden":true,"merged":[]}

{"sheet":"modfrmReestr","index":37,"n_rows":0,"n_cols":0,"rows_kept":0,"cut":false,"hidden":true,"merged":[]}

{"sheet":"modUpdTemplMain","index":38,"n_rows":0,"n_cols":0,"rows_kept":0,"cut":false,"hidden":true,"merged":[]}

{"sheet":"REESTR_ORG","index":39,"n_rows":140,"n_cols":10,"rows_kept":140,"cut":false,"hidden":true,"merged":[]}
["№","REGION_ID","REGION_NAME","RST_ORG_ID","ORG_NAME","INN_NAME","KPP_NAME","ORG_START_DATE","ORG_END_DATE"]
[1,"2656","Новосибирская область","26429329","АО \"Аэропорт Толмачево\"","5448100208","544801001",null,null,"VO"]
[2,"2656","Новосибирская область","26458913","АО \"БетЭлТранс\" в лице Горновского завода СЖБ - филиала АО \"БЭТ\"","7708669867","543802001",null,null,"VO"]
[3,"2656","Новосибирская область","30401246","АО \"ГУ ЖКХ\"","5116000922","540645001",null,null,"VO"]
[4,"2656","Новосибирская область","26373901","АО \"Кудряшовское\"","5433142195","543301001",null,null,"VO"]
[5,"2656","Новосибирская область","26450597","АО \"Купинский молочный комбинат\"","5429100523","542901001",null,null,"VO"]
[6,"2656","Новосибирская область","26499894","АО \"НЗИВ\"","5446013327","544601001",null,null,"VO"]
[7,"2656","Новосибирская область","28148595","АО \"Нефтебаза Красный Яр\"","5433162963","543301001",null,null,"VO"]
[8,"2656","Новосибирская область","31595651","АО \"Новосибирский КБК\"","5402483815","543301001",null,null,"VO"]
[9,"2656","Новосибирская область","26358496","АО \"Новосибирский мясоконсервный комбинат\"","5402100043","540201001",null,null,"VO"]
[10,"2656","Новосибирская область","31301926","АО \"ПО \"Север\"","5410079229","541001001","01-01-2019 00:00:00",null,"VO"]
[11,"2656","Новосибирская область","27579438","АО \"Преображенское\"","5443120264","544301001","02-10-2002 00:00:00",null,"VO"]
[12,"2656","Новосибирская область","26358845","АО \"Птицефабрика \"Евсинская\"","5443001027","544301001","30-03-2006 00:00:00",null,"VO"]
[13,"2656","Новосибирская область","26358655","АО \"Птицефабрика Чикская\"","5425001169","542501001",null,null,"VO"]
[14,"2656","Новосибирская область","26853010","АО \"СИБЭКО\"","5405270340","540601001","01-07-2011 00:00:00",null,"VO"]
[15,"2656","Новосибирская область","26449914","АО \"Санаторий \"Краснозерский\"","5427106382","542701001","29-01-2007 00:00:00",null,"VO"]
[16,"2656","Новосибирская область","26427149","АО \"Транснефть-Западная Сибирь\"","5502020634","546050001",null,null,"VO"]
[17,"2656","Новосибирская область","26534686","АО \"Транснефть-Западная Сибирь\" - Филиал НРНУ","5502020634","544232001","02-07-2010 00:00:00",null,"VO"]
[18,"2656","Новосибирская область","28870283","АО \"Транснефть-Западная Сибирь\" - Филиал НРНУ","5502020634","550101001","15-01-2015 00:00:00",null,"VO"]
[19,"2656","Новосибирская область","27556216","АО \"Управляющая компания \"Промышленно-логистический парк\"","5448452150","543301001",null,null,"VO"]
[20,"2656","Новосибирская область","27960241","ГАСУСО НСО \"Ояшинский дом-интернат\"","5432100428","543201001",null,null,"VO"]
[21,"2656","Новосибирская область","31515148","ЖСК \"Веста\"","5408305505","540801001","19-11-2013 00:00:00",null,"VO"]
[22,"2656","Новосибирская область","26358498","ЗАО \"Новосибагрореммаш\"","5402101784","540201001",null,null,"VO"]
[23,"2656","Новосибирская область","27568878","ЗАО \"Республиканское\"","5426100170","542601001","07-05-2002 00:00:00",null,"VO"]
[24,"2656","Новосибирская область","26358506","ЗАО \"Экран-Энергия\"","5402459280","540201001",null,null,"VO"]
[25,"2656","Новосибирская область","26835599","Западно-Сибирская Дирекция по тепловодоснабжению – структурное подразделение Центральной Дирекции по тепловодоснабжению – филиала ОАО «РЖД» (Омский терр-ный  участок, Новосибирский терр-ый участок, Алтайский  терр-ый участок)","7708503727","540745040","23-09-2003 00:00:00",null,"VO"]
[26,"2656","Новосибирская область","31504265","МБУ \"ФАСАД\"","5433961860","543301001","06-04-2017 00:00:00",null,"VO"]
[27,"2656","Новосибирская область","26491363","МКУ \"ЖКХ Останинского сельсовета\"","5435111724","543501001",null,null,"VO"]
[28,"2656","Новосибирская область","26491365","МКУ \"ЖКХ Чебаковского сельсовета\"","5435111700","543501001",null,null,"VO"]
[29,"2656","Новосибирская область","26533246","МКУ ДО ГРЦ ОООД \"ФОРУС\"","5410127095","541001001","29-05-2008 00:00:00",null,"VO"]
[30,"2656","Новосибирская область","31087532","МП \"Метро МиР\"","5406010778","540601001","03-02-2003 00:00:00",null,"VO"]
[31,"2656","Новосибирская область","30856944","МУП \" УК ЖКХ\" Р.П. ЧИСТООЗЕРНОЕ","5441175934","544101001",null,null,"VO"]
[32,"2656","Новосибирская область","31431475","МУП \"\"Коммунальные сети\" г.п.р.п. Мошково","5432002910","543201001",null,null,"VO"]
[33,"2656","Новосибирская область","26358565","МУП \"Блюдчанское ЖКХ\"","5415001106","541501001",null,null,"VO"]
[34,"2656","Новосибирская область","26374068","МУП \"Водоканал\"","5453175826","545301001","22-04-2006 00:00:00",null,"VO"]
[35,"2656","Новосибирская область","28981568","МУП \"Геострой\"","5452111026","545201001","01-01-2013 00:00:00",null,"VO"]
[36,"2656","Новосибирская область","26423887","МУП \"ДЗ ЖКХ п.Мичуринский\"","5433158614","543301001",null,null,"VO"]
[37,"2656","Новосибирская область","27959968","МУП \"ЖКХ-Коченево\"","5425002966","542501001",null,null,"VO"]
[38,"2656","Новосибирская область","27956372","МУП \"КБУ\"","5445118581","544501001",null,null,"VO"]
[39,"2656","Новосибирская область","28953208","МУП \"КРАСНОЗЕРСКИЙ ПОЛИГОН ТБО\"","5427108044","542701001","12-12-2014 00:00:00",null,"VO"]
[40,"2656","Новосибирская область","30991776","МУП \"КХ Чистоозёрное\"","5441000331","544101001",null,null,"VO"]
[41,"2656","Новосибирская область","26358626","МУП \"Каргатское жилищно-коммунальное хозяйство\"","5423000120","542301001","19-05-2005 00:00:00",null,"VO"]
[42,"2656","Новосибирская область","30985438","МУП \"Коммунальное хозяйство\" Мошковского района","5432001956","543201001","21-07-2017 00:00:00",null,"VO"]
[43,"2656","Новосибирская область","26358622","МУП \"Коммунальщик\"","5422110836","542201001",null,null,"VO"]
[44,"2656","Новосибирская область","30925002","МУП \"Криводановское\"","5433957889","543301001","02-06-2016 00:00:00",null,"VO"]
[45,"2656","Новосибирская область","30991769","МУП \"Ложок\"","5433960585","543301001","21-12-2016 00:00:00",null,"VO"]
[46,"2656","Новосибирская область","27955990","МУП \"Озеро-Карачинское коммунальное хозяйство\"","5415002090","541501001",null,null,"VO"]
[47,"2656","Новосибирская область","26649841","МУП \"РКЦ р.п. Линёво\"","5443004170","544301001","18-01-2010 00:00:00",null,"VO"]
[48,"2656","Новосибирская область","30351257","МУП \"Раздольненское водоснабжение\"","5433191509","543301001","01-09-2015 00:00:00",null,"VO"]
[49,"2656","Новосибирская область","26373894","МУП \"Станционно-Ояшинское ЖКХ\"","5432211706","543201001",null,null,"VO"]
[50,"2656","Новосибирская область","31348628","МУП \"ТеплоВодоКанал\"","5438001550","543801001","25-02-2019 00:00:00",null,"VO"]
[51,"2656","Новосибирская область","31431468","МУП \"Теплосервис\" г.п. р.п. Мошково","5432002928","543201001",null,null,"VO"]
[52,"2656","Новосибирская область","26358846","МУП \"УЖХ Промышленного сельсовета\"","5443001193","544301001","09-06-2006 00:00:00",null,"VO"]
[53,"2656","Новосибирская область","26374030","МУП \"УК Евсинского сельсовета\"","5443002599","544301001","18-06-2008 00:00:00",null,"VO"]
[54,"2656","Новосибирская область","31161412","МУП \"Центр модернизации ЖКХ\"","5438000780","543801001",null,null,"VO"]
[55,"2656","Новосибирская область","28454617","МУП \"Чернореченский коммунальный комплекс\"","5443005053","544301001",null,null,"VO"]
[56,"2656","Новосибирская область","26358660","МУП \"Чикское ППЖКХ\"","5425112768","542501001",null,null,"VO"]
[57,"2656","Новосибирская область","27556040","МУП «Коммунальное хозяйство»","5413113566","541301001",null,null,"VO"]
[58,"2656","Новосибирская область","31227519","МУП ДЕЗ ЖКХ \"Армейский\"","5433963716","543301001",null,null,"VO"]
[59,"2656","Новосибирская область","26358732","МУП ДЕЗ ЖКХ \"Березовское\"","5433159505","543301001",null,null,"VO"]
[60,"2656","Новосибирская область","26358735","МУП ДЕЗ ЖКХ \"Кубовинское\"","5433159294","543301001","21-06-2005 00:00:00",null,"VO"]
[61,"2656","Новосибирская область","28221303","МУП ДЕЗ ЖКХ \"Летный\"","5433188190","543301001",null,null,"VO"]
[62,"2656","Новосибирская область","26456499","МУП ЖКУ Яркульское","5429107670","542901001",null,null,"VO"]
[63,"2656","Новосибирская область","31352650","МУП ЖКХ \"Ирменское\"","5434138755","543401001","20-06-2019 00:00:00",null,"VO"]
[64,"2656","Новосибирская область","26423873","МУП ЖКХ \"Краснообск\"","5433161840","543301001","28-12-2007 00:00:00",null,"VO"]
[65,"2656","Новосибирская область","31348618","МУП ЖКХ \"Перспектива\"","5433970745","543301001",null,null,"VO"]
[66,"2656","Новосибирская область","26373904","МУП ЖКХ \"Ярковское\"","5433154930","543301001","31-03-2004 00:00:00",null,"VO"]
[67,"2656","Новосибирская область","26358880","МУП ЖКХ г.Барабинска","5451110781","545101001",null,null,"VO"]
[68,"2656","Новосибирская область","26358685","МУП Зубковского ЖКХ","5427106343","542701001","18-12-2006 00:00:00",null,"VO"]
[69,"2656","Новосибирская область","31003007","МУП ИР \"Восточное\"","5443026977","544301001","27-06-2017 00:00:00",null,"VO"]
[70,"2656","Новосибирская область","31003056","МУП ИР \"Северное\"","5443027018","544301001","10-07-2017 00:00:00",null,"VO"]
[71,"2656","Новосибирская область","31003083","МУП ИР \"Центральное\"","5443027000","544301001","10-07-2017 00:00:00",null,"VO"]
[72,"2656","Новосибирская область","31003112","МУП ИР \"Южное\"","5443026960","544301001","27-06-2017 00:00:00",null,"VO"]
[73,"2656","Новосибирская область","31338790","МУП Коченевского района \"Единый расчетный центр\"","5425003014","542501001","05-10-2012 00:00:00",null,"VO"]
[74,"2656","Новосибирская область","30476394","МУП Ордынского района НСО \"Единая управляющая компания жилищно-коммунальным хозяйством\"","5434137695","543401001",null,null,"VO"]
[75,"2656","Новосибирская область","27568881","МУП администрации Верх-Алеусского сельсовета","5434113694","543401001","17-09-2008 00:00:00",null,"VO"]
[76,"2656","Новосибирская область","26373715","МУП г.Новосибирска \"Горводоканал\"","5411100875","540701001",null,null,"VO"]
[77,"2656","Новосибирская область","26444651","МУЭП \"Промтехэнерго\"","5433161180","543301001",null,null,"VO"]
[78,"2656","Новосибирская область","27676800","Муниципальное унитарное предприятие \"Теплосервис\" города Оби Новосибирской области","5448453980","544801001",null,null,"VO"]
[79,"2656","Новосибирская область","26822792","НПО \"ЭЛСИБ\" ПАО","5403102702","540301001",null,null,"VO"]
[80,"2656","Новосибирская область","27564925","ОАО \"Станкосиб\"","5405109132","540501001",null,null,"VO"]
[81,"2656","Новосибирская область","26651677","ОАО \"Сузунское ЖКХ\"","5436108763","543601001","15-11-2010 00:00:00",null,"VO"]
[82,"2656","Новосибирская область","26457858","ОАО \"Теплоэнергия плюс\"","5434113976","543401001",null,null,"VO"]
[83,"2656","Новосибирская область","26483046","ОАО \"Тогучинское жилищно-ремонтное предприятие\"","5438318702","543801001","31-12-2009 00:00:00",null,"VO"]
[84,"2656","Новосибирская область","26358510","ОАО НПО \"Сибсельмаш\"","5404220321","540401001",null,null,"VO"]
[85,"2656","Новосибирская область","26787131","ООО \"АДС\"","5408276163","540801001",null,null,"VO"]
[86,"2656","Новосибирская область","26418353","ООО \"Водоканал\"","5431209045","543101001","04-07-2008 00:00:00",null,"VO"]
[87,"2656","Новосибирская область","30919964","ООО \"Водоканал\" г.Искитима","5446018903","544601001","04-05-2017 00:00:00",null,"VO"]
[88,"2656","Новосибирская область","26457306","ООО \"Геолог\"","5433164583","543301001",null,null,"VO"]
[89,"2656","Новосибирская область","26428285","ООО \"Горводоканал\"","5440114777","544001001","01-10-2008 00:00:00",null,"VO"]
[90,"2656","Новосибирская область","26428321","ООО \"ЖКХ-Дорогино\"","5440311479","544001001","16-03-2009 00:00:00",null,"VO"]
[91,"2656","Новосибирская область","27783627","ООО \"Жилфонд\"","5425002934","542501001",null,null,"VO"]
[92,"2656","Новосибирская область","30379661","ООО \"КОМПЛЕКТСТРОЙ\"","5408004628","540801001",null,null,"VO"]
[93,"2656","Новосибирская область","26419348","ООО \"Коммунал-сервис\"","5433166083","543301001","15-12-2006 00:00:00",null,"VO"]
[94,"2656","Новосибирская область","26771422","ООО \"Коммунальщик\"","5408281389","540801001",null,null,"VO"]
[95,"2656","Новосибирская область","31358951","ООО \"Курган-Энергия\"","5406802251","540601001","06-11-2019 00:00:00",null,"VO"]
[96,"2656","Новосибирская область","30379656","ООО \"ЛВК СЕРВИС\"","5408310488","540601001",null,null,"VO"]
[97,"2656","Новосибирская область","31617334","ООО \"Меркас\"","7726456050","772601001","02-08-2019 00:00:00",null,"VO"]
[98,"2656","Новосибирская область","26768854","ООО \"НЗХК-Энергия\"","5410028351","541001001",null,null,"VO"]
[99,"2656","Новосибирская область","28867969","ООО \"Новосибирский оловянный комбинат\"","5433185270","540301001",null,null,"VO"]
[100,"2656","Новосибирская область","28967515","ООО \"Новосибирский энергомашиностроительный завод\"","5408000912","540801001",null,null,"VO"]
[101,"2656","Новосибирская область","31081535","ООО \"Оплот\"","5432000430","543201001","29-09-2015 00:00:00",null,"VO"]
[102,"2656","Новосибирская область","28460691","ООО \"Ордынское ВКХ\"","5434116840","543401001",null,null,"VO"]
[103,"2656","Новосибирская область","31444087","ООО \"Пегас\"","5445031147","544501001","07-05-2020 00:00:00",null,"VO"]
[104,"2656","Новосибирская область","30798156","ООО \"РСО Березки\"","5406580591","540601001","25-03-2015 00:00:00",null,"VO"]
[105,"2656","Новосибирская область","28221047","ООО \"Радуга Сервис\"","5432214513","543201001",null,null,"VO"]
[106,"2656","Новосибирская область","31623872","ООО \"Русич\"","5407269981","543801001","16-09-2004 00:00:00",null,"VO"]
[107,"2656","Новосибирская область","30858932","ООО \"САМ\"","5443119131","544301001","17-05-2001 00:00:00",null,"VO"]
[108,"2656","Новосибирская область","30380422","ООО \"СИБИРЬ ЭКСПОЦЕНТР\"","5433159583","543301001",null,null,"VO"]
[109,"2656","Новосибирская область","28870222","ООО \"СТРОЙВЕСТ\"","5402471792","540201001",null,null,"VO"]
[110,"2656","Новосибирская область","27506594","ООО \"Сервис ЖО\"","5429107078","542901001","31-03-2004 00:00:00",null,"VO"]
[111,"2656","Новосибирская область","27556158","ООО \"Сервис-групп\"","5403328562","540301001",null,null,"VO"]
[112,"2656","Новосибирская область","26499882","ООО \"Сетевая компания ТДСК\"","7017245330","701701001","04-09-2009 00:00:00",null,"VO"]
[113,"2656","Новосибирская область","27556143","ООО \"Сибирские Энергетические Сети\"","5401340910","540101001",null,null,"VO"]
[114,"2656","Новосибирская область","31436506","ООО \"ТВК\"","5445030859","544501001","12-02-2020 00:00:00",null,"VO"]
[115,"2656","Новосибирская область","28455089","ООО \"ТВС\"","5403347050","540301001",null,null,"VO"]
[116,"2656","Новосибирская область","26445585","ООО \"ТГК1\"","5445260186","544501001","11-06-2009 00:00:00",null,"VO"]
[117,"2656","Новосибирская область","30371521","ООО \"ТеплоКомплекс\"","5406591924","540601001","07-09-2015 00:00:00",null,"VO"]
[118,"2656","Новосибирская область","27564825","ООО \"ТеплоТЕВ\"","5433184942","543301001",null,null,"VO"]
[119,"2656","Новосибирская область","31240088","ООО \"Теплотехник\"","5404106315","540401001",null,null,"VO"]
[120,"2656","Новосибирская область","26787014","ООО \"Технический центр\"","5407024597","540901001",null,null,"VO"]
[121,"2656","Новосибирская область","31354530","ООО \"Управление системами\"","5401987680","540101001",null,null,"VO"]
[122,"2656","Новосибирская область","26758317","ООО \"Экология\"","5433166580","543301001",null,null,"VO"]
[123,"2656","Новосибирская область","26789044","ООО \"Энергия\"","5423000730","542301001",null,null,"VO"]
[124,"2656","Новосибирская область","31625543","ООО \"Энерго Инжиниринг\"","5406810319","540601001","18-12-2020 00:00:00",null,"VO"]
[125,"2656","Новосибирская область","26358795","ООО \"ЭнергоРесурс\"","5438315772","543801001","29-04-2005 00:00:00",null,"VO"]
[126,"2656","Новосибирская область","26499904","ООО \"Энергоресурс\"","5443120024","541001001",null,null,"VO"]
[127,"2656","Новосибирская область","27957520","ООО \"Энергосети Сибири\"","5405436838","540501001",null,null,"VO"]
[128,"2656","Новосибирская область","26380766","ООО ЖКХ \"Источник\"","5415000014","541501001",null,null,"VO"]
[129,"2656","Новосибирская область","28512695","ООО Управляющая компания \"Согласие\"","5432214489","543201001",null,null,"VO"]
[130,"2656","Новосибирская область","30905591","ООО ФИРМА \"АРГО\"","5401176018","540101001",null,null,"VO"]
[131,"2656","Новосибирская область","26358493","ООО предприятие \"Стройкерамика\"","5401112543","540101001",null,null,"VO"]
[132,"2656","Новосибирская область","28134812","Общество с ограниченной ответственностью \"БЭМЗ-Энергосервис\"","5445014818","544501001",null,null,"VO"]
[133,"2656","Новосибирская область","31540037","Общество с ограниченной ответственностью \"Промводоканал\"","5433955183","543301001",null,null,"VO"]
[134,"2656","Новосибирская область","28463341","ПК \"Толмачевский\"","5406637061","543301001",null,null,"VO"]
[135,"2656","Новосибирская область","26444611","ФБУН ГНЦ ВБ \"Вектор\" Роспотребнадзора","5433161342","543301001",null,null,"VO"]
[136,"2656","Новосибирская область","30479533","ФГКУ\"СИБИРСКИЙ СЦ МЧС РОССИИ\"","5425108641","542510864","01-03-2016 00:00:00",null,"VO"]
[137,"2656","Новосибирская область","28466644","ФГОБУ ВПО \"СибГУТИ\"","5405101327","540501001",null,null,"VO"]
[138,"2656","Новосибирская область","26358530","ФГУП \"УЭВ\"","5408183046","540801001",null,null,"VO"]
[139,"2656","Новосибирская область","30914574","Филиал ФГБУ \"ЦЖКУ\" МИНОБОРОНЫ РОССИИ (по ЦВО)","7729314745","667043001",null,null,"VO"]

{"sheet":"modClassifierValidate","index":40,"n_rows":0,"n_cols":0,"rows_kept":0,"cut":false,"hidden":true,"merged":[]}

{"sheet":"modProv","index":41,"n_rows":0,"n_cols":0,"rows_kept":0,"cut":false,"hidden":true,"merged":[]}

{"sheet":"modHyp","index":42,"n_rows":0,"n_cols":0,"rows_kept":0,"cut":false,"hidden":true,"merged":[]}

{"sheet":"modServiceModule","index":43,"n_rows":0,"n_cols":0,"rows_kept":0,"cut":false,"hidden":true,"merged":[]}

{"sheet":"modList01","index":44,"n_rows":0,"n_cols":0,"rows_kept":0,"cut":false,"hidden":true,"merged":[]}

{"sheet":"modList02","index":45,"n_rows":0,"n_cols":0,"rows_kept":0,"cut":false,"hidden":true,"merged":[]}

{"sheet":"modList03","index":46,"n_rows":0,"n_cols":0,"rows_kept":0,"cut":false,"hidden":true,"merged":[]}

{"sheet":"et_union_hor","index":47,"n_rows":298,"n_cols":41,"rows_kept":298,"cut":false,"hidden":true,"merged":[[115,14,115,21],[65,20,66,20],[116,14,116,21],[152,14,152,21],[119,19,120,19],[118,14,118,21],[149,14,149,21],[136,18,137,18],[132,14,132,21],[119,20,120,20],[130,14,130,21],[150,14,150,21],[119,17,120,17],[131,14,131,21],[133,14,133,21],[93,14,93,26],[79,14,79,21],[80,14,80,21],[119,18,120,18],[65,17,66,17],[147,14,147,21],[183,15,186,15],[148,14,148,21],[183,16,186,16],[168,14,171,14],[183,11,187,11],[183,12,187,12],[183,21,184,21],[168,19,170,19],[151,14,151,21],[153,19,154,19],[168,21,170,21],[183,20,185,20],[183,14,186,14],[183,18,185,18],[288,0,296,0],[292,2,294,2],[293,8,294,8],[168,13,172,13],[181,1,189,1],[253,7,254,7],[166,1,174,1],[183,8,187,8],[183,9,187,9],[183,13,186,13],[168,3,172,3],[180,0,190,0],[165,0,175,0],[291,1,295,1],[248,2,249,2],[253,2,254,2],[183,10,187,10],[168,10,172,10],[168,8,172,8],[168,9,172,9],[183,37,188,37],[153,20,154,20],[136,17,137,17],[153,17,154,17],[168,11,172,11],[153,18,154,18],[168,38,173,38],[168,25,169,25],[168,24,169,24],[168,20,170,20],[136,20,137,20],[168,18,170,18],[182,13,182,36],[168,16,171,16],[168,22,169,22],[181,13,181,36],[183,23,184,23],[183,17,185,17],[183,19,185,19],[168,15,171,15],[183,22,184,22],[168,12,172,12],[168,17,171,17],[168,23,169,23],[80,4,83,4],[63,3,68,3],[253,5,254,5],[253,6,254,6],[182,2,188,2],[167,2,173,2],[64,4,67,4],[248,3,249,3],[248,4,249,4],[183,3,187,3],[61,1,70,1],[62,2,69,2],[76,0,87,0],[77,1,86,1],[78,2,85,2],[28,0,39,0],[29,1,38,1],[30,2,37,2],[31,3,36,3],[32,4,35,4],[44,0,55,0],[48,4,51,4],[45,1,54,1],[46,2,53,2],[114,14,114,21],[97,24,98,24],[113,14,113,21],[49,22,51,22],[49,20,50,20],[97,23,98,23],[63,14,63,21],[64,14,64,21],[65,22,67,22],[65,19,66,19],[60,14,60,21],[61,14,61,21],[62,14,62,21],[47,3,52,3],[81,20,82,20],[77,14,77,21],[78,14,78,21],[60,0,71,0],[79,3,84,3],[13,6,16,6],[24,22,26,22],[49,18,50,18],[33,17,34,17],[33,19,34,19],[48,9,51,9],[49,17,50,17],[32,9,35,9],[25,15,25,16],[33,22,35,22],[46,14,46,21],[47,14,47,21],[48,14,48,21],[28,14,28,21],[29,14,29,21],[30,14,30,21],[31,14,31,21],[32,14,32,21],[49,13,50,13],[8,11,9,11],[64,9,67,9],[25,14,26,14],[27,14,27,20],[33,13,34,13],[13,13,14,13],[8,4,11,4],[8,13,9,13],[8,10,10,10],[8,9,10,9],[8,5,11,5],[13,4,16,4],[13,8,15,8],[8,12,9,12],[13,5,16,5],[8,6,11,6],[31,8,36,8],[47,8,52,8],[8,7,10,7],[33,20,34,20],[24,20,26,20],[65,18,66,18],[44,14,44,21],[45,14,45,21],[8,3,11,3],[13,3,16,3],[33,18,34,18],[8,14,9,14],[24,17,25,19],[8,8,10,8],[13,7,15,7],[13,9,15,9],[151,8,156,8],[134,8,139,8],[117,8,122,8],[13,10,15,10],[49,19,50,19],[118,9,121,9],[152,9,155,9],[13,12,14,12],[13,14,14,14],[94,14,94,26],[81,17,82,17],[13,11,14,11],[24,14,24,16],[135,14,135,21],[92,14,92,26],[26,18,26,19],[199,24,200,24],[199,23,200,23],[199,22,200,22],[183,24,184,24],[199,21,200,21],[199,16,202,16],[199,20,201,20],[199,19,201,19],[199,17,201,17],[199,18,201,18],[65,13,66,13],[180,13,180,36],[63,8,68,8],[79,8,84,8],[81,18,82,18],[91,14,91,26],[99,23,100,23],[80,9,83,9],[96,8,102,8],[76,14,76,21],[81,22,83,22],[97,22,98,22],[99,25,100,25],[99,22,100,22],[99,24,100,24],[97,9,101,9],[97,25,98,25],[81,19,82,19],[165,13,165,37],[166,13,166,37],[167,13,167,37],[96,14,96,26],[135,9,138,9],[136,19,137,19]]}
[]
["et_Comm"]
[]
[]
[]
[]
["et_List02(_1,_2,_3)"]
[]
[null,null,null,1,null,null,"нет",null,1,null,"нет",null,"1",null,"нет",null,"1"]
[null,null,null,null,null,null,null,null,null,null,null,null,null,null,null,null,null,"Добавить ЦС ВО для дифференциации"]
[null,null,null,null,null,null,null,null,null,null,null,null,null,"Добавить территорию для дифференциации"]
[]
[]
[null,null,null,null,null,null,null,null,1,null,"нет",null,"1",null,"нет",null,"1"]
[null,null,null,null,null,null,null,null,null,null,null,null,null,null,null,null,null,"Добавить ЦС ВО для дифференциации"]
[null,null,null,null,null,null,null,null,null,null,null,null,null,"Добавить территорию для дифференциации"]
[]
[]
["et_List06(_1,_2,_3)",null,"1"]
[]
[]
[]
[]
[]
[null,null,null,null,null,null,null,null,null,null,null,null,null,null,"Величина установленного тарифа",null,null,"Срок действия цены (тарифа) на тепловую энергию (мощность)",null,null,"Наличие других периодов действия тарифа"]
[null,null,null,null,null,null,null,null,null,null,null,null,null,null,"Одноставочный тариф, руб./Гкал","Двухставочный тариф"]
[null,null,null,null,null,null,null,null,null,null,null,null,null,null,null,"ставка за тепловую  энергию, руб./Гкал","ставка за содержание тепловой мощности, тыс.руб./Гкал/ч/мес","дата начала","дата окончания"]
[null,null,null,null,null,null,null,null,null,null,null,null,"7"]
[1,null,null,null,null,null,null,null,null,null,null,{"$f":"mergeValue(A29)","v":{"$error":"#NAME?"}},"Наименование тарифа",null,null,null,null,null,null,null,null,null,"Указывается наименование тарифа в случае утверждения нескольких тарифов.\nВ случае наличия нескольких тарифов информация по ним указывается в отдельных строках."]
[null,1,null,null,null,null,null,null,null,null,null,{"$f":"mergeValue(A30) &\".\"& mergeValue(B30)","v":{"$error":"#NAME?"}},"Территория действия тарифа",null,null,null,null,null,null,null,null,null,"Указывается наименование территории действия тарифа при наличии дифференциации тарифа по территориальному признаку.\nВ случае дифференциации тарифов по территориальному признаку информация по ним указывается в отдельных строках."]
[null,null,1,null,null,null,null,null,null,null,null,{"$f":"mergeValue(A31) &\".\"& mergeValue(B31)&\".\"& mergeValue(C31)","v":{"$error":"#NAME?"}},"Наименование централизованной системы водоотведения",null,null,null,null,null,null,null,null,null,"Указывается наименование централизованной системы водоотведения при наличии дифференциации тарифа по централизованным системам водоотведения.\nВ случае дифференциации тарифов по централизованным системам водоотведения информация по ним указывается в отдельных строках."]
[null,null,null,1,null,null,null,null,null,null,null,{"$f":"mergeValue(A32) &\".\"& mergeValue(B32)&\".\"& mergeValue(C32)&\".\"& mergeValue(D32)","v":{"$error":"#NAME?"}},"Наименование признака дифференциации",null,null,null,null,null,null,null,null,null,"Указывается наименование дополнительного признака дифференциации (при наличии).\nДифференциация тарифа осуществляется в соответствии с законодательством в сфере водоснабжении и водоотведении.\nВ случае дифференциации тарифов по дополнительным признакам информация по ним указывается в отдельных строках."]
[null,null,null,null,1,null,null,null,null,null,null,{"$f":"mergeValue(A33) &\".\"& mergeValue(B33)&\".\"& mergeValue(C33)&\".\"& mergeValue(D33)&\".\"& mergeValue(E33)","v":{"$error":"#NAME?"}},"Группа потребителей",null,null,null,null,null,null,null,null,null,"Указывается группа потребителей при наличии дифференциации тарифа по группам потребителей.\nЗначение выбирается из перечня: Организации-перепродавцы; Бюджетные организации; Население; Прочие; Без дифференциации.\nВ случае дифференциации тарифов группам потребителей информация по ним указывается в отдельных строках.",null,{"$f":"strCheckUnique(Z33:Z36)","v":{"$error":"#NAME?"}}]
[null,null,null,null,null,1,null,null,null,null,null,{"$f":"mergeValue(A34) &\".\"& mergeValue(B34)&\".\"& mergeValue(C34)&\".\"& mergeValue(D34)&\".\"& mergeValue(E34)&\".\"& mergeValue(F34)","v":{"$error":"#NAME?"}},null,null,null,null,null,null,"да",null,"нет",null,"В колонке «Параметр дифференциации тарифов» указывается значение дополнительного признака дифференциации.\nПри утверждении двухставочного тарифа колонка «Одноставочный тариф» не заполняется.\nПри утверждении одноставочного тарифа колонки в блоке «Двухставочный тариф» не заполняются.\nДаты начала и окончания действия тарифов указываются в виде «ДД.ММ.ГГГГ».\nВ случае отсутствия даты окончания действия тарифа в колонке «Дата окончания» указывается «Нет».\nВ случае наличия нескольких значений признака дифференциации тарифов информация по ним указывается в отдельных строках.\nВ случае дифференциации тарифов по периодам действия тарифа информация по ним указывается в отдельных колонках.",{"$f":"strCheckDate(O35:V35)","v":{"$error":"#NAME?"}},null,{"$f":"IF(M34=\"\",\"\",M34 )","v":""}]
[null,null,null,null,null,null,null,null,null,null,null,null,null,null,null,null,{"$f":"R34 & \"-\" & T34","v":"-"}]
[null,null,null,null,null,null,null,null,null,null,null,null,"Добавить значение признака дифференциации"]
[null,null,null,null,null,null,null,null,null,null,null,null,"Добавить группу потребителей"]
[null,null,null,null,null,null,null,null,null,null,null,null,"Добавить наименование признака дифференциации"]
[null,null,null,null,null,null,null,null,null,null,null,null,"Добавить наименование системы водоотведения"]
[null,null,null,null,null,null,null,null,null,null,null,null,"Добавить территорию действия тарифа"]
[null,null,null,null,null,null,null,null,null,null,null,null,"Добавить наименование тарифа"]
[]
["et_List06(_1,_2,_3)",null,"2"]
[]
[1,null,null,null,null,null,null,null,null,null,null,{"$f":"mergeValue(A45)","v":{"$error":"#NAME?"}},"Наименование тарифа",null,null,null,null,null,null,null,null,null,"Указывается наименование тарифа в случае утверждения нескольких тарифов.\nВ случае наличия нескольких тарифов информация по ним указывается в отдельных строках."]
[null,1,null,null,null,null,null,null,null,null,null,{"$f":"mergeValue(A46) &\".\"& mergeValue(B46)","v":{"$error":"#NAME?"}},"Территория действия тарифа",null,null,null,null,null,null,null,null,null,"Указывается наименование территории действия тарифа при наличии дифференциации тарифа по территориальному признаку.\nВ случае дифференциации тарифов по территориальному признаку информация по ним указывается в отдельных строках."]
[null,null,1,null,null,null,null,null,null,null,null,{"$f":"mergeValue(A47) &\".\"& mergeValue(B47)&\".\"& mergeValue(C47)","v":{"$error":"#NAME?"}},"Наименование централизованной системы водоотведения",null,null,null,null,null,null,null,null,null,"Указывается наименование централизованной системы водоотведения при наличии дифференциации тарифа по централизованным системам водоотведения.\nВ случае дифференциации тарифов по централизованным системам водоотведения информация по ним указывается в отдельных строках."]
[null,null,null,1,null,null,null,null,null,null,null,{"$f":"mergeValue(A48) &\".\"& mergeValue(B48)&\".\"& mergeValue(C48)&\".\"& mergeValue(D48)","v":{"$error":"#NAME?"}},"Наименование признака дифференциации",null,null,null,null,null,null,null,null,null,"Указывается наименование дополнительного признака дифференциации (при наличии).\nДифференциация тарифа осуществляется в соответствии с законодательством в сфере водоснабжении и водоотведении.\nВ случае дифференциации тарифов по дополнительным признакам информация по ним указывается в отдельных строках."]
[null,null,null,null,1,null,null,null,null,null,null,{"$f":"mergeValue(A49) &\".\"& mergeValue(B49)&\".\"& mergeValue(C49)&\".\"& mergeValue(D49)&\".\"& mergeValue(E49)","v":{"$error":"#NAME?"}},"Группа потребителей",null,null,null,null,null,null,null,null,null,"Указывается группа потребителей при наличии дифференциации тарифа по группам потребителей.\nЗначение выбирается из перечня: Организации-перепродавцы; Бюджетные организации; Население; Прочие; Без дифференциации.\nВ случае дифференциации тарифов группам потребителей информация по ним указывается в отдельных строках.",null,{"$f":"strCheckUnique(Z49:Z52)","v":{"$error":"#NAME?"}}]
[null,null,null,null,null,1,null,null,null,null,null,{"$f":"mergeValue(A50) &\".\"& mergeValue(B50)&\".\"& mergeValue(C50)&\".\"& mergeValue(D50)&\".\"& mergeValue(E50)&\".\"& mergeValue(F50)","v":{"$error":"#NAME?"}},null,null,null,null,null,null,"да",null,"нет",null,"В колонке «Параметр дифференциации тарифов» указывается значение дополнительного признака дифференциации.\nПри утверждении двухставочного тарифа колонка «Одноставочный тариф» не заполняется.\nПри утверждении одноставочного тарифа колонки в блоке «Двухставочный тариф» не заполняются.\nДаты начала и окончания действия тарифов указываются в виде «ДД.ММ.ГГГГ».\nВ случае отсутствия даты окончания действия тарифа в колонке «Дата окончания» указывается «Нет».\nВ случае наличия нескольких значений признака дифференциации тарифов информация по ним указывается в отдельных строках.\nВ случае дифференциации тарифов по периодам действия тарифа информация по ним указывается в отдельных колонках.",{"$f":"strCheckDate(O51:V51)","v":{"$error":"#NAME?"}},null,{"$f":"IF(M50=\"\",\"\",M50 )","v":""}]
[null,null,null,null,null,null,null,null,null,null,null,null,null,null,null,null,{"$f":"R50 & \"-\" & T50","v":"-"}]
[null,null,null,null,null,null,null,null,null,null,null,null,"Добавить значение признака дифференциации"]
[null,null,null,null,null,null,null,null,null,null,null,null,"Добавить группу потребителей"]
[null,null,null,null,null,null,null,null,null,null,null,null,"Добавить наименование признака дифференциации"]
[null,null,null,null,null,null,null,null,null,null,null,null,"Добавить наименование системы водоотведения"]
[null,null,null,null,null,null,null,null,null,null,null,null,"Добавить территорию действия тарифа"]
[null,null,null,null,null,null,null,null,null,null,null,null,"Добавить наименование тарифа"]
[]
["et_List06(_1,_2,_3)",null,"3"]
[]
[1,null,null,null,null,null,null,null,null,null,null,{"$f":"mergeValue(A61)","v":{"$error":"#NAME?"}},"Наименование тарифа",null,null,null,null,null,null,null,null,null,"Указывается наименование тарифа в случае утверждения нескольких тарифов.\nВ случае наличия нескольких тарифов информация по ним указывается в отдельных строках."]
[null,1,null,null,null,null,null,null,null,null,null,{"$f":"mergeValue(A62) &\".\"& mergeValue(B62)","v":{"$error":"#NAME?"}},"Территория действия тарифа",null,null,null,null,null,null,null,null,null,"Указывается наименование территории действия тарифа при наличии дифференциации тарифа по территориальному признаку.\nВ случае дифференциации тарифов по территориальному признаку информация по ним указывается в отдельных строках."]
[null,null,1,null,null,null,null,null,null,null,null,{"$f":"mergeValue(A63) &\".\"& mergeValue(B63)&\".\"& mergeValue(C63)","v":{"$error":"#NAME?"}},"Наименование централизованной системы водоотведения",null,null,null,null,null,null,null,null,null,"Указывается наименование централизованной системы водоотведения при наличии дифференциации тарифа по централизованным системам водоотведения.\nВ случае дифференциации тарифов по централизованным системам водоотведения информация по ним указывается в отдельных строках."]
[null,null,null,1,null,null,null,null,null,null,null,{"$f":"mergeValue(A64) &\".\"& mergeValue(B64)&\".\"& mergeValue(C64)&\".\"& mergeValue(D64)","v":{"$error":"#NAME?"}},"Наименование признака дифференциации",null,null,null,null,null,null,null,null,null,"Указывается наименование дополнительного признака дифференциации (при наличии).\nДифференциация тарифа осуществляется в соответствии с законодательством в сфере водоснабжении и водоотведении.\nВ случае дифференциации тарифов по дополнительным признакам информация по ним указывается в отдельных строках."]
[null,null,null,null,1,null,null,null,null,null,null,{"$f":"mergeValue(A65) &\".\"& mergeValue(B65)&\".\"& mergeValue(C65)&\".\"& mergeValue(D65)&\".\"& mergeValue(E65)","v":{"$error":"#NAME?"}},"Группа потребителей",null,null,null,null,null,null,null,null,null,"Указывается группа потребителей при наличии дифференциации тарифа по группам потребителей.\nЗначение выбирается из перечня: Организации-перепродавцы; Бюджетные организации; Население; Прочие; Без дифференциации.\nВ случае дифференциации тарифов группам потребителей информация по ним указывается в отдельных строках.",null,{"$f":"strCheckUnique(Z65:Z68)","v":{"$error":"#NAME?"}}]
[null,null,null,null,null,1,null,null,null,null,null,{"$f":"mergeValue(A66) &\".\"& mergeValue(B66)&\".\"& mergeValue(C66)&\".\"& mergeValue(D66)&\".\"& mergeValue(E66)&\".\"& mergeValue(F66)","v":{"$error":"#NAME?"}},null,null,null,null,null,null,"да",null,"нет",null,"В колонке «Параметр дифференциации тарифов» указывается значение дополнительного признака дифференциации.\nПри утверждении двухставочного тарифа колонка «Одноставочный тариф» не заполняется.\nПри утверждении одноставочного тарифа колонки в блоке «Двухставочный тариф» не заполняются.\nДаты начала и окончания действия тарифов указываются в виде «ДД.ММ.ГГГГ».\nВ случае отсутствия даты окончания действия тарифа в колонке «Дата окончания» указывается «Нет».\nВ случае наличия нескольких значений признака дифференциации тарифов информация по ним указывается в отдельных строках.\nВ случае дифференциации тарифов по периодам действия тарифа информация по ним указывается в отдельных колонках.",{"$f":"strCheckDate(O67:V67)","v":{"$error":"#NAME?"}},null,{"$f":"IF(M66=\"\",\"\",M66 )","v":""}]
[null,null,null,null,null,null,null,null,null,null,null,null,null,null,null,null,{"$f":"R66 & \"-\" & T66","v":"-"}]
[null,null,null,null,null,null,null,null,null,null,null,null,"Добавить значение признака дифференциации"]
[null,null,null,null,null,null,null,null,null,null,null,null,"Добавить группу потребителей"]
[null,null,null,null,null,null,null,null,null,null,null,null,"Добавить наименование признака дифференциации"]
[null,null,null,null,null,null,null,null,null,null,null,null,"Добавить наименование системы водоотведения"]
[null,null,null,null,null,null,null,null,null,null,null,null,"Добавить территорию действия тарифа"]
[null,null,null,null,null,null,null,null,null,null,null,null,"Добавить наименование тарифа"]
[]
["et_List06(_1,_2,_3)",null,"4"]
[]
[1,null,null,null,null,null,null,null,null,null,null,{"$f":"mergeValue(A77)","v":{"$error":"#NAME?"}},"Наименование тарифа",null,null,null,null,null,null,null,null,null,"Указывается наименование тарифа в случае утверждения нескольких тарифов.\nВ случае наличия нескольких тарифов информация по ним указывается в отдельных строках."]
[null,1,null,null,null,null,null,null,null,null,null,{"$f":"mergeValue(A78) &\".\"& mergeValue(B78)","v":{"$error":"#NAME?"}},"Территория действия тарифа",null,null,null,null,null,null,null,null,null,"Указывается наименование территории действия тарифа при наличии дифференциации тарифа по территориальному признаку.\nВ случае дифференциации тарифов по территориальному признаку информация по ним указывается в отдельных строках."]
[null,null,1,null,null,null,null,null,null,null,null,{"$f":"mergeValue(A79) &\".\"& mergeValue(B79)&\".\"& mergeValue(C79)","v":{"$error":"#NAME?"}},"Наименование централизованной системы водоотведения",null,null,null,null,null,null,null,null,null,"Указывается наименование централизованной системы водоотведения при наличии дифференциации тарифа по централизованным системам водоотведения.\nВ случае дифференциации тарифов по централизованным системам водоотведения информация по ним указывается в отдельных строках."]
[null,null,null,1,null,null,null,null,null,null,null,{"$f":"mergeValue(A80) &\".\"& mergeValue(B80)&\".\"& mergeValue(C80)&\".\"& mergeValue(D80)","v":{"$error":"#NAME?"}},"Наименование признака дифференциации",null,null,null,null,null,null,null,null,null,"Указывается наименование дополнительного признака дифференциации (при наличии).\nДифференциация тарифа осуществляется в соответствии с законодательством в сфере водоснабжении и водоотведении.\nВ случае дифференциации тарифов по дополнительным признакам информация по ним указывается в отдельных строках."]
[null,null,null,null,1,null,null,null,null,null,null,{"$f":"mergeValue(A81) &\".\"& mergeValue(B81)&\".\"& mergeValue(C81)&\".\"& mergeValue(D81)&\".\"& mergeValue(E81)","v":{"$error":"#NAME?"}},"Группа потребителей",null,null,null,null,null,null,null,null,null,"Указывается группа потребителей при наличии дифференциации тарифа по группам потребителей.\nЗначение выбирается из перечня: Организации-перепродавцы; Бюджетные организации; Население; Прочие; Без дифференциации.\nВ случае дифференциации тарифов группам потребителей информация по ним указывается в отдельных строках.",null,{"$f":"strCheckUnique(Z81:Z84)","v":{"$error":"#NAME?"}}]
[null,null,null,null,null,1,null,null,null,null,null,{"$f":"mergeValue(A82) &\".\"& mergeValue(B82)&\".\"& mergeValue(C82)&\".\"& mergeValue(D82)&\".\"& mergeValue(E82)&\".\"& mergeValue(F82)","v":{"$error":"#NAME?"}},null,null,null,null,null,null,"да",null,"нет",null,"В колонке «Параметр дифференциации тарифов» указывается значение дополнительного признака дифференциации.\nПри утверждении двухставочного тарифа колонка «Одноставочный тариф» не заполняется.\nПри утверждении одноставочного тарифа колонки в блоке «Двухставочный тариф» не заполняются.\nДаты начала и окончания действия тарифов указываются в виде «ДД.ММ.ГГГГ».\nВ случае отсутствия даты окончания действия тарифа в колонке «Дата окончания» указывается «Нет».\nВ случае наличия нескольких значений признака дифференциации тарифов информация по ним указывается в отдельных строках.\nВ случае дифференциации тарифов по периодам действия тарифа информация по ним указывается в отдельных колонках.",{"$f":"strCheckDate(O83:V83)","v":{"$error":"#NAME?"}},null,{"$f":"IF(M82=\"\",\"\",M82 )","v":""}]
[null,null,null,null,null,null,null,null,null,null,null,null,null,null,null,null,{"$f":"R82 & \"-\" & T82","v":"-"}]
[null,null,null,null,null,null,null,null,null,null,null,null,"Добавить значение признака дифференциации"]
[null,null,null,null,null,null,null,null,null,null,null,null,"Добавить группу потребителей"]
[null,null,null,null,null,null,null,null,null,null,null,null,"Добавить наименование признака дифференциации"]
[null,null,null,null,null,null,null,null,null,null,null,null,"Добавить наименование системы водоотведения"]
[null,null,null,null,null,null,null,null,null,null,null,null,"Добавить территорию действия тарифа"]
[null,null,null,null,null,null,null,null,null,null,null,null,"Добавить наименование тарифа"]
[null,null,null,null,null,null,"et_List06(_1,_2,_3)",null,"5"]
[]
[null,null,null,null,null,null,null,null,null,null,null,"1","Наименование тарифа"]
[null,null,null,null,null,null,null,null,null,null,null,"1.1","Территория действия тарифа"]
[null,null,null,null,null,null,null,null,null,null,null,"1.1.1","Наименование системы теплоснабжения "]
[null,null,null,null,null,null,null,null,null,null,null,"1.1.1.1","Источник тепловой энергии  "]
[]
[null,null,null,null,null,null,null,null,null,null,null,"1.1.1.1.1.1","Группа потребителей",null,null,null,null,null,null,null,null,null,null,null,null,null,null,null,null,{"$f":"strCheckUnique(AE97:AE103)","v":{"$error":"#NAME?"}}]
[null,null,null,null,null,null,null,1,null,null,null,null,null,null,null,null,null,null,null,null,null,{"$f":"W98 & \"-\" & Y98","v":"-"},null,"да",null,"нет",null,null,{"$f":"strCheckDate(O98:AA98)","v":{"$error":"#NAME?"}},null,{"$f":"IF(M98=\"\",\"\",M98 )","v":""}]
[null,null,null,null,null,null,null,null,null,null,null,null,null,null,null,null,null,null,null,null,null,null,null,null,null,null,null,null,null,null,null,{"$f":"OFFSET(AF99,-1,0)","v":0}]
[null,null,null,null,null,null,null,null,null,null,null,null,null,null,null,null,null,null,null,null,null,{"$f":"W100 & \"-\" & Y100","v":"-"},null,"да",null,"нет",null,null,{"$f":"strCheckDate(O100:AA100)","v":{"$error":"#NAME?"}}]
[null,null,null,null,null,null,null,null,null,null,null,null,null,null,null,null,null,null,null,null,null,null,null,null,null,null,null,null,null,null,null,{"$f":"OFFSET(AF101,-1,0)","v":0}]
[null,null,null,null,null,null,null,null,null,null,null,null,"Добавить поставщика"]
[null,null,null,null,null,null,null,null,null,null,null,null,"Добавить вид теплоносителя (параметры теплоносителя)"]
[null,null,null,null,null,null,null,null,null,null,null,null,"Добавить группу потребителей"]
[]
[null,null,null,null,null,null,null,null,null,null,null,null,"Добавить источник тепловой энергии"]
[null,null,null,null,null,null,null,null,null,null,null,null,"Добавить наименование системы теплоснабжения"]
[null,null,null,null,null,null,null,null,null,null,null,null,"Добавить территорию действия тарифа"]
[null,null,null,null,null,null,null,null,null,null,null,null,null,null,null,null,null,null,null,null,null,null,null,"да",null,"нет"]
[]
[]
[null,null,null,null,null,null,"et_List06(_1,_2,_3)",null,"6"]
[]
[null,null,null,null,null,null,null,null,null,null,null,"1","Наименование тарифа"]
[null,null,null,null,null,null,null,null,null,null,null,"1.1","Территория действия тарифа"]
[null,null,null,null,null,null,null,null,null,null,null,"1.1.1","Наименование системы теплоснабжения "]
[null,null,null,null,null,null,null,null,null,null,null,"1.1.1.1","Источник тепловой энергии  "]
[]
[null,null,null,null,null,null,null,null,null,null,null,"1.1.1.1.1.1","Группа потребителей",null,null,null,null,null,null,null,null,null,null,null,{"$f":"strCheckUnique(Z119:Z122)","v":{"$error":"#NAME?"}}]
[null,null,null,null,null,null,null,1,null,null,null,null,null,null,null,null,null,null,"да",null,"нет",null,null,{"$f":"strCheckDate(O121:V121)","v":{"$error":"#NAME?"}},null,{"$f":"IF(M120=\"\",\"\",M120 )","v":""}]
[null,null,null,null,null,null,null,null,null,null,null,null,null,null,null,null,{"$f":"R120 & \"-\" & T120","v":"-"}]
[null,null,null,null,null,null,null,null,null,null,null,null,"Добавить вид теплоносителя (параметры теплоносителя)"]
[null,null,null,null,null,null,null,null,null,null,null,null,"Добавить группу потребителей"]
[]
[null,null,null,null,null,null,null,null,null,null,null,null,"Добавить источник тепловой энергии"]
[null,null,null,null,null,null,null,null,null,null,null,null,"Добавить наименование системы теплоснабжения"]
[null,null,null,null,null,null,null,null,null,null,null,null,"Добавить территорию действия тарифа"]
[]
[null,null,null,null,null,null,"et_List06(_1,_2,_3)",null,"7"]
[]
[null,null,null,null,null,null,null,null,null,null,null,"1","Наименование тарифа"]
[null,null,null,null,null,null,null,null,null,null,null,"1.1","Территория действия тарифа"]
[null,null,null,null,null,null,null,null,null,null,null,"1.1.1","Наименование системы теплоснабжения "]
[null,null,null,null,null,null,null,null,null,null,null,"1.1.1.1","Источник тепловой энергии  "]
[]
[null,null,null,null,null,null,null,null,null,null,null,"1.1.1.1.1.1","Группа потребителей",null,null,null,null,null,null,null,null,null,null,null,{"$f":"strCheckUnique(Z136:Z139)","v":{"$error":"#NAME?"}}]
[null,null,null,null,null,null,null,1,null,null,null,null,null,null,null,null,null,null,"да",null,"нет",null,null,{"$f":"strCheckDate(O138:V138)","v":{"$error":"#NAME?"}},null,{"$f":"IF(M137=\"\",\"\",M137 )","v":""}]
[null,null,null,null,null,null,null,null,null,null,null,null,null,null,null,null,{"$f":"R137 & \"-\" & T137","v":"-"}]
[null,null,null,null,null,null,null,null,null,null,null,null,"Добавить вид теплоносителя (параметры теплоносителя)"]
[null,null,null,null,null,null,null,null,null,null,null,null,"Добавить группу потребителей"]
[]
[null,null,null,null,null,null,null,null,null,null,null,null,"Добавить источник тепловой энергии"]
[null,null,null,null,null,null,null,null,null,null,null,null,"Добавить наименование системы теплоснабжения"]
[null,null,null,null,null,null,null,null,null,null,null,null,"Добавить территорию действия тарифа"]
[]
[null,null,null,null,null,null,"et_List06(_1,_2,_3)",null,"8"]
[]
[null,null,null,null,null,null,null,null,null,null,null,"1","Наименование тарифа"]
[null,null,null,null,null,null,null,null,null,null,null,"1.1","Территория действия тарифа"]
[null,null,null,null,null,null,null,null,null,null,null,"1.1.1","Наименование системы теплоснабжения "]
[null,null,null,null,null,null,null,null,null,null,null,"1.1.1.1","Источник тепловой энергии  "]
[null,null,null,null,null,null,null,null,null,null,null,"1.1.1.1.1","Схема подключения теплопотребляющей установки к коллектору источника тепловой энергии"]
[null,null,null,null,null,null,null,null,null,null,null,"1.1.1.1.1.1","Группа потребителей",null,null,null,null,null,null,null,null,null,null,null,{"$f":"strCheckUnique(Z153:Z156)","v":{"$error":"#NAME?"}}]
[null,null,null,null,null,null,null,1,null,null,null,null,null,null,null,null,null,null,"да",null,"нет",null,null,{"$f":"strCheckDate(O155:V155)","v":{"$error":"#NAME?"}},null,{"$f":"IF(M154=\"\",\"\",M154 )","v":""}]
[null,null,null,null,null,null,null,null,null,null,null,null,null,null,null,null,{"$f":"R154 & \"-\" & T154","v":"-"}]
[null,null,null,null,null,null,null,null,null,null,null,null,"Добавить вид теплоносителя (параметры теплоносителя)"]
[null,null,null,null,null,null,null,null,null,null,null,null,"Добавить группу потребителей"]
[null,null,null,null,null,null,null,null,null,null,null,null,"Добавить схему подключения"]
[null,null,null,null,null,null,null,null,null,null,null,null,"Добавить источник тепловой энергии"]
[null,null,null,null,null,null,null,null,null,null,null,null,"Добавить наименование системы теплоснабжения"]
[null,null,null,null,null,null,null,null,null,null,null,null,"Добавить территорию действия тарифа"]
[]
["et_List06(_1,_2,_3)",null,"9"]
[]
[]
[1,null,null,null,null,null,null,null,null,null,null,{"$f":"mergeValue(A166)","v":{"$error":"#NAME?"}},"Наименование тарифа",null,null,null,null,null,null,null,null,null,null,null,null,null,null,null,null,null,null,null,null,null,null,null,null,null,"Указывается наименование тарифа в случае утверждения нескольких тарифов.\nВ случае наличия нескольких тарифов информация по ним указывается в отдельных строках."]
[null,1,null,null,null,null,null,null,null,null,null,{"$f":"mergeValue(A167) &\".\"& mergeValue(B167)","v":{"$error":"#NAME?"}},"Территория действия тарифа",null,null,null,null,null,null,null,null,null,null,null,null,null,null,null,null,null,null,null,null,null,null,null,null,null,"Указывается наименование территории действия тарифа при наличии дифференциации тарифа по территориальному признаку.\nВ случае дифференциации тарифов по территориальному признаку информация по ним указывается в отдельных строках."]
[null,null,1,null,null,null,null,null,null,null,null,{"$f":"mergeValue(A168) &\".\"& mergeValue(B168)&\".\"& mergeValue(C168)","v":{"$error":"#NAME?"}},"Наименование централизованной системы водоотведения",null,null,null,null,null,null,null,null,null,null,null,null,null,null,null,null,null,null,null,null,null,null,null,null,null,"Указывается наименование централизованной системы водоотведения при наличии дифференциации тарифа по централизованным системам водоотведения.\nВ случае дифференциации тарифов по централизованным системам водоотведения информация по ним указывается в отдельных строках."]
[null,null,null,1,null,null,null,null,null,null,null,{"$f":"mergeValue(A169) &\".\"& mergeValue(B169)&\".\"& mergeValue(C169)&\".\"& mergeValue(D169)","v":{"$error":"#NAME?"}},null,"да",null,"1",null,"нет",null,1,null,"нет",null,1,null,"нет",null,1,null,null,null,null,null,null,"да",null,"нет",null,"В колодке «Параметр дифференциации тарифа/Заявитель» указывается наименование категории потребителей, к которой относится тариф.\nДаты начала и окончания указываются в виде «ДД.ММ.ГГГГ».\nВ случае отсутствия даты окончания тарифа в колонке «Дата окончания» указывается «Нет».\nВ случае наличия дифференциации по подключаемой нагрузке, диапазону диаметров, протяженности, условиям прокладки канализационной сети информация по ним указывается в отдельных строках.\nВ случае дифференциации тарифов по периодам действия тарифа информация по ним указывается в отдельных колонках.",{"$f":"strCheckDateOnDP(AD169:AL169,List06_9_DP)","v":{"$error":"#NAME?"}},{"$f":"IF(AND(COUNTIF(AP165:AP165,AP169)>1,AP169<>\"\"),\"ErrUnique:HasDoubleConn\",\"\")","v":""}]
[null,null,null,null,null,null,null,null,null,null,null,null,null,null,null,null,null,null,null,null,null,null,null,null,null,null,null,null,null,null,null,null,{"$f":"AH169 & \"-\" & AJ169","v":"-"},null,null,null,"нет"]
[]
[]
[null,null,null,null,null,null,null,null,null,null,null,null,null,null,null,null,"Добавить подключаемую нагрузку"]
[null,null,null,null,null,null,null,null,null,null,null,null,"Добавить строку"]
[null,null,null,null,null,null,null,null,null,null,null,null,"Добавить наименование системы водоотведения"]
[null,null,null,null,null,null,null,null,null,null,null,null,"Добавить территорию действия тарифа"]
[null,null,null,null,null,null,null,null,null,null,null,null,"Добавить наименование тарифа"]
[]
["et_List06(_1,_2,_3)",null,"10"]
[]
[1,null,null,null,null,null,null,null,null,null,null,{"$f":"mergeValue(A181)","v":{"$error":"#NAME?"}},"Наименование тарифа",null,null,null,null,null,null,null,null,null,null,null,null,null,null,null,null,null,null,null,null,null,null,null,null,"Указывается наименование тарифа в случае утверждения нескольких тарифов.\nВ случае наличия нескольких тарифов информация по ним указывается в отдельных строках."]
[null,1,null,null,null,null,null,null,null,null,null,{"$f":"mergeValue(A182) &\".\"& mergeValue(B182)","v":{"$error":"#NAME?"}},"Территория действия тарифа",null,null,null,null,null,null,null,null,null,null,null,null,null,null,null,null,null,null,null,null,null,null,null,null,"Указывается наименование территории действия тарифа при наличии дифференциации тарифа по территориальному признаку.\nВ случае дифференциации тарифов по территориальному признаку информация по ним указывается в отдельных строках."]
[null,null,1,null,null,null,null,null,null,null,null,{"$f":"mergeValue(A183) &\".\"& mergeValue(B183)&\".\"& mergeValue(C183)","v":{"$error":"#NAME?"}},"Наименование централизованной системы водоотведения",null,null,null,null,null,null,null,null,null,null,null,null,null,null,null,null,null,null,null,null,null,null,null,null,"Указывается наименование централизованной системы водоотведения при наличии дифференциации тарифа по централизованным системам водоотведения.\nВ случае дифференциации тарифов по централизованным системам водоотведения информация по ним указывается в отдельных строках."]
[null,null,null,1,null,null,null,null,null,null,null,{"$f":"mergeValue(A184) &\".\"& mergeValue(B184)&\".\"& mergeValue(C184)&\".\"& mergeValue(D184)","v":{"$error":"#NAME?"}},null,null,"1",null,"нет",null,1,null,"нет",null,"1",null,"нет",null,1,null,null,null,null,null,null,"да",null,"нет",null,"В колодке «Параметр дифференциации тарифа/Заявитель» указывается наименование категории потребителей, к которой относится тариф.\nДаты начала и окончания указываются в виде «ДД.ММ.ГГГГ».\nВ случае отсутствия даты окончания тарифа в колонке «Дата окончания» указывается «Нет».\nВ случае наличия дифференциации по подключаемой нагрузке, диапазону диаметров, протяженности, условиям прокладки канализационной сети информация по ним указывается в отдельных строках.\nВ случае дифференциации тарифов по периодам действия тарифа информация по ним указывается в отдельных колонках.",{"$f":"strCheckDateOnDP(AC184:AK184,List06_10_DP)","v":{"$error":"#NAME?"}},{"$f":"IF(AND(COUNTIF(AO180:AO180,AO184)>1,AO184<>\"\"),\"ErrUnique:HasDoubleConn\",\"\")","v":""}]
[null,null,null,null,null,null,null,null,null,null,null,null,null,null,null,null,null,null,null,null,null,null,null,null,null,null,null,null,null,null,null,{"$f":"AG184 & \"-\" & AI184","v":"-"},null,null,null,"нет"]
[]
[]
[null,null,null,null,null,null,null,null,null,null,null,null,null,null,null,"Добавить подключаемую нагрузку"]
[null,null,null,null,null,null,null,null,null,null,null,null,"Добавить строку"]
[null,null,null,null,null,null,null,null,null,null,null,null,"Добавить наименование системы водоотведения"]
[null,null,null,null,null,null,null,null,null,null,null,null,"Добавить территорию действия тарифа"]
[null,null,null,null,null,null,null,null,null,null,null,null,"Добавить наименование тарифа"]
[]
[]
[]
[]
[]
[]
[]
[null,null,null,null,null,null,null,null,null,null,null,null,null,null,null,null,"нет",null,1,null,"да",null,1,null,"да",null,1]
[null,null,null,null,null,null,null,null,null,null,null,null,null,null,null,null,null,null,null,null,null,null,null,null,null,null,null,"Добавить условия прокладки сетей"]
[null,null,null,null,null,null,null,null,null,null,null,null,null,null,null,null,null,null,null,null,null,null,null,"Добавить протяженность канализационной сети"]
[]
[]
[]
["et_List07"]
[]
[]
[]
["et_List06"]
[]
[null,null,null,null,1]
[]
["et_List07"]
[]
[null,null,null,null,"1"]
[]
["et_List08"]
[]
[null,null,null,null,"1"]
[]
["et_List00_01","et_List00_02","et_List00_03"]
[]
[null,null,null,null,null,"Адрес регулируемой организации"]
[null,null,null,null,"Юридический адрес"]
[null,null,null,null,"Почтовый адрес"]
[]
[null,null,null,null,null,"Руководитель"]
[null,null,null,null,"Фамилия, имя, отчество"]
[null,null,null,null,"(код) номер телефона"]
[]
[null,null,null,null,null,"Главный бухгалтер"]
[null,null,null,null,"Фамилия, имя, отчество"]
[null,null,null,null,"(код) номер телефона"]
[]
[null,null,null,null,null,"Должностное лицо, ответственное за составление формы"]
[null,null,null,null,"Фамилия, имя, отчество"]
[null,null,null,null,"Должность"]
[null,null,null,null,"(код) номер телефона"]
[null,null,null,null,"e-mail"]
[]
["et_List03"]
[]
["3","",null,null,null,"","","",null,null,null,null,{"$f":"IF(ISERROR(INDEX(kind_of_nameforms,MATCH(E244,kind_of_forms,0),1)),\"\",INDEX(kind_of_nameforms,MATCH(E244,kind_of_forms,0),1))","v":""}]
[]
[]
["et_List01_0"]
[]
[null,"auto",null,1,null,null,0,null,null,"0",null,null,{"$f":"mergeValue(H249)","v":{"$error":"#NAME?"}},null,null,{"$f":"IF(ISERROR(MATCH(Q249,MODesc,0)),\"n\",\"y\")","v":"n"},null,{"$f":"K249&\"(\"&L249&\")\"","v":"()"}]
[null,null,null,null,null,null,null,"Добавить МР"]
[]
["et_List01_1"]
[]
[null,"auto",null,null,null,null,0,null,null,"0",null,null,{"$f":"mergeValue(H254)","v":{"$error":"#NAME?"}},null,null,null,null,{"$f":"K254&\"(\"&L254&\")\"","v":"()"}]
[null,null,null,null,null,null,null,null,null,null,"Добавить МО"]
[]
["et_List01_2"]
[]
[null,"auto",null,null,null,null,null,null,null,0,null,null,{"$f":"mergeValue(H259)","v":{"$error":"#NAME?"}},null,null,null,null,{"$f":"K259&\" (\"&L259&\")\"","v":" ()"}]
[]
[]
["et_List11_1"]
[]
[]
[]
[]
["et_List12_1"]
[]
[null,null,null,null,null,"x","x"]
[]
[]
["et_List12_2"]
[]
[null,null,null,null,null,"x",null,"x"]
[]
[]
["et_List12_3"]
[]
[null,null,null,null,{"$f":"E278","v":0},"x",null,"x"]
[]
[]
["et_List12_4"]
[]
[null,null,null,null,{"$f":"E283","v":0},"x",null,"x"]
[]
[]
["et_List05(_1,_2,_3,_4)"]
[]
[1,null,null,null,null,{"$f":"\"2.\" &mergeValue(A289)","v":{"$error":"#NAME?"}},"Наименование централизованной системы коммунальной инфраструктуры",null,"Указывается наименование централизованной системы холодного водоснабжения/горячего водоснабжения/водоотведения/теплоснабжения, к которой относится размещаемая информация.\nВ случае наличия нескольких централизованных систем коммунальной инфраструктуры, информация по каждой из них указывается в отдельной строке."]
[null,null,null,null,null,{"$f":"\"3.\" &mergeValue(A290)","v":{"$error":"#NAME?"}},"Наименование регулируемого вида деятельности",null,"Указывается наименование вида регулируемой деятельности."]
[null,null,null,null,null,{"$f":"\"4.\"&mergeValue(A291)","v":{"$error":"#NAME?"}},"Территория оказания услуги по регулируемому виду деятельности","x"]
[null,1,null,null,null,{"$f":"\"4.\"&mergeValue(A292) &\".\"&mergeValue(B292)","v":{"$error":"#NAME?"}},"Субъект Российской Федерации",{"$f":"IF(region_name=\"\",\"\",region_name)","v":"Новосибирская область"},"Указывается наименование субъекта Российской Федерации"]
[null,null,1,null,null,{"$f":"\"4.\"&mergeValue(A293) &\".\"&mergeValue(B293)&\".\"&mergeValue(C293)","v":{"$error":"#NAME?"}},"муниципальный район",null,"Указывается наименование муниципального района, на территории которого организация оказывает услуги по регулируемому виду деятельности."]
[null,null,null,1,null,{"$f":"\"4.\"&mergeValue(A294) &\".\"&mergeValue(B294)&\".\"&mergeValue(C294)&\".\"&mergeValue(D294)","v":{"$error":"#NAME?"}},"муниципальное образование",null,"Указывается наименование и код муниципального района, муниципального образования в соответствии с Общероссийским классификатором территорий муниципальных образований (далее - ОКТМО), входящего в муниципальный район, на территории которого организация оказывает услуги по регулируемому виду деятельности.\nВ случае оказания услуг по регулируемому виду деятельности на территории нескольких муниципальных районов (муниципальных образований) данные по каждому их них указываются в отдельной строке."]
[null,null,null,null,null,null,"Добавить МО"]
[null,null,null,null,null,null,"Добавить МР"]
[null,null,null,null,null,null,"Добавить территорию"]
[null,null,null,null,null,null,"Добавить ЦС"]

{"sheet":"REESTR_MO_FILTER","index":48,"n_rows":0,"n_cols":0,"rows_kept":0,"cut":false,"hidden":true,"merged":[]}

{"sheet":"REESTR_MO","index":49,"n_rows":491,"n_cols":4,"rows_kept":491,"cut":false,"hidden":true,"merged":[]}
["№","МР","МО","МО_ОКТМО"]
[1,"Баганский муниципальный район","Андреевское","50603402"]
[2,"Баганский муниципальный район","Баганский муниципальный район","50603000"]
[3,"Баганский муниципальный район","Баганское","50603404"]
[4,"Баганский муниципальный район","Ивановское","50603410"]
[5,"Баганский муниципальный район","Казанское","50603413"]
[6,"Баганский муниципальный район","Кузнецовский сельсовет","50603414"]
[7,"Баганский муниципальный район","Лозовское","50603407"]
[8,"Баганский муниципальный район","Мироновское","50603416"]
[9,"Баганский муниципальный район","Палецкое","50603418"]
[10,"Баганский муниципальный район","Савкинское","50603422"]
[11,"Барабинский муниципальный район","Барабинский муниципальный район","50604000"]
[12,"Барабинский муниципальный район","Город Барабинск","50604101"]
[13,"Барабинский муниципальный район","Зюзинское","50604402"]
[14,"Барабинский муниципальный район","Козловское","50604404"]
[15,"Барабинский муниципальный район","Межозерное","50604406"]
[16,"Барабинский муниципальный район","Новониколаевское","50604407"]
[17,"Барабинский муниципальный район","Новоспасское","50604410"]
[18,"Барабинский муниципальный район","Новочановское","50604413"]
[19,"Барабинский муниципальный район","Новоярковское","50604416"]
[20,"Барабинский муниципальный район","Таскаевское","50604419"]
[21,"Барабинский муниципальный район","Устьянцевское","50604418"]
[22,"Барабинский муниципальный район","Шубинское","50604422"]
[23,"Барабинский муниципальный район","Щербаковское","50604425"]
[24,"Болотнинский муниципальный район","Ачинский сельсовет","50606402"]
[25,"Болотнинский муниципальный район","Байкальское","50606404"]
[26,"Болотнинский муниципальный район","Баратаевское","50606405"]
[27,"Болотнинский муниципальный район","Болотнинский муниципальный район","50606000"]
[28,"Болотнинский муниципальный район","Боровское","50606407"]
[29,"Болотнинский муниципальный район","Варламовское","50606410"]
[30,"Болотнинский муниципальный район","Город Болотное","50606101"]
[31,"Болотнинский муниципальный район","Дивинское","50606413"]
[32,"Болотнинский муниципальный район","Егоровское","50606416"]
[33,"Болотнинский муниципальный район","Зудовское","50606419"]
[34,"Болотнинский муниципальный район","Карасевское","50606422"]
[35,"Болотнинский муниципальный район","Корниловское","50606425"]
[36,"Болотнинский муниципальный район","Кунчурукское","50606428"]
[37,"Болотнинский муниципальный район","Новобибеевский сельсовет","50606434"]
[38,"Болотнинский муниципальный район","Ояшинское","50606437"]
[39,"Болотнинский муниципальный район","Светлополянское","50606443"]
[40,"Венгеровский муниципальный район","Венгеровский муниципальный район","50608000"]
[41,"Венгеровский муниципальный район","Венгеровское","50608402"]
[42,"Венгеровский муниципальный район","Вознесенское","50608404"]
[43,"Венгеровский муниципальный район","Воробьевское","50608407"]
[44,"Венгеровский муниципальный район","Ключевское","50608410"]
[45,"Венгеровский муниципальный район","Меньшиковское","50608413"]
[46,"Венгеровский муниципальный район","Мининское","50608416"]
[47,"Венгеровский муниципальный район","Новокуликовское","50608419"]
[48,"Венгеровский муниципальный район","Новотартасское","50608420"]
[49,"Венгеровский муниципальный район","Павловское","50608422"]
[50,"Венгеровский муниципальный район","Петропавловское 1-е","50608425"]
[51,"Венгеровский муниципальный район","Петропавловское 2-е","50608428"]
[52,"Венгеровский муниципальный район","Сибирцевское 1-е","50608431"]
[53,"Венгеровский муниципальный район","Сибирцевское 2-е","50608434"]
[54,"Венгеровский муниципальный район","Тартасское","50608437"]
[55,"Венгеровский муниципальный район","Туруновское","50608440"]
[56,"Венгеровский муниципальный район","Урезское","50608443"]
[57,"Венгеровский муниципальный район","Усть-Изесское","50608446"]
[58,"Венгеровский муниципальный район","Усть-Ламенское","50608447"]
[59,"Венгеровский муниципальный район","Филошенский сельсовет","50608449"]
[60,"Венгеровский муниципальный район","Шипицинский сельсовет","50608452"]
[61,"Город Бердск","Город Бердск","50708000"]
[62,"Город Искитим","Город Искитим","50712000"]
[63,"Город Новосибирск","Город Новосибирск","50701000"]
[64,"Город Обь","Город Обь","50717000"]
[65,"Доволенский муниципальный район","Баклушевское","50610402"]
[66,"Доволенский муниципальный район","Волчанское","50610404"]
[67,"Доволенский муниципальный район","Доволенский муниципальный район","50610000"]
[68,"Доволенский муниципальный район","Доволенское","50610407"]
[69,"Доволенский муниципальный район","Ильинское","50610410"]
[70,"Доволенский муниципальный район","Индерское","50610413"]
[71,"Доволенский муниципальный район","Комарьевское","50610416"]
[72,"Доволенский муниципальный район","Красногривенское","50610419"]
[73,"Доволенский муниципальный район","Согорнское","50610422"]
[74,"Доволенский муниципальный район","Суздальское","50610425"]
[75,"Доволенский муниципальный район","Травнинское","50610428"]
[76,"Доволенский муниципальный район","Утянское","50610431"]
[77,"Доволенский муниципальный район","Шагальское","50610433"]
[78,"Доволенский муниципальный район","Ярковское","50610434"]
[79,"Здвинский муниципальный район","Алексеевское","50613401"]
[80,"Здвинский муниципальный район","Верх-Каргатское","50613402"]
[81,"Здвинский муниципальный район","Верх-Урюмское","50613404"]
[82,"Здвинский муниципальный район","Горносталевское","50613406"]
[83,"Здвинский муниципальный район","Здвинский муниципальный район","50613000"]
[84,"Здвинский муниципальный район","Здвинское","50613407"]
[85,"Здвинский муниципальный район","Лянинское","50613410"]
[86,"Здвинский муниципальный район","Нижнеурюмское","50613428"]
[87,"Здвинский муниципальный район","Нижнечулымское","50613413"]
[88,"Здвинский муниципальный район","Новороссийское","50613416"]
[89,"Здвинский муниципальный район","Петраковское","50613419"]
[90,"Здвинский муниципальный район","Рощинское","50613422"]
[91,"Здвинский муниципальный район","Сарыбалыкское","50613425"]
[92,"Здвинский муниципальный район","Цветниковское","50613430"]
[93,"Здвинский муниципальный район","Чулымское","50613431"]
[94,"Искитимский муниципальный район","Бурмистровское","50615401"]
[95,"Искитимский муниципальный район","Быстровское","50615402"]
[96,"Искитимский муниципальный район","Верх-Коенское","50615404"]
[97,"Искитимский муниципальный район","Гилевское","50615407"]
[98,"Искитимский муниципальный район","Гусельниковское","50615410"]
[99,"Искитимский муниципальный район","Евсинское","50615413"]
[100,"Искитимский муниципальный район","Искитимский муниципальный район","50615000"]
[101,"Искитимский муниципальный район","Легостаевское","50615416"]
[102,"Искитимский муниципальный район","Листвянское","50615415"]
[103,"Искитимский муниципальный район","Мичуринское","50615417"]
[104,"Искитимский муниципальный район","Морозовское","50615418"]
[105,"Искитимский муниципальный район","Поселок Линево","50615152"]
[106,"Искитимский муниципальный район","Преображенское","50615419"]
[107,"Искитимский муниципальный район","Промышленное","50615420"]
[108,"Искитимский муниципальный район","Совхозное","50615422"]
[109,"Искитимский муниципальный район","Степное","50615425"]
[110,"Искитимский муниципальный район","Тальменское","50615428"]
[111,"Искитимский муниципальный район","Улыбинское","50615431"]
[112,"Искитимский муниципальный район","Усть-Чемское","50615434"]
[113,"Искитимский муниципальный район","Чернореченское","50615437"]
[114,"Искитимский муниципальный район","Шибковское","50615440"]
[115,"Карасукский муниципальный район","Беленское","50617402"]
[116,"Карасукский муниципальный район","Благодатское","50617404"]
[117,"Карасукский муниципальный район","Город Карасук","50617101"]
[118,"Карасукский муниципальный район","Знаменское","50617406"]
[119,"Карасукский муниципальный район","Ирбизинское","50617407"]
[120,"Карасукский муниципальный район","Калиновское","50617410"]
[121,"Карасукский муниципальный район","Карасукский муниципальный район","50617000"]
[122,"Карасукский муниципальный район","Михайловское","50617413"]
[123,"Карасукский муниципальный район","Октябрьское","50617416"]
[124,"Карасукский муниципальный район","Студеновское","50617419"]
[125,"Карасукский муниципальный район","Троицкое","50617422"]
[126,"Карасукский муниципальный район","Хорошинское","50617425"]
[127,"Карасукский муниципальный район","Чернокурьинское","50617428"]
[128,"Каргатский муниципальный район","Алабугинское","50619402"]
[129,"Каргатский муниципальный район","Беркутовское","50619404"]
[130,"Каргатский муниципальный район","Верх-Каргатское","50619407"]
[131,"Каргатский муниципальный район","Город Каргат","50619101"]
[132,"Каргатский муниципальный район","Карганское","50619410"]
[133,"Каргатский муниципальный район","Каргатский муниципальный район","50619000"]
[134,"Каргатский муниципальный район","Кубанское","50619413"]
[135,"Каргатский муниципальный район","Маршанское","50619416"]
[136,"Каргатский муниципальный район","Мусинское","50619419"]
[137,"Каргатский муниципальный район","Первомайское","50619422"]
[138,"Каргатский муниципальный район","Суминское","50619425"]
[139,"Каргатский муниципальный район","Форпост-Каргатское","50619428"]
[140,"Колыванский муниципальный район","Вьюнское","50621402"]
[141,"Колыванский муниципальный район","Калининское","50621404"]
[142,"Колыванский муниципальный район","Кандауровское","50621407"]
[143,"Колыванский муниципальный район","Колыванский муниципальный район","50621000"]
[144,"Колыванский муниципальный район","Королевское","50621410"]
[145,"Колыванский муниципальный район","Новотроицкое","50621413"]
[146,"Колыванский муниципальный район","Новотырышкинское","50621416"]
[147,"Колыванский муниципальный район","Пихтовское","50621419"]
[148,"Колыванский муниципальный район","Пономаревское","50621422"]
[149,"Колыванский муниципальный район","Поселок Колывань","50621151"]
[150,"Колыванский муниципальный район","Сидоровское","50621425"]
[151,"Колыванский муниципальный район","Скалинское","50621428"]
[152,"Колыванский муниципальный район","Соколовское","50621431"]
[153,"Коченевский муниципальный район","Дупленское","50623402"]
[154,"Коченевский муниципальный район","Коченевский муниципальный район","50623000"]
[155,"Коченевский муниципальный район","Краснотальское","50623404"]
[156,"Коченевский муниципальный район","Кремлевское","50623407"]
[157,"Коченевский муниципальный район","Крутологовское","50623410"]
[158,"Коченевский муниципальный район","Леснополянское","50623413"]
[159,"Коченевский муниципальный район","Новомихайловское","50623416"]
[160,"Коченевский муниципальный район","Овчинниковское","50623418"]
[161,"Коченевский муниципальный район","Поваренское","50623419"]
[162,"Коченевский муниципальный район","Поселок Коченево","50623151"]
[163,"Коченевский муниципальный район","Поселок Чик","50623154"]
[164,"Коченевский муниципальный район","Прокудское","50623422"]
[165,"Коченевский муниципальный район","Совхозное","50623425"]
[166,"Коченевский муниципальный район","Федосихинское","50623428"]
[167,"Коченевский муниципальный район","Целинное","50623431"]
[168,"Коченевский муниципальный район","Чистопольское","50623434"]
[169,"Коченевский муниципальный район","Шагаловское","50623437"]
[170,"Кочковский муниципальный район","Быструхинское","50625402"]
[171,"Кочковский муниципальный район","Ермаковское","50625404"]
[172,"Кочковский муниципальный район","Жуланское","50625407"]
[173,"Кочковский муниципальный район","Кочковский муниципальный район","50625000"]
[174,"Кочковский муниципальный район","Кочковское","50625410"]
[175,"Кочковский муниципальный район","Красносибирское","50625411"]
[176,"Кочковский муниципальный район","Новорешетовское","50625414"]
[177,"Кочковский муниципальный район","Новоцелинное","50625412"]
[178,"Кочковский муниципальный район","Решетовское","50625413"]
[179,"Кочковский муниципальный район","Троицкое","50625416"]
[180,"Кочковский муниципальный район","Черновское","50625419"]
[181,"Краснозерский муниципальный район","Аксенихинское","50627402"]
[182,"Краснозерский муниципальный район","Веселовское","50627404"]
[183,"Краснозерский муниципальный район","Зубковское","50627407"]
[184,"Краснозерский муниципальный район","Казанакское","50627408"]
[185,"Краснозерский муниципальный район","Кайгородское","50627409"]
[186,"Краснозерский муниципальный район","Колыбельское","50627410"]
[187,"Краснозерский муниципальный район","Коневское","50627413"]
[188,"Краснозерский муниципальный район","Краснозерский муниципальный район","50627000"]
[189,"Краснозерский муниципальный район","Лобинское","50627419"]
[190,"Краснозерский муниципальный район","Лотошанское","50627420"]
[191,"Краснозерский муниципальный район","Майское","50627422"]
[192,"Краснозерский муниципальный район","Мохнатологовское","50627425"]
[193,"Краснозерский муниципальный район","Нижнечеремошинское","50627428"]
[194,"Краснозерский муниципальный район","Октябрьское","50627431"]
[195,"Краснозерский муниципальный район","Орехово-Логовское","50627434"]
[196,"Краснозерский муниципальный район","Половинское","50627437"]
[197,"Краснозерский муниципальный район","Полойское","50627440"]
[198,"Краснозерский муниципальный район","Поселок Краснозерское","50627151"]
[199,"Краснозерский муниципальный район","Садовское","50627443"]
[200,"Краснозерский муниципальный район","Светловское","50627446"]
[201,"Куйбышевский муниципальный район","Абрамовское","50630402"]
[202,"Куйбышевский муниципальный район","Балманское","50630404"]
[203,"Куйбышевский муниципальный район","Булатовское","50630407"]
[204,"Куйбышевский муниципальный район","Верх-Ичинское","50630410"]
[205,"Куйбышевский муниципальный район","Веснянское","50630411"]
[206,"Куйбышевский муниципальный район","Гжатское","50630413"]
[207,"Куйбышевский муниципальный район","Горбуновское","50630416"]
[208,"Куйбышевский муниципальный район","Город Куйбышев","50630101"]
[209,"Куйбышевский муниципальный район","Зоновское","50630419"]
[210,"Куйбышевский муниципальный район","Камское","50630422"]
[211,"Куйбышевский муниципальный район","Куйбышевский муниципальный район","50630000"]
[212,"Куйбышевский муниципальный район","Куйбышевское","50630425"]
[213,"Куйбышевский муниципальный район","Михайловское","50630428"]
[214,"Куйбышевский муниципальный район","Новоичинское","50630431"]
[215,"Куйбышевский муниципальный район","Октябрьское","50630434"]
[216,"Куйбышевский муниципальный район","Осиновское","50630437"]
[217,"Куйбышевский муниципальный район","Отрадненское","50630440"]
[218,"Куйбышевский муниципальный район","Сергинское","50630443"]
[219,"Куйбышевский муниципальный район","Чумаковское","50630446"]
[220,"Купинский муниципальный район","Благовещенское","50632401"]
[221,"Купинский муниципальный район","Вишневское","50632402"]
[222,"Купинский муниципальный район","Город Купино","50632101"]
[223,"Купинский муниципальный район","Копкульское","50632404"]
[224,"Купинский муниципальный район","Купинский муниципальный район","50632000"]
[225,"Купинский муниципальный район","Ленинское","50632407"]
[226,"Купинский муниципальный район","Лягушинское","50632410"]
[227,"Купинский муниципальный район","Медяковское","50632413"]
[228,"Купинский муниципальный район","Метелевское","50632416"]
[229,"Купинский муниципальный район","Новоключевское","50632419"]
[230,"Купинский муниципальный район","Новониколаевское","50632422"]
[231,"Купинский муниципальный район","Новосельское","50632425"]
[232,"Купинский муниципальный район","Рождественское","50632428"]
[233,"Купинский муниципальный район","Сибирское","50632431"]
[234,"Купинский муниципальный район","Стеклянское","50632434"]
[235,"Купинский муниципальный район","Чаинское","50632437"]
[236,"Купинский муниципальный район","Яркульское","50632440"]
[237,"Кыштовский муниципальный район","Березовское","50634402"]
[238,"Кыштовский муниципальный район","Большереченское","50634404"]
[239,"Кыштовский муниципальный район","Вараксинское","50634407"]
[240,"Кыштовский муниципальный район","Верх-Майзасское","50634410"]
[241,"Кыштовский муниципальный район","Верх-Таркское","50634413"]
[242,"Кыштовский муниципальный район","Ереминское","50634416"]
[243,"Кыштовский муниципальный район","Заливинское","50634419"]
[244,"Кыштовский муниципальный район","Колбасинское","50634422"]
[245,"Кыштовский муниципальный район","Крутихинское","50634425"]
[246,"Кыштовский муниципальный район","Кулябинское","50634428"]
[247,"Кыштовский муниципальный район","Кыштовский муниципальный район","50634000"]
[248,"Кыштовский муниципальный район","Кыштовское","50634431"]
[249,"Кыштовский муниципальный район","Малокрасноярское","50634434"]
[250,"Кыштовский муниципальный район","Новомайзасское","50634437"]
[251,"Кыштовский муниципальный район","Новочекинское","50634440"]
[252,"Кыштовский муниципальный район","Орловское","50634443"]
[253,"Кыштовский муниципальный район","Сергеевское","50634446"]
[254,"Кыштовский муниципальный район","Черновское","50634449"]
[255,"Маслянинский муниципальный район","Бажинское","50636404"]
[256,"Маслянинский муниципальный район","Берёзовское","50636407"]
[257,"Маслянинский муниципальный район","Большеизыракское","50636410"]
[258,"Маслянинский муниципальный район","Борковское","50636413"]
[259,"Маслянинский муниципальный район","Дубровское","50636416"]
[260,"Маслянинский муниципальный район","Егорьевское","50636419"]
[261,"Маслянинский муниципальный район","Елбанское","50636422"]
[262,"Маслянинский муниципальный район","Малотомское","50636402"]
[263,"Маслянинский муниципальный район","Мамоновское","50636425"]
[264,"Маслянинский муниципальный район","Маслянинский муниципальный район","50636000"]
[265,"Маслянинский муниципальный район","Никоновское","50636428"]
[266,"Маслянинский муниципальный район","Пеньковское","50636431"]
[267,"Маслянинский муниципальный район","Поселок Маслянино","50636151"]
[268,"Мошковский муниципальный район","Балтинское","50638402"]
[269,"Мошковский муниципальный район","Барлакское","50638404"]
[270,"Мошковский муниципальный район","Дубровинское","50638407"]
[271,"Мошковский муниципальный район","Кайлинское","50638410"]
[272,"Мошковский муниципальный район","Мошковский муниципальный район","50638000"]
[273,"Мошковский муниципальный район","Новомошковское","50638416"]
[274,"Мошковский муниципальный район","Поселок Мошково","50638151"]
[275,"Мошковский муниципальный район","Поселок Станционно-Ояшинский","50638154"]
[276,"Мошковский муниципальный район","Сарапульское","50638413"]
[277,"Мошковский муниципальный район","Сокурское","50638419"]
[278,"Мошковский муниципальный район","Ташаринское","50638422"]
[279,"Мошковский муниципальный район","Широкоярское","50638425"]
[280,"Новосибирский муниципальный район","Барышевское","50640402"]
[281,"Новосибирский муниципальный район","Березовское","50640404"]
[282,"Новосибирский муниципальный район","Боровское","50640407"]
[283,"Новосибирский муниципальный район","Верх-Тулинское","50640410"]
[284,"Новосибирский муниципальный район","Каменское","50640416"]
[285,"Новосибирский муниципальный район","Криводановское","50640419"]
[286,"Новосибирский муниципальный район","Кубовинское","50640422"]
[287,"Новосибирский муниципальный район","Кудряшовское","50640425"]
[288,"Новосибирский муниципальный район","Мичуринское Новосибирский","50640428"]
[289,"Новосибирский муниципальный район","Морское","50640429"]
[290,"Новосибирский муниципальный район","Мочищенское","50640431"]
[291,"Новосибирский муниципальный район","Новолуговское","50640434"]
[292,"Новосибирский муниципальный район","Новосибирский муниципальный район","50640000"]
[293,"Новосибирский муниципальный район","Плотниковское","50640437"]
[294,"Новосибирский муниципальный район","Поселок Краснообск","50640154"]
[295,"Новосибирский муниципальный район","Раздольненское","50640438"]
[296,"Новосибирский муниципальный район","Станционное","50640440"]
[297,"Новосибирский муниципальный район","Толмачевское","50640443"]
[298,"Новосибирский муниципальный район","Ярковское Новосибирский","50640446"]
[299,"Ордынский муниципальный район","Берёзовское","50642403"]
[300,"Ордынский муниципальный район","Вагайцевское","50642401"]
[301,"Ордынский муниципальный район","Верх-Алеусское","50642402"]
[302,"Ордынский муниципальный район","Верх-Ирменское","50642404"]
[303,"Ордынский муниципальный район","Верх-Чикское","50642405"]
[304,"Ордынский муниципальный район","Кирзинское","50642407"]
[305,"Ордынский муниципальный район","Козихинское","50642410"]
[306,"Ордынский муниципальный район","Красноярское","50642413"]
[307,"Ордынский муниципальный район","Нижнекаменское","50642416"]
[308,"Ордынский муниципальный район","Новопичуговское","50642418"]
[309,"Ордынский муниципальный район","Новошарапское","50642420"]
[310,"Ордынский муниципальный район","Ордынский муниципальный район","50642000"]
[311,"Ордынский муниципальный район","Петровское","50642419"]
[312,"Ордынский муниципальный район","Поселок Ордынское","50642151"]
[313,"Ордынский муниципальный район","Пролетарское","50642422"]
[314,"Ордынский муниципальный район","Рогалевское","50642423"]
[315,"Ордынский муниципальный район","Спиринское","50642425"]
[316,"Ордынский муниципальный район","Усть-Луковское","50642428"]
[317,"Ордынский муниципальный район","Устюжанинское","50642431"]
[318,"Ордынский муниципальный район","Филипповское","50642434"]
[319,"Ордынский муниципальный район","Чингисское","50642437"]
[320,"Ордынский муниципальный район","Шайдуровское","50642440"]
[321,"Посёлок Кольцово","Посёлок Кольцово","50740000"]
[322,"Северный муниципальный район","Бергульское","50644402"]
[323,"Северный муниципальный район","Биазинское","50644404"]
[324,"Северный муниципальный район","Верх-Красноярское","50644407"]
[325,"Северный муниципальный район","Гражданцевское","50644410"]
[326,"Северный муниципальный район","Новотроицкое","50644413"]
[327,"Северный муниципальный район","Останинское","50644416"]
[328,"Северный муниципальный район","Остяцкое","50644419"]
[329,"Северный муниципальный район","Потюкановское","50644422"]
[330,"Северный муниципальный район","Северное","50644425"]
[331,"Северный муниципальный район","Северный муниципальный район","50644000"]
[332,"Северный муниципальный район","Федоровское","50644428"]
[333,"Северный муниципальный район","Чебаковское","50644431"]
[334,"Северный муниципальный район","Чувашинское","50644434"]
[335,"Сузунский муниципальный район","Битковское","50648402"]
[336,"Сузунский муниципальный район","Бобровское","50648404"]
[337,"Сузунский муниципальный район","Болтовское","50648407"]
[338,"Сузунский муниципальный район","Верх-Сузунское","50648410"]
[339,"Сузунский муниципальный район","Заковряжинское","50648416"]
[340,"Сузунский муниципальный район","Каргаполовское","50648419"]
[341,"Сузунский муниципальный район","Ключиковское","50648422"]
[342,"Сузунский муниципальный район","Малышевское","50648425"]
[343,"Сузунский муниципальный район","Маюровское","50648428"]
[344,"Сузунский муниципальный район","Меретское","50648430"]
[345,"Сузунский муниципальный район","Мышланское","50648432"]
[346,"Сузунский муниципальный район","Поселок Сузун","50648151"]
[347,"Сузунский муниципальный район","Сузунский муниципальный район","50648000"]
[348,"Сузунский муниципальный район","Шайдуровский","50648434"]
[349,"Сузунский муниципальный район","Шарчинское","50648437"]
[350,"Сузунский муниципальный район","Шипуновское","50648440"]
[351,"Татарский муниципальный район","Город Татарск","50650101"]
[352,"Татарский муниципальный район","Дмитриевское","50650402"]
[353,"Татарский муниципальный район","Зубовское","50650403"]
[354,"Татарский муниципальный район","Казаткульское","50650404"]
[355,"Татарский муниципальный район","Казачемысское","50650407"]
[356,"Татарский муниципальный район","Киевское","50650410"]
[357,"Татарский муниципальный район","Козловское","50650413"]
[358,"Татарский муниципальный район","Константиновское","50650416"]
[359,"Татарский муниципальный район","Кочневское","50650419"]
[360,"Татарский муниципальный район","Красноярское","50650420"]
[361,"Татарский муниципальный район","Лопатинское","50650421"]
[362,"Татарский муниципальный район","Неудачинское","50650423"]
[363,"Татарский муниципальный район","Николаевское","50650422"]
[364,"Татарский муниципальный район","Никулинское","50650425"]
[365,"Татарский муниципальный район","Новомихайловское","50650428"]
[366,"Татарский муниципальный район","Новопервомайское","50650430"]
[367,"Татарский муниципальный район","Новопокровское","50650431"]
[368,"Татарский муниципальный район","Новотроицкое","50650433"]
[369,"Татарский муниципальный район","Орловское","50650435"]
[370,"Татарский муниципальный район","Северотатарское","50650437"]
[371,"Татарский муниципальный район","Татарский муниципальный район","50650000"]
[372,"Татарский муниципальный район","Увальское","50650440"]
[373,"Татарский муниципальный район","Ускюльское","50650443"]
[374,"Тогучинский муниципальный район","Борцовское","50652402"]
[375,"Тогучинский муниципальный район","Буготакское","50652404"]
[376,"Тогучинский муниципальный район","Вассинское","50652407"]
[377,"Тогучинский муниципальный район","Город Тогучин","50652101"]
[378,"Тогучинский муниципальный район","Гутовское","50652410"]
[379,"Тогучинский муниципальный район","Завьяловское","50652413"]
[380,"Тогучинский муниципальный район","Заречное","50652416"]
[381,"Тогучинский муниципальный район","Киикское","50652422"]
[382,"Тогучинский муниципальный район","Кировское","50652425"]
[383,"Тогучинский муниципальный район","Коуракское","50652428"]
[384,"Тогучинский муниципальный район","Кудельно-Ключевское","50652431"]
[385,"Тогучинский муниципальный район","Кудринское","50652433"]
[386,"Тогучинский муниципальный район","Лебедевское","50652435"]
[387,"Тогучинский муниципальный район","Мирновское","50652437"]
[388,"Тогучинский муниципальный район","Нечаевское","50652439"]
[389,"Тогучинский муниципальный район","Поселок Горный","50652153"]
[390,"Тогучинский муниципальный район","Репьевское","50652438"]
[391,"Тогучинский муниципальный район","Степногутовское","50652441"]
[392,"Тогучинский муниципальный район","Сурковское","50652443"]
[393,"Тогучинский муниципальный район","Тогучинский муниципальный район","50652000"]
[394,"Тогучинский муниципальный район","Усть-Каменское","50652446"]
[395,"Тогучинский муниципальный район","Чемское","50652449"]
[396,"Тогучинский муниципальный район","Шахтинское","50652452"]
[397,"Убинский муниципальный район","Борисоглебское","50654401"]
[398,"Убинский муниципальный район","Владимировское","50654402"]
[399,"Убинский муниципальный район","Гандичевское","50654404"]
[400,"Убинский муниципальный район","Ермолаевское","50654407"]
[401,"Убинский муниципальный район","Кожурлинское","50654410"]
[402,"Убинский муниципальный район","Колмаковское","50654413"]
[403,"Убинский муниципальный район","Крещенское","50654416"]
[404,"Убинский муниципальный район","Круглоозерное","50654419"]
[405,"Убинский муниципальный район","Кундранское","50654422"]
[406,"Убинский муниципальный район","Невское","50654425"]
[407,"Убинский муниципальный район","Новодубровское","50654428"]
[408,"Убинский муниципальный район","Орловское","50654431"]
[409,"Убинский муниципальный район","Пешковское","50654437"]
[410,"Убинский муниципальный район","Раисинское","50654434"]
[411,"Убинский муниципальный район","Убинский муниципальный район","50654000"]
[412,"Убинский муниципальный район","Убинское","50654440"]
[413,"Убинский муниципальный район","Черномысинское","50654443"]
[414,"Усть-Таркский муниципальный район","Дубровинское","50655402"]
[415,"Усть-Таркский муниципальный район","Еланское","50655404"]
[416,"Усть-Таркский муниципальный район","Камышевское","50655407"]
[417,"Усть-Таркский муниципальный район","Козинское","50655410"]
[418,"Усть-Таркский муниципальный район","Кушаговское","50655413"]
[419,"Усть-Таркский муниципальный район","Новоникольское","50655416"]
[420,"Усть-Таркский муниципальный район","Новосилишинское","50655419"]
[421,"Усть-Таркский муниципальный район","Побединское","50655422"]
[422,"Усть-Таркский муниципальный район","Угуйское","50655424"]
[423,"Усть-Таркский муниципальный район","Усть-Таркский муниципальный район","50655000"]
[424,"Усть-Таркский муниципальный район","Усть-Таркское","50655425"]
[425,"Усть-Таркский муниципальный район","Щербаковское","50655427"]
[426,"Усть-Таркский муниципальный район","Яркуль-Матюшкинское","50655428"]
[427,"Усть-Таркский муниципальный район","Яркульский сельсовет","50655431"]
[428,"Чановский муниципальный район","Блюдчанское","50656402"]
[429,"Чановский муниципальный район","Землянозаимское","50656404"]
[430,"Чановский муниципальный район","Красносельское","50656407"]
[431,"Чановский муниципальный район","Матвеевское","50656410"]
[432,"Чановский муниципальный район","Новопреображенское","50656412"]
[433,"Чановский муниципальный район","Озеро-Карачинское","50656413"]
[434,"Чановский муниципальный район","Отреченское","50656416"]
[435,"Чановский муниципальный район","Погорельское","50656419"]
[436,"Чановский муниципальный район","Покровское","50656422"]
[437,"Чановский муниципальный район","Поселок Чаны","50656151"]
[438,"Чановский муниципальный район","Старокарачинское","50656428"]
[439,"Чановский муниципальный район","Тагановское","50656431"]
[440,"Чановский муниципальный район","Тебисское","50656425"]
[441,"Чановский муниципальный район","Чановский муниципальный район","50656000"]
[442,"Чановский муниципальный район","Щегловское","50656434"]
[443,"Черепановский муниципальный район","Безменовское","50657402"]
[444,"Черепановский муниципальный район","Бочкаревское","50657404"]
[445,"Черепановский муниципальный район","Верх-Мильтюшинское","50657407"]
[446,"Черепановский муниципальный район","Город Черепаново","50657101"]
[447,"Черепановский муниципальный район","Искровское","50657409"]
[448,"Черепановский муниципальный район","Карасевское","50657410"]
[449,"Черепановский муниципальный район","Майское","50657413"]
[450,"Черепановский муниципальный район","Медведское","50657416"]
[451,"Черепановский муниципальный район","Огнево-Заимковское","50657419"]
[452,"Черепановский муниципальный район","Поселок Дорогино","50657154"]
[453,"Черепановский муниципальный район","Поселок Посевная","50657163"]
[454,"Черепановский муниципальный район","Пятилетское","50657422"]
[455,"Черепановский муниципальный район","Татарское","50657425"]
[456,"Черепановский муниципальный район","Черепановский муниципальный район","50657000"]
[457,"Черепановский муниципальный район","Шурыгинское","50657428"]
[458,"Чистоозерный муниципальный район","Барабо-Юдинское","50658402"]
[459,"Чистоозерный муниципальный район","Варваровское","50658403"]
[460,"Чистоозерный муниципальный район","Елизаветинское","50658404"]
[461,"Чистоозерный муниципальный район","Журавское","50658407"]
[462,"Чистоозерный муниципальный район","Ишимское","50658408"]
[463,"Чистоозерный муниципальный район","Новокрасненское","50658410"]
[464,"Чистоозерный муниципальный район","Новокулындинское","50658411"]
[465,"Чистоозерный муниципальный район","Новопесчанское","50658413"]
[466,"Чистоозерный муниципальный район","Ольгинское","50658416"]
[467,"Чистоозерный муниципальный район","Павловское","50658419"]
[468,"Чистоозерный муниципальный район","Польяновское","50658422"]
[469,"Чистоозерный муниципальный район","Поселок Чистоозерное","50658151"]
[470,"Чистоозерный муниципальный район","Прибрежное","50658423"]
[471,"Чистоозерный муниципальный район","Романовское","50658425"]
[472,"Чистоозерный муниципальный район","Табулгинское","50658428"]
[473,"Чистоозерный муниципальный район","Троицкое","50658431"]
[474,"Чистоозерный муниципальный район","Чистоозерный муниципальный район","50658000"]
[475,"Чистоозерный муниципальный район","Шипицинское","50658434"]
[476,"Чулымский муниципальный район","Базовское","50659402"]
[477,"Чулымский муниципальный район","Большеникольское","50659404"]
[478,"Чулымский муниципальный район","Воздвиженское","50659407"]
[479,"Чулымский муниципальный район","Город Чулым","50659101"]
[480,"Чулымский муниципальный район","Иткульское","50659410"]
[481,"Чулымский муниципальный район","Кабинетное","50659413"]
[482,"Чулымский муниципальный район","Каякское","50659416"]
[483,"Чулымский муниципальный район","Кокошинское","50659419"]
[484,"Чулымский муниципальный район","Куликовское","50659422"]
[485,"Чулымский муниципальный район","Осиновское","50659424"]
[486,"Чулымский муниципальный район","Пеньковское","50659425"]
[487,"Чулымский муниципальный район","Серебрянское","50659428"]
[488,"Чулымский муниципальный район","Ужанихинское","50659431"]
[489,"Чулымский муниципальный район","Чикманское","50659434"]
[490,"Чулымский муниципальный район","Чулымский муниципальный район","50659000"]

{"sheet":"TEHSHEET","index":50,"n_rows":87,"n_cols":53,"rows_kept":87,"cut":false,"hidden":true,"merged":[[0,51,0,52]]}
["REGION","year_list1","year_list","logical","Месяц\n(MONTH)","Квартал\n(QUARTER)","Месяц\n(kind_of_publication)","НДС\n/kind_of_NDS/","Номер СЦХВ(СЦВО)\n/SKI_number/","Единица измерения объема оказываемых услуг ГВС\n/kind_of_unit_GVS/","Метод регулирования\n/kind_of_control_method/",null,null,"Вид деятельности, на которую установлен тариф /kind_of_activity_WARM/","Вид теплоносителя\n(kind_of_heat_transfer)","Тип данных\n(kind_of_data_type)","Схема подключения\n(kind_of_scheme_in)\n(kind_of_scheme_in2)","Группы потребителей\n(kind_of_cons)","Тип прокладки тепловых сетей\n(kind_of_nets)","Диапазаны диаметров тепловых сетей\n(kind_of_diameters)","Подключаемая тепловая нагрузка\n(kind_of_load)",null,"Форма 2, таблица Х","виды тарифа\n/kind_group_rates/","Заголовок таблицы",null,"name_rates_4",null,"name_rates_8",null,null,"Подключаемая тепловая нагрузка\n(kind_of_load3)",null,"Вид теплоносителя\n(kind_of_heat_transfer2)","Вид теплоносителя\n(kind_of_heat_transfer3)",null,"Вид топлива\n(kind_of_fuel)",null,"Способ закупки товаров\n(kind_of_zak)",null,null,"виды тарифа\n/kind_group_rates_load/","виды тарифа\n/kind_group_rates_load_filter/",null,"виды признаков дифференциации\n/kind_of_diff/",null,"Диапазаны диаметров водопроводных сетей\n(kind_of_diameters2)",null,"List_H","List_M",null,"Перечень форм\n(kind_of_forms)"]
["Алтайский край",2000,2013,"да","январь","I квартал","На официальном сайте организации","общий","1","тыс.куб.м/сутки","метод экономически обоснованных расходов (затрат)","метод экономически обоснованных расходов (затрат)",1,"Передача+Сбыт","Без дифференциации","первичное раскрытие информации","без дифференциации","организации-перепродавцы","надземная (наземная)","50 - 250 мм","не превышает 0,1 Гкал/ч",1,null,"Тариф на водоотведение","Информация о предложении об установлении тарифов на водоотведение",null,"Тариф на холодную воду питьевую","Тариф на холодную воду питьевую","Плата за услуги по поддержанию резервной тепловой мощности при отсутствии потребления тепловой энергии для отдельных категорий (групп) социально значимых потребителей","Плата за услуги по поддержанию резервной тепловой мощности при отсутствии потребления тепловой энергии для отдельных категорий (групп) социально значимых потребителей",null,"не превышает 0,1 Гкал/ч",null,"Вода","Вода",null,"Газ природный по регулируемой цене",null,"Конкурс",null,null,"Тариф на подключение (технологическое присоединение) к централизованной системе водоотведения в индивидуальном порядке","Тариф на подключение (технологическое присоединение) к централизованной системе водоотведения в индивидуальном порядке",null,"объемы потребления воды абонентами",null,"40 мм и менее",null,"00","00",null,"Форма 1.0.1","Основные параметры раскрываемой информации"]
["Амурская область",2001,2014,"нет","февраль","II квартал","На сайте регулирующего органа","общий с учетом освобождения от уплаты НДС","2","Гкал/ч","метод индексации установленных тарифов","метод индексации установленных тарифов",2,"Передача","Горячая вода","изменения в раскрытой ранее информации","к коллектору источника тепловой энергии","бюджетные организации","подземная (канальная)","251 - 400 мм","более 0,1 Гкал/ч и не превышает 1,5 Гкал/ч",2,null,"Тариф на транспортировку сточных вод","Информация о предложении об установлении тарифов на транспортировку сточных вод",null,"Тариф на холодную воду артезианскую","Тариф на холодную воду артезианскую","Плата за услуги по поддержанию резервной тепловой мощности, оказываемые регулируемой организацией, мощность источников тепловой энергии которой используется для поддержания резервной мощности в соответствии со схемой теплоснабжения","Плата за услуги по поддержанию резервной тепловой мощности, оказываемые регулируемой организацией, мощность источников тепловой энергии которой используется для поддержания резервной мощности в соответствии со схемой теплоснабжения",null,"более 0,1 Гкал/ч и не превышает 1,5 Гкал/ч",null,"Отборный пар, 1,2-2,5 кг/см2","Пар",null,"Газ природный по нерегулируемой цене",null,"Аукцион",null,null,"Тариф на подключение (технологическое присоединение) к централизованной системе водоотведения","Тариф на подключение (технологическое присоединение) к централизованной системе водоотведения",null,"соответствие качества питьевой воды и горячей воды требованиям, установленным санитарными нормами и правилами",null,"от 41 мм до 70 мм включительно",null,"01","01",null,"Форма 3.2","Информация о величинах тарифов на водоотведение, транспортировку воды"]
["Архангельская область",2002,2015,null,"март","III квартал",null,"специальный (упрощенная система налогообложения, система налогообложения для сельскохозяйственных производителей)","3","куб.м/ч","метод обеспечения доходности инвестированного капитала","метод обеспечения доходности инвестированного капитала",3,"производство комбинированная выработка","Холодная вода",null,"к тепловой сети без дополнительного преобразования на тепловых пунктах, эксплуатируемых теплоснабжающей организацией","население и приравненные категории","подземная (бесканальная)","401 - 550 мм","превышает 1,5 Гкал/ч при наличии технической возможности подключения",3,null,222,null,null,"Тариф на холодную воду поверхностную","Тариф на холодную воду поверхностную","Плата за услуги по поддержанию резервной тепловой мощности, оказываемые регулируемой организацией, мощность тепловых сетей которой используется для поддержания резервной мощности в соответствии со схемой теплоснабжения","Плата за услуги по поддержанию резервной тепловой мощности, оказываемые регулируемой организацией, мощность тепловых сетей которой используется для поддержания резервной мощности в соответствии со схемой теплоснабжения",null,"превышает 1,5 Гкал/ч при наличии технической возможности подключения",null,"Отборный пар, 2,5-7 кг/см2",null,null,"Уголь",null,"Аукцион в электронной форме",null,null,"Тариф на транспортировку сточных вод","Тариф на транспортировку сточных вод",null,"иное",null,"от 71 мм до 100 мм включительно",null,"02","02",null,"Форма 3.4","Информация о величинах тарифов на подключение к централизованной системе водоотведения"]
["Астраханская область",2003,2016,null,"апрель","IV квартал",null,null,"4",null,"метод сравнения аналогов","метод сравнения аналогов",4,"производство (некомбинированная выработка)+передача+сбыт","Вода",null,"к тепловой сети после тепловых пунктов (на тепловых пунктах), эксплуатируемых теплоснабжающей организацией","прочие",null,"551 - 700 мм","превышает 1,5 Гкал/ч при отсутствии технической возможности подключения",4,null,333,null,1,"Добавить вариант …","Добавить вариант …",null,null,null,"не известна",null,"Отборный пар, 7-13 кг/см2",null,null,"Мазут",null,"Запрос котировок",null,null,"Тариф на водоотведение",null,null,null,null,"от 101 мм до 150 мм включительно",null,"03","03",null,"Форма 3.9","Информация об условиях, на которых осуществляется поставка регулируемых товаров и (или) оказание регулируемых услуг"]
["Белгородская область",2004,2017,null,"май",null,"НДС общий\n/kind_of_NDS_tariff/","НДС\n/kind_of_NDS_tariff/","5","Вид тарифа на передачу тепловой энергии /kind_of_tariff_unit/",null,null,null,"производство (некомбинированная выработка)+передача","Пар",null,null,"без дифференциации",null,"701 мм и выше","не известна",5,null,55,55,null,null,null,null,null,null,null,null,"Отборный пар, > 13 кг/см2",null,null,"Дизельное топливо",null,"Единственный поставщик",null,null,null,null,null,null,null,"от 151 мм до 200 мм включительно",null,"04","04",null,"Форма 3.10","Информация о порядке выполнения технологических, технических и других мероприятий, связанных с подключением к централизованной системе водоотведения"]
["Брянская область",2005,null,null,"июнь",null,"тариф указан с НДС для плательщиков НДС","тариф для организаций не являющихся плательщиками НДС","6","руб./Гкал/ч/мес",null,null,null,"производство (некомбинированная выработка)+сбыт","Отборный пар, 1,2-2,5 кг/см2",null,null,null,null,null,"нет","6",null,66666,null,null,null,null,null,null,null,null,null,"Острый и редуцированный пар",null,null,"Дрова",null,"Иное",null,null,null,null,null,null,null,"от 201 мм до 250 мм включительно",null,"05","05"]
["Владимирская область",2006,null,null,"июль",null,"тариф указан без НДС для плательщиков НДС","тариф не утверждался","7","руб./Гкал",null,null,null,"производство (некомбинированная выработка)","Отборный пар, 2,5-7 кг/см2",null,null,null,null,null,null,"7",null,77777,null,null,null,null,null,null,null,null,null,null,null,null,"Электроэнергия",null,null,null,null,null,null,null,null,null,"от 250  мм и более",null,"06","06"]
["Волгоградская область",2007,null,null,"август",null,"тариф не утверждался",null,"8",null,null,null,null,null,"Отборный пар, 7-13 кг/см2",null,null,null,null,null,null,"8",null,8888,null,1,null,null,null,null,null,null,null,null,null,null,"Прочее",null,null,null,null,null,null,null,null,null,null,null,"07","07"]
["Вологодская область",2008,null,null,"сентябрь",null,null,null,"9",null,null,null,null,null,"Отборный пар, > 13 кг/см2",null,null,null,null,null,null,"9",null,"Тариф на подключение (технологическое присоединение) к централизованной системе водоотведения в индивидуальном порядке","Информация о предложении об установлении платы за подключение к централизованной системе водоотведения (индивидуальной)",null,null,null,null,null,null,null,null,null,null,null,null,null,null,null,null,null,null,null,null,null,null,null,"08","08"]
["Воронежская область",2009,null,null,"октябрь",null,null,null,"10",null,null,null,null,null,"Острый и редуцированный пар",null,null,null,null,null,null,"10",null,"Тариф на подключение (технологическое присоединение) к централизованной системе водоотведения","Информация о предложении об установлении платы за подключение к централизованной системе водоотведения",null,null,null,null,null,null,null,null,null,null,null,null,null,null,null,null,null,null,null,null,null,null,null,"09","09"]
["г.Байконур",2010,null,null,"ноябрь",null,"НДС общий люди\n/kind_of_NDS_tariff_people/","НДС\n/kind_of_NDS_tariff_people/","11",null,null,null,null,null,"Горячая вода в системе централизованного теплоснабжения на отопление",null,null,null,null,null,null,null,null,null,null,null,null,null,null,null,null,null,null,null,null,null,null,null,null,null,null,null,null,null,null,null,null,null,"10","10"]
["г. Москва",2011,null,null,"декабрь",null,"тариф с НДС организаций-плательщиков НДС","тариф организаций не являющихся плательщиками НДС","12",null,null,null,null,null,"Прочее",null,null,null,null,null,null,null,null,null,null,null,null,null,null,null,null,null,null,null,null,null,null,null,null,null,null,null,null,null,null,null,null,null,"11","11"]
["г.Санкт-Петербург",2012,null,null,null,null,"тариф не утверждался","тариф не утверждался","13",null,null,null,null,"Вид деятельности /kind_of_activity/",null,null,null,null,null,null,null,null,null,null,null,null,null,null,null,null,null,null,null,null,null,null,null,null,null,null,null,null,null,null,null,null,null,null,"12","12"]
["г.Севастополь",2013,null,null,null,null,null,null,"14",null,null,null,null,"производство тепловой энергии (мощности) в режиме комбинированной выработки электрической и тепловой энергии источниками тепловой энергии с установленной генерирующей мощностью производства электрической энергии 25 МВт и более",null,null,null,null,null,null,null,null,null,null,null,null,null,null,null,null,null,null,null,null,null,null,null,null,null,null,null,null,null,null,null,null,null,null,"13","13"]
["Еврейская автономная область",2014,null,null,null,null,null,null,"15",null,null,null,null,"производство тепловой энергии (мощности) в режиме комбинированной выработки электрической и тепловой энергии источниками тепловой энергии с установленной генерирующей мощностью производства электрической энергии менее 25 МВт",null,null,null,null,null,null,null,null,null,null,null,null,null,null,null,null,null,null,null,null,null,null,null,null,null,null,null,null,null,null,null,null,null,null,"14","14"]
["Забайкальский край",2015,null,null,null,null,null,null,"16",null,null,null,null,"производство тепловой энергии (мощности) не в режиме комбинированной выработки электрической и тепловой энергии источниками тепловой энергии",null,null,null,null,null,null,null,null,null,null,null,null,null,null,null,null,null,null,null,null,null,null,null,null,null,null,null,null,null,null,null,null,null,null,"15","15"]
["Ивановская область",2016,null,null,null,null,null,null,"17",null,null,null,null,"производство теплоносителя",null,null,null,null,null,null,null,null,null,null,null,null,null,null,null,null,null,null,null,null,null,null,null,null,null,null,null,null,null,null,null,null,null,null,"16","16"]
["Иркутская область",2017,null,null,null,null,null,null,"18",null,null,null,null,"передача тепловой энергии и теплоносителя",null,null,null,null,null,null,null,null,null,null,null,null,null,null,null,null,null,null,null,null,null,null,null,null,null,null,null,null,null,null,null,null,null,null,"17","17"]
["Кабардино-Балкарская республика",2018,null,null,null,null,null,null,"19",null,null,null,null,"сбыт тепловой энергии и теплоносителя",null,null,null,null,null,null,null,null,null,null,null,null,null,null,null,null,null,null,null,null,null,null,null,null,null,null,null,null,null,null,null,null,null,null,"18","18"]
["Калининградская область",2019,null,null,null,null,null,null,"20",null,null,null,null,"подключение к системе теплоснабжения",null,null,null,null,null,null,null,null,null,null,null,null,null,null,null,null,null,null,null,null,null,null,null,null,null,null,null,null,null,null,null,null,null,null,"19","19"]
["Калужская область",2020,null,null,null,null,null,null,null,null,null,null,null,"поддержание резервной тепловой мощности при отсутствии потребления тепловой энергии",null,null,null,null,null,null,null,null,null,null,null,null,null,null,null,null,null,null,null,null,null,null,null,null,null,null,null,null,null,null,null,null,null,null,"20","20"]
["Камчатский край",2021,null,null,null,null,null,null,null,null,null,null,null,null,null,null,null,null,null,null,null,null,null,null,null,null,null,null,null,null,null,null,null,null,null,null,null,null,null,null,null,null,null,null,null,null,null,null,"21","21"]
["Карачаево-Черкесская республика",2022,null,null,null,null,null,null,null,null,null,null,null,null,null,null,null,null,null,null,null,null,null,null,null,null,null,null,null,null,null,null,null,null,null,null,null,null,null,null,null,null,null,null,null,null,null,null,"22","22"]
["Кемеровская область",2023,null,null,null,null,null,null,null,null,null,null,null,null,null,null,null,null,null,null,null,null,null,null,null,null,null,null,null,null,null,null,null,null,null,null,null,null,null,null,null,null,null,null,null,null,null,null,"23","23"]
["Кировская область",2024,null,null,null,null,null,null,null,null,null,null,null,null,null,null,null,null,null,null,null,null,null,null,null,null,null,null,null,null,null,null,null,null,null,null,null,null,null,null,null,null,null,null,null,null,null,null,null,"24"]
["Костромская область",2025,null,null,null,null,null,null,null,null,null,null,null,null,null,null,null,null,null,null,null,null,null,null,null,null,null,null,null,null,null,null,null,null,null,null,null,null,null,null,null,null,null,null,null,null,null,null,null,"25"]
["Краснодарский край",null,null,null,null,null,null,"Текущая дата",null,null,null,null,null,null,null,null,null,null,null,null,null,null,null,null,null,null,null,null,null,null,null,null,null,null,null,null,null,null,null,null,null,null,null,null,null,null,null,null,null,"26"]
["Красноярский край",null,null,"Организация",{"$f":"IF(periodStart = \"\",\"\", periodStart)","v":"01.12.2022"},{"$f":"IF(periodEnd = \"\",\"\", periodEnd)","v":"31.12.2023"},null,"09.12.2022 12:45:27",null,null,null,null,null,null,null,null,null,null,null,null,null,null,null,null,null,null,null,null,null,null,null,null,null,null,null,null,null,null,null,null,null,null,null,null,null,null,null,null,null,"27"]
["Курганская область",null,null,null,null,null,null,null,null,null,null,null,null,null,null,null,null,null,null,null,null,null,null,null,null,null,null,null,null,null,null,null,null,null,null,null,null,null,null,null,null,null,null,null,null,null,null,null,null,"28"]
["Курская область",null,null,null,null,null,null,null,null,null,null,null,null,null,null,null,null,null,null,null,null,null,null,null,null,null,null,null,null,null,null,null,null,null,null,null,null,null,null,null,null,null,null,null,null,null,null,null,null,"29"]
["Ленинградская область",null,null,"Виды деятельности",null,null,null,"https://appsrv.regportal-tariff.ru/procwsxls/",null,null,null,null,null,null,null,null,null,null,null,null,null,null,null,null,null,null,null,null,null,null,null,null,null,null,null,null,null,null,null,null,null,null,null,null,null,null,null,null,null,"30"]
["Липецкая область",null,null,null,null,null,null,null,null,null,null,null,null,null,null,null,null,null,null,null,null,null,null,null,null,null,null,null,null,null,null,null,null,null,null,null,null,null,null,null,null,null,null,null,null,null,null,null,null,"31"]
["Магаданская область",null,null,null,null,null,null,null,null,null,null,null,null,null,null,null,null,null,null,null,null,null,null,null,null,null,null,null,null,null,null,null,null,null,null,null,null,null,null,null,null,null,null,null,null,null,null,null,null,"32"]
["Московская область",null,null,null,null,null,null,null,null,null,null,null,null,null,null,null,null,null,null,null,null,null,null,null,null,null,null,null,null,null,null,null,null,null,null,null,null,null,null,null,null,null,null,null,null,null,null,null,null,"33"]
["Мурманская область",null,null,null,null,null,null,null,null,null,null,null,null,null,null,null,null,null,null,null,null,null,null,null,null,null,null,null,null,null,null,null,null,null,null,null,null,null,null,null,null,null,null,null,null,null,null,null,null,"34"]
["Ненецкий автономный округ",null,null,null,null,null,null,null,null,null,null,null,null,null,null,null,null,null,null,null,null,null,null,null,null,null,null,null,null,null,null,null,null,null,null,null,null,null,null,null,null,null,null,null,null,null,null,null,null,"35"]
["Нижегородская область",null,null,null,null,null,null,null,null,null,null,null,null,null,null,null,null,null,null,null,null,null,null,null,null,null,null,null,null,null,null,null,null,null,null,null,null,null,null,null,null,null,null,null,null,null,null,null,null,"36"]
["Новгородская область",null,null,null,null,null,null,null,null,null,null,null,null,null,null,null,null,null,null,null,null,null,null,null,null,null,null,null,null,null,null,null,null,null,null,null,null,null,null,null,null,null,null,null,null,null,null,null,null,"37"]
["Новосибирская область",null,null,null,null,null,null,null,null,null,null,null,null,null,null,null,null,null,null,null,null,null,null,null,null,null,null,null,null,null,null,null,null,null,null,null,null,null,null,null,null,null,null,null,null,null,null,null,null,"38"]
["Омская область",null,null,null,null,null,null,null,null,null,null,null,null,null,null,null,null,null,null,null,null,null,null,null,null,null,null,null,null,null,null,null,null,null,null,null,null,null,null,null,null,null,null,null,null,null,null,null,null,"39"]
["Оренбургская область",null,null,null,null,null,null,null,null,null,null,null,null,null,null,null,null,null,null,null,null,null,null,null,null,null,null,null,null,null,null,null,null,null,null,null,null,null,null,null,null,null,null,null,null,null,null,null,null,"40"]
["Орловская область",null,null,null,null,null,null,null,null,null,null,null,null,null,null,null,null,null,null,null,null,null,null,null,null,null,null,null,null,null,null,null,null,null,null,null,null,null,null,null,null,null,null,null,null,null,null,null,null,"41"]
["Пензенская область",null,null,null,null,null,null,null,null,null,null,null,null,null,null,null,null,null,null,null,null,null,null,null,null,null,null,null,null,null,null,null,null,null,null,null,null,null,null,null,null,null,null,null,null,null,null,null,null,"42"]
["Пермский край",null,null,null,null,null,null,null,null,null,null,null,null,null,null,null,null,null,null,null,null,null,null,null,null,null,null,null,null,null,null,null,null,null,null,null,null,null,null,null,null,null,null,null,null,null,null,null,null,"43"]
["Приморский край",null,null,null,null,null,null,null,null,null,null,null,null,null,null,null,null,null,null,null,null,null,null,null,null,null,null,null,null,null,null,null,null,null,null,null,null,null,null,null,null,null,null,null,null,null,null,null,null,"44"]
["Псковская область",null,null,null,null,null,null,null,null,null,null,null,null,null,null,null,null,null,null,null,null,null,null,null,null,null,null,null,null,null,null,null,null,null,null,null,null,null,null,null,null,null,null,null,null,null,null,null,null,"45"]
["Республика Адыгея",null,null,null,null,null,null,null,null,null,null,null,null,null,null,null,null,null,null,null,null,null,null,null,null,null,null,null,null,null,null,null,null,null,null,null,null,null,null,null,null,null,null,null,null,null,null,null,null,"46"]
["Республика Алтай",null,null,null,null,null,null,null,null,null,null,null,null,null,null,null,null,null,null,null,null,null,null,null,null,null,null,null,null,null,null,null,null,null,null,null,null,null,null,null,null,null,null,null,null,null,null,null,null,"47"]
["Республика Башкортостан",null,null,null,null,null,null,null,null,null,null,null,null,null,null,null,null,null,null,null,null,null,null,null,null,null,null,null,null,null,null,null,null,null,null,null,null,null,null,null,null,null,null,null,null,null,null,null,null,"48"]
["Республика Бурятия",null,null,null,null,null,null,null,null,null,null,null,null,null,null,null,null,null,null,null,null,null,null,null,null,null,null,null,null,null,null,null,null,null,null,null,null,null,null,null,null,null,null,null,null,null,null,null,null,"49"]
["Республика Дагестан",null,null,null,null,null,null,null,null,null,null,null,null,null,null,null,null,null,null,null,null,null,null,null,null,null,null,null,null,null,null,null,null,null,null,null,null,null,null,null,null,null,null,null,null,null,null,null,null,"50"]
["Республика Ингушетия",null,null,null,null,null,null,null,null,null,null,null,null,null,null,null,null,null,null,null,null,null,null,null,null,null,null,null,null,null,null,null,null,null,null,null,null,null,null,null,null,null,null,null,null,null,null,null,null,"51"]
["Республика Калмыкия",null,null,null,null,null,null,null,null,null,null,null,null,null,null,null,null,null,null,null,null,null,null,null,null,null,null,null,null,null,null,null,null,null,null,null,null,null,null,null,null,null,null,null,null,null,null,null,null,"52"]
["Республика Карелия",null,null,null,null,null,null,null,null,null,null,null,null,null,null,null,null,null,null,null,null,null,null,null,null,null,null,null,null,null,null,null,null,null,null,null,null,null,null,null,null,null,null,null,null,null,null,null,null,"53"]
["Республика Коми",null,null,null,null,null,null,null,null,null,null,null,null,null,null,null,null,null,null,null,null,null,null,null,null,null,null,null,null,null,null,null,null,null,null,null,null,null,null,null,null,null,null,null,null,null,null,null,null,"54"]
["Республика Крым",null,null,null,null,null,null,null,null,null,null,null,null,null,null,null,null,null,null,null,null,null,null,null,null,null,null,null,null,null,null,null,null,null,null,null,null,null,null,null,null,null,null,null,null,null,null,null,null,"55"]
["Республика Марий Эл",null,null,null,null,null,null,null,null,null,null,null,null,null,null,null,null,null,null,null,null,null,null,null,null,null,null,null,null,null,null,null,null,null,null,null,null,null,null,null,null,null,null,null,null,null,null,null,null,"56"]
["Республика Мордовия",null,null,null,null,null,null,null,null,null,null,null,null,null,null,null,null,null,null,null,null,null,null,null,null,null,null,null,null,null,null,null,null,null,null,null,null,null,null,null,null,null,null,null,null,null,null,null,null,"57"]
["Республика Саха (Якутия)",null,null,null,null,null,null,null,null,null,null,null,null,null,null,null,null,null,null,null,null,null,null,null,null,null,null,null,null,null,null,null,null,null,null,null,null,null,null,null,null,null,null,null,null,null,null,null,null,"58"]
["Республика Северная Осетия-Алания",null,null,null,null,null,null,null,null,null,null,null,null,null,null,null,null,null,null,null,null,null,null,null,null,null,null,null,null,null,null,null,null,null,null,null,null,null,null,null,null,null,null,null,null,null,null,null,null,"59"]
["Республика Татарстан"]
["Республика Тыва"]
["Республика Хакасия"]
["Ростовская область"]
["Рязанская область"]
["Самарская область"]
["Саратовская область"]
["Сахалинская область"]
["Свердловская область"]
["Смоленская область"]
["Ставропольский край"]
["Тамбовская область"]
["Тверская область"]
["Томская область"]
["Тульская область"]
["Тюменская область"]
["Удмуртская республика"]
["Ульяновская область"]
["Хабаровский край"]
["Ханты-Мансийский автономный округ"]
["Челябинская область"]
["Чеченская республика"]
["Чувашская республика"]
["Чукотский автономный округ"]
["Ямало-Ненецкий автономный округ"]
["Ярославская область"]

{"sheet":"modInfo","index":51,"n_rows":36,"n_cols":2,"rows_kept":36,"cut":false,"hidden":true,"merged":[]}
[null,"Титульный"]
[null,"Для выбора того или иного источника публикации выполните двойной щелчок по синей ячейке напротив соответствующего источника.\nВНИМАНИЕ! Если Вы снимаете галочку с пункта, то будут скрыты и очищены соответствующие строки на листе \"Форма 1.0.2\"!\n\nОпубликование перечисленных в шаблоне показателей на сайте организации в сети Интернет и в печатных изданиях не обязательно, если данный шаблон предоставлен по системе ЕИАС (региональный сегмент)."]
[null,"Обязательное опубликование на официальном сайте органа исполнительной власти субъекта Российской Федерации в области государственного регулирования цен (тарифов), и (или) на официальном сайте органа местного самоуправления поселения или городского округа в случае их наделения в соответствии с законом субъекта Российской Федерации полномочиями по государственному регулированию цен (тарифов)предусмотрено пунктом 3 (а) постановления Правительства №6 от 17.01.2013г."]
[null,"Задайте период регулирования, выбрав даты начала и окончания периода регулирования из календаря (иконка справа от указанной ячейки), либо введите дату непосредственно в ячейку в формате - 'ДД.ММ.ГГГГ'"]
[null,"Шаблон заполняется раздельно по каждому виду тарифа"]
[null,"В зависимости от указанного вида деятельности будут доступны для заполнения поля 'Производство', 'Передача' и 'Сбыт'"]
[null,"Если выбрано 'да', на листах с разбивкой по потребителям доступны для заполнения графы для двухставочного ставочного тарифа по группам потребителей"]
[null,"Если выбрано 'да', значения тарифов для групп потребителей на листах с разбивкой по потребителям заполнятся автоматически значениями первой группы"]
[null,"Если выбрано значение «да» - в шаблоне будет сформирован лист «Форма 1.0.2» для уведомления органа регулирования о публикации информации в печатных изданиях"]
[null,"По умолчанию установлено значение «первичное раскрытие информации» Это означает, что информация раскрывается в соответствии с установленными сроком и периодичностью. В случае, если в уже отправленном шаблоне обнаружена ошибка или произошло изменение информации, исправленный шаблон необходимо отправить с типом отчета «изменения в раскрытой ранее информации». "]
[null,"Укажите является ли данное юридическое лицо подразделением(филиалом) другой организации"]
[null,"Ссылки на публикации"]
[null,"Вводите адрес сайта, не нарушая цвет ячейки /если копируете гиперссылку из браузера, то выполните двойной щелчок по ячейке и только после этого можете вставить скопированный элемент/"]
[null,"Обосновывающие материалы необходимо загружать с помощью \"ЕИАС Мониторинг\". Ссылка на инструкцию по загрузке обосновывающих материалов расположена на листе 'Инструкция' в п.'Методология заполнения'.\n\nВвводите ссылку, не нарушая цвет ячейки /если копируете гиперссылку из браузера, то выполните двойной щелчок по ячейке и только после этого можете вставить скопированный элемент/."]
[null,"Если для какого-либо пункта графы 'Наименование источника (сайта или печатного издания)' информация не раскрывалась, то в соответствующем поле укажите - 'не раскрывалась'"]
[null,"Список МО"]
[null,"В случае, если тариф не дифференцируется по системам теплоснабжения, перечислите все муниципальные районы, в которых организация осуществляет услуги теплоснабжения и сфере оказания услуг по передаче тепловой энергии"]
[null,"В случае, если тариф не дифференцируется по системам теплоснабжения, перечислите все муниципальные образования, в которых организация осуществляет услуги теплоснабжения и сфере оказания услуг по передаче тепловой энергии"]
[null,"Признак дифференциации тарифа"]
[null,"В случае, если тариф не дифференцируется по системам теплоснабжения, укажите \"1\".\nВведите значение от 1 до 100, чтобы указать очередной условный порядковый номер системы теплоснабжения"]
[null,"Стандарты"]
[null,"В качестве примечания Вы можете указать единицу измерения"]
[]
[null,"Для корректного формирования Таблицы 25 Формы 1.10 необходимо задать разбивку по диаметрам и способу прокладки тепловых сетей"]
[]
[null,"Перечень тарифов"]
[null,"Указывается наименование тарифа в случае утверждения нескольких тарифов.\nВ случае наличия нескольких тарифов информация по ним указывается в отдельных строках."]
[null,"Укажите «Да» в поле «Да/Нет», если дифференциация используется.\nВ поле «Описание» указывается наименование территории действия тарифа при наличии дифференциации тарифа по территориальному признаку.\nВ случае дифференциации тарифов по территориальному признаку информация по ним указывается в отдельных строках."]
[null,"Признаки дифференциации указываются в соответствии с п.6 ст.32 ФЗ РФ от 07.12.2011 №416-ФЗ"]
[null,"Укажите «Да» в поле «Да/Нет», если дифференциация используется. В поле «Описание» укажите название ЦС ВО или любое другое описание"]
[]
[null,"Территории"]
[1,"Наименование территории действия тарифа для целей идентификации"]
[2,"Муниципальные районы и муниципальные образования, на территории которых действует тариф"]
[null,"Инструкция"]
[null,"Нет доступных обновлений, версия отчёта актуальна"]

{"sheet":"modList05","index":52,"n_rows":0,"n_cols":0,"rows_kept":0,"cut":false,"hidden":true,"merged":[]}

{"sheet":"modList06","index":53,"n_rows":0,"n_cols":0,"rows_kept":0,"cut":false,"hidden":true,"merged":[]}

{"sheet":"modList07","index":54,"n_rows":0,"n_cols":0,"rows_kept":0,"cut":false,"hidden":true,"merged":[]}

{"sheet":"modList11","index":55,"n_rows":0,"n_cols":0,"rows_kept":0,"cut":false,"hidden":true,"merged":[]}

{"sheet":"modList12","index":56,"n_rows":0,"n_cols":0,"rows_kept":0,"cut":false,"hidden":true,"merged":[]}

{"sheet":"modfrmDateChoose","index":57,"n_rows":0,"n_cols":0,"rows_kept":0,"cut":false,"hidden":true,"merged":[]}

{"sheet":"modComm","index":58,"n_rows":0,"n_cols":0,"rows_kept":0,"cut":false,"hidden":true,"merged":[]}

{"sheet":"modThisWorkbook","index":59,"n_rows":0,"n_cols":0,"rows_kept":0,"cut":false,"hidden":true,"merged":[]}

{"sheet":"modfrmReestrMR","index":60,"n_rows":0,"n_cols":0,"rows_kept":0,"cut":false,"hidden":true,"merged":[]}

{"sheet":"modfrmCheckUpdates","index":61,"n_rows":0,"n_cols":0,"rows_kept":0,"cut":false,"hidden":true,"merged":[]}